BodyName,ServiceAreaCategorisation,ServiceDivisionCategorisation,ExpensesType,Date,TransactionNumber,Amount,CapitalorRevenue,SupplierName,MerchantCategory
Peterborough City Council,Children's & Safeguarding,External Education Placements,Services,01/06/2018,30158944,-28257.02,Revenue,Cambian Autism Services Ltd,Boarding Out Allowances
Peterborough City Council,Children's & Safeguarding,External Education Placements,Services,01/06/2018,30164660,-25522.47,Revenue,Cambian Autism Services Ltd,Boarding Out Allowances
Peterborough City Council,Education,Special Educational Needs / Inclusion,Services,01/06/2018,30177951,2953.6,Revenue,Becky Frewin Ltd,Hired Services
Peterborough City Council,Children's & Safeguarding,Children's Social Care,Agency Staff,01/06/2018,30177994,1397.02,Revenue,Swim Recruitment,External Temporary Staff
Peterborough City Council,Adults,Day opportunities - Older People,Agency Staff,01/06/2018,30177996,1211.75,Revenue,Swim Recruitment,External Temporary Staff
Peterborough City Council,Adults,Mental Capacity Act & DoLs,Services,01/06/2018,30178211,1114,Revenue,SS Psychiatric Services Ltd,Hired Services
Peterborough City Council,Adults,Mental Capacity Act & DoLs,Services,01/06/2018,30178212,973,Revenue,Raj Medical Consultancy Limited,Hired Services
Peterborough City Council,Communities,Targeted Youth Service,Contract Hire and Operating Leases,01/06/2018,30178843,1604,Revenue,Stagecoach in Peterborough,Hired Transport
Peterborough City Council,Financial Services,Finance,Agency Staff,01/06/2018,30178881,1069.39,Revenue,Morgan Hunt UK Ltd,External Temporary Staff
Peterborough City Council,Adults,OP/PD/SI,Other Establishments,01/06/2018,30179169,5293.75,Revenue,The Dales Trust T/A Dhiverse,Third Party Payments - Contract
Peterborough City Council,Peterborough Highway Services,Transport & Infrastructure Commissioning,Energy Costs,01/06/2018,30179290,73481.05,Revenue,EDF Energy Networks Ltd,Electricity
Peterborough City Council,Westcombe Engineering,Westcombe Engineering,"Tools, Equipment, Furniture & Materials",01/06/2018,30179364,515.58,Revenue,Barron Clark Castings Ltd,Items For Resale
Peterborough City Council,Westcombe Engineering,Westcombe Engineering,"Tools, Equipment, Furniture & Materials",01/06/2018,30179368,774,Revenue,Barron Clark Castings Ltd,Items For Resale
Peterborough City Council,Corporate,Corporate,Non Revenue,01/06/2018,30179452,2080,Capital,CMS Accommodating People Ltd,Building And Site Works
Peterborough City Council,Corporate Property,Office Accomodation,Water Services,01/06/2018,30179697,3475.08,Revenue,Anglian Water Business National,Water
Peterborough City Council,Children's & Safeguarding,CSC Quality Assurance,Services,01/06/2018,30179710,1211.17,Revenue,Redacted Personal Data,Compensation
Peterborough City Council,Communities,Cultural Services,Water Services,01/06/2018,30179825,2451.01,Revenue,Anglian Water Business National,Water
Peterborough City Council,Corporate,Corporate,Non Revenue,01/06/2018,30179923,559100.06,Capital,Kier Construction Ltd,Building And Site Works
Peterborough City Council,"Waste, Cleansing and Open Spaces",Waste & Operational Svs Mgmt,Energy Costs,01/06/2018,30180095,762.65,Revenue,British Gas Business,Electricity
Peterborough City Council,Westcombe Engineering,Westcombe Engineering,Energy Costs,01/06/2018,30180095,1438.92,Revenue,British Gas Business,Electricity
Peterborough City Council,Westcombe Engineering,Westcombe Engineering,Energy Costs,01/06/2018,30180102,1145.67,Revenue,British Gas Business,Electricity
Peterborough City Council,Corporate Property,Office Accomodation,Energy Costs,01/06/2018,30180184,1222.81,Revenue,British Gas Business,Electricity
Peterborough City Council,Commissioning and Commercial Operations,Early Years & Quality Improvement,Services,01/06/2018,30180227,6379.75,Revenue,The Voyager Nursery,Grant Payment
Peterborough City Council,Commissioning and Commercial Operations,Early Years & Quality Improvement,Services,01/06/2018,30180231,1365,Revenue,Anna-Ca-Soo Day Nursery,Grant Payment
Peterborough City Council,Commissioning and Commercial Operations,Early Years & Quality Improvement,Services,01/06/2018,30180233,1478.75,Revenue,Paston & Gunthorpe Pre-School,Grant Payment
Peterborough City Council,Commissioning and Commercial Operations,Early Years & Quality Improvement,Services,01/06/2018,30180234,845,Revenue,Whiz Kids Day Nursery,Grant Payment
Peterborough City Council,Regulatory Services,Regulatory Services,Agency Staff,01/06/2018,30180240,1394.53,Revenue,Reed Specialist Recruitment Limited,External Temporary Staff
Peterborough City Council,Parking Services,Parking Services,Agency Staff,01/06/2018,30180243,950.7,Revenue,Reed Specialist Recruitment Limited,External Temporary Staff
Peterborough City Council,Regulatory Services,Regulatory Services,Agency Staff,01/06/2018,30180244,972.29,Revenue,Reed Specialist Recruitment Limited,External Temporary Staff
Peterborough City Council,Communities,Housing,Services,01/06/2018,30180281,553,Revenue,Eastfield Guesthouse,Temporary Accommodation Costs
Peterborough City Council,Communities,Housing,Services,01/06/2018,30180284,553,Revenue,Eastfield Guesthouse,Temporary Accommodation Costs
Peterborough City Council,Communities,Housing,Services,01/06/2018,30180286,553,Revenue,Eastfield Guesthouse,Temporary Accommodation Costs
Peterborough City Council,Communities,Housing,Services,01/06/2018,30180288,553,Revenue,Eastfield Guesthouse,Temporary Accommodation Costs
Peterborough City Council,Communities,Housing,Services,01/06/2018,30180289,553,Revenue,Eastfield Guesthouse,Temporary Accommodation Costs
Peterborough City Council,Communities,Housing,Services,01/06/2018,30180290,553,Revenue,Eastfield Guesthouse,Temporary Accommodation Costs
Peterborough City Council,Communities,Housing,Services,01/06/2018,30180292,553,Revenue,Eastfield Guesthouse,Temporary Accommodation Costs
Peterborough City Council,Communities,Housing,Services,01/06/2018,30180294,553,Revenue,Eastfield Guesthouse,Temporary Accommodation Costs
Peterborough City Council,Communities,Housing,Services,01/06/2018,30180296,553,Revenue,Eastfield Guesthouse,Temporary Accommodation Costs
Peterborough City Council,Communities,Housing,Services,01/06/2018,30180297,553,Revenue,Eastfield Guesthouse,Temporary Accommodation Costs
Peterborough City Council,Communities,Housing,Services,01/06/2018,30180298,553,Revenue,Eastfield Guesthouse,Temporary Accommodation Costs
Peterborough City Council,Communities,Housing,Services,01/06/2018,30180321,560,Revenue,Singh and Sons Property Management Ltd,Temporary Accommodation Costs
Peterborough City Council,Development and Construction,Planning Compliance,Agency Staff,01/06/2018,30180333,1020.78,Revenue,Reed Specialist Recruitment Limited,External Temporary Staff
Peterborough City Council,Adults,Finance,Agency Staff,01/06/2018,30180334,2433.6,Revenue,Reed Specialist Recruitment Limited,External Temporary Staff
Peterborough City Council,Communities,Performance & Information,Agency Staff,01/06/2018,30180337,985.88,Revenue,Reed Specialist Recruitment Limited,External Temporary Staff
Peterborough City Council,ICT,ICT,Agency Staff,01/06/2018,30180343,678.8,Revenue,Reed Specialist Recruitment Limited,External Temporary Staff
Peterborough City Council,Peterborough Highway Services,Highway & Drainage Control,Agency Staff,01/06/2018,30180347,1291.14,Revenue,Reed Specialist Recruitment Limited,External Temporary Staff
Peterborough City Council,Financial Services,Finance,Agency Staff,01/06/2018,30180349,1471.6,Revenue,Reed Specialist Recruitment Limited,External Temporary Staff
Peterborough City Council,Regulatory Services,Regulatory Services,Agency Staff,01/06/2018,30180353,758.03,Revenue,Reed Specialist Recruitment Limited,External Temporary Staff
Peterborough City Council,Development and Construction,Planning Compliance,Agency Staff,01/06/2018,30180355,1087.28,Revenue,Reed Specialist Recruitment Limited,External Temporary Staff
Peterborough City Council,Communities,Housing,Services,01/06/2018,30180364,820,Revenue,Redacted Personal Data,Financial Assistance
Peterborough City Council,Communities,Housing,Services,01/06/2018,30180373,1746.95,Revenue,HC Property Lettings Ltd,Financial Assistance
Peterborough City Council,Communities,Housing,Services,01/06/2018,30180374,1658,Revenue,English Estates Property Agents,Financial Assistance
Peterborough City Council,Communities,Housing,Services,01/06/2018,30180376,709.8,Revenue,Jolliffe Daking,Financial Assistance
Peterborough City Council,Corporate,Corporate,Non Revenue,01/06/2018,30180379,235573.17,Capital,Southview Building Solutions Ltd,Building And Site Works
Peterborough City Council,Corporate Items,Corporate Services,Agency Staff,01/06/2018,30180385,10833.33,Revenue,Skanska Construction UK Ltd,External Temporary Staff
Peterborough City Council,Adults,Independent Sector Placements,Services,01/06/2018,30180396,9416.8,Revenue,PRESTIGE NURSING LIMITED,Home Care
Peterborough City Council,Adults,Independent Sector Placements,Services,01/06/2018,30180397,1305,Revenue,MEARS GROUP,Home Care
Peterborough City Council,Westcombe Engineering,Westcombe Engineering,"Tools, Equipment, Furniture & Materials",01/06/2018,30180401,609.15,Revenue,Barron Clark Castings Ltd,Items For Resale
Peterborough City Council,Education,Financing - Resources,Services,01/06/2018,30180403,19060.67,Revenue,Cambian Autism Services Ltd,Education Expenses
Peterborough City Council,Education,Financing - Resources,Services,01/06/2018,30180404,28747.24,Revenue,Cambian Autism Services Ltd,Education Expenses
Peterborough City Council,Education,Financing - Resources,Services,01/06/2018,30180405,28122.3,Revenue,Cambian Autism Services Ltd,Education Expenses
Peterborough City Council,Education,Financing - Resources,Services,01/06/2018,30180406,28434.77,Revenue,Cambian Autism Services Ltd,Education Expenses
Peterborough City Council,Westcombe Engineering,Westcombe Engineering,Services,01/06/2018,30180570,659,Revenue,BSi Management Systems,Administration Expenses
Peterborough City Council,Corporate,Corporate,Non Revenue,01/06/2018,30180586,3537.46,Capital,Network Rail Infrastructure Ltd,Building And Site Works
Peterborough City Council,Adults,Strategic Commissioning - Management,Agency Staff,01/06/2018,30180593,3152.4,Revenue,Sanctuary Personnel Ltd,External Temporary Staff
Peterborough City Council,Communities,Cohesion,Agency Staff,01/06/2018,30180600,1136.16,Revenue,Reed Specialist Recruitment Limited,External Temporary Staff
Peterborough City Council,Adults,Independent Sector Placements,Services,01/06/2018,8000113920,659.4,Revenue,MEARS GROUP,Home Care
Peterborough City Council,Adults,Independent Sector Placements,Services,01/06/2018,8000113927,1874.55,Revenue,MEARS GROUP,Home Care
Peterborough City Council,Adults,Independent Sector Placements,Services,01/06/2018,8000113938,523.2,Revenue,MEARS GROUP,Home Care
Peterborough City Council,Adults,Independent Sector Placements,Services,01/06/2018,8000113941,754.65,Revenue,MEARS GROUP,Home Care
Peterborough City Council,Adults,Independent Sector Placements,Services,01/06/2018,8000113942,571.5,Revenue,MEARS GROUP,Home Care
Peterborough City Council,Adults,Independent Sector Placements,Services,01/06/2018,8000113944,860.4,Revenue,MEARS GROUP,Home Care
Peterborough City Council,Adults,Independent Sector Placements,Services,01/06/2018,8000117013,830.7,Revenue,Augusta Care Ltd,Home Care
Peterborough City Council,Adults,Independent Sector Placements,Services,01/06/2018,8000117014,2380.12,Revenue,Augusta Care Ltd,Home Care
Peterborough City Council,Adults,Independent Sector Placements,Services,01/06/2018,8000117016,681.6,Revenue,Augusta Care Ltd,Home Care
Peterborough City Council,Adults,Independent Sector Placements,Services,01/06/2018,8000117017,6337.36,Revenue,Augusta Care Ltd,Home Care
Peterborough City Council,Adults,Independent Sector Placements,Services,01/06/2018,8000117018,2446.56,Revenue,Augusta Care Ltd,Home Care
Peterborough City Council,Adults,Independent Sector Placements,Services,01/06/2018,8000117019,3882.8,Revenue,Augusta Care Ltd,Home Care
Peterborough City Council,Adults,Independent Sector Placements,Services,01/06/2018,8000117020,2746.8,Revenue,Augusta Care Ltd,Home Care
Peterborough City Council,Adults,Independent Sector Placements,Services,01/06/2018,8000117021,1400.12,Revenue,Augusta Care Ltd,Home Care
Peterborough City Council,Adults,Independent Sector Placements,Services,01/06/2018,8000117022,3274.08,Revenue,Augusta Care Ltd,Home Care
Peterborough City Council,Adults,Independent Sector Placements,Services,01/06/2018,8000117023,1343.32,Revenue,Augusta Care Ltd,Home Care
Peterborough City Council,Adults,Independent Sector Placements,Services,01/06/2018,8000117024,2862.72,Revenue,Augusta Care Ltd,Home Care
Peterborough City Council,Adults,Independent Sector Placements,Services,01/06/2018,8000117025,4633.32,Revenue,Augusta Care Ltd,Home Care
Peterborough City Council,Adults,Independent Sector Placements,Services,01/06/2018,8000117026,3420.4,Revenue,Augusta Care Ltd,Home Care
Peterborough City Council,Adults,Independent Sector Placements,Services,01/06/2018,8000117027,4493.4,Revenue,Augusta Care Ltd,Home Care
Peterborough City Council,Adults,Independent Sector Placements,Services,01/06/2018,8000117028,1590.4,Revenue,Augusta Care Ltd,Home Care
Peterborough City Council,Adults,Independent Sector Placements,Services,01/06/2018,8000117029,1590.4,Revenue,Augusta Care Ltd,Home Care
Peterborough City Council,Adults,Independent Sector Placements,Services,01/06/2018,8000117030,4252,Revenue,Augusta Care Ltd,Home Care
Peterborough City Council,Adults,Independent Sector Placements,Services,01/06/2018,8000117031,4244.04,Revenue,Augusta Care Ltd,Home Care
Peterborough City Council,Adults,Independent Sector Placements,Services,01/06/2018,8000117032,568,Revenue,Augusta Care Ltd,Home Care
Peterborough City Council,Adults,Independent Sector Placements,Services,01/06/2018,8000117035,1972,Revenue,Augusta Care Ltd,Home Care
Peterborough City Council,Adults,Independent Sector Placements,Services,01/06/2018,8000117036,4402.52,Revenue,Augusta Care Ltd,Home Care
Peterborough City Council,Adults,Independent Sector Placements,Services,01/06/2018,8000117037,653.2,Revenue,Augusta Care Ltd,Home Care
Peterborough City Council,Adults,Independent Sector Placements,Services,01/06/2018,8000117038,1420,Revenue,Augusta Care Ltd,Home Care
Peterborough City Council,Adults,Independent Sector Placements,Services,01/06/2018,8000117039,1022.4,Revenue,Augusta Care Ltd,Home Care
Peterborough City Council,Adults,Independent Sector Placements,Services,01/06/2018,8000117040,1178.6,Revenue,Augusta Care Ltd,Home Care
Peterborough City Council,Adults,Independent Sector Placements,Services,01/06/2018,8000117041,7481.6,Revenue,Augusta Care Ltd,Home Care
Peterborough City Council,Adults,Independent Sector Placements,Services,01/06/2018,8000117042,7084,Revenue,Augusta Care Ltd,Home Care
Peterborough City Council,Adults,Independent Sector Placements,Services,01/06/2018,8000117044,3388.32,Revenue,Augusta Care Ltd,Home Care
Peterborough City Council,Adults,Independent Sector Placements,Services,01/06/2018,8000117045,11132.8,Revenue,Augusta Care Ltd,Home Care
Peterborough City Council,Adults,Independent Sector Placements,Services,01/06/2018,8000117046,1604.6,Revenue,Augusta Care Ltd,Home Care
Peterborough City Council,Adults,Independent Sector Placements,Services,01/06/2018,8000117047,4157.16,Revenue,Augusta Care Ltd,Home Care
Peterborough City Council,Adults,Independent Sector Placements,Services,01/06/2018,8000117048,3385.8,Revenue,Augusta Care Ltd,Home Care
Peterborough City Council,Adults,Independent Sector Placements,Services,01/06/2018,8000117049,681.6,Revenue,Augusta Care Ltd,Home Care
Peterborough City Council,Adults,Independent Sector Placements,Services,01/06/2018,8000117050,7481.6,Revenue,Augusta Care Ltd,Home Care
Peterborough City Council,Adults,Independent Sector Placements,Services,01/06/2018,8000117051,2281.44,Revenue,Augusta Care Ltd,Home Care
Peterborough City Council,Adults,Independent Sector Placements,Services,01/06/2018,8000117052,1628.24,Revenue,Augusta Care Ltd,Home Care
Peterborough City Council,Adults,Independent Sector Placements,Services,01/06/2018,8000117053,2139.44,Revenue,Augusta Care Ltd,Home Care
Peterborough City Council,Adults,Independent Sector Placements,Services,01/06/2018,8000117054,2253.04,Revenue,Augusta Care Ltd,Home Care
Peterborough City Council,Adults,Independent Sector Placements,Services,01/06/2018,8000117055,4013.04,Revenue,Augusta Care Ltd,Home Care
Peterborough City Council,Adults,Independent Sector Placements,Services,01/06/2018,8000117056,2139.44,Revenue,Augusta Care Ltd,Home Care
Peterborough City Council,Adults,Independent Sector Placements,Services,01/06/2018,8000117057,1798.68,Revenue,Augusta Care Ltd,Home Care
Peterborough City Council,Adults,Independent Sector Placements,Services,01/06/2018,8000117058,1912.28,Revenue,Augusta Care Ltd,Home Care
Peterborough City Council,Adults,Independent Sector Placements,Services,01/06/2018,8000117059,831,Revenue,Augusta Care Ltd,Home Care
Peterborough City Council,Adults,Independent Sector Placements,Services,01/06/2018,8000117060,1576.2,Revenue,Augusta Care Ltd,Home Care
Peterborough City Council,Adults,Independent Sector Placements,Services,01/06/2018,8000117061,2688.2,Revenue,Augusta Care Ltd,Home Care
Peterborough City Council,Adults,Independent Sector Placements,Services,01/06/2018,8000117062,2343,Revenue,Augusta Care Ltd,Home Care
Peterborough City Council,Adults,Independent Sector Placements,Services,01/06/2018,8000117063,2399.76,Revenue,Augusta Care Ltd,Home Care
Peterborough City Council,Adults,Independent Sector Placements,Services,01/06/2018,8000117064,2173.16,Revenue,Augusta Care Ltd,Home Care
Peterborough City Council,Adults,Independent Sector Placements,Services,01/06/2018,8000117065,4663.8,Revenue,Augusta Care Ltd,Home Care
Peterborough City Council,Adults,Independent Sector Placements,Services,01/06/2018,8000117066,1741.88,Revenue,Augusta Care Ltd,Home Care
Peterborough City Council,Education,HTS & CSC Transport,Contract Hire and Operating Leases,01/06/2018,8000117246,858,Revenue,A2B Euro Cars,Hired Transport
Peterborough City Council,Education,HTS & CSC Transport,Contract Hire and Operating Leases,01/06/2018,8000117248,538.16,Revenue,Peterborough Cars,Hired Transport
Peterborough City Council,Education,HTS & CSC Transport,Contract Hire and Operating Leases,01/06/2018,8000117249,1012.06,Revenue,Peterborough Cars,Hired Transport
Peterborough City Council,Education,HTS & CSC Transport,Contract Hire and Operating Leases,01/06/2018,8000117250,800.5,Revenue,Goldstar Cabs Ltd,Hired Transport
Peterborough City Council,Education,HTS & CSC Transport,Contract Hire and Operating Leases,01/06/2018,8000117251,1454,Revenue,Goldstar Cabs Ltd,Hired Transport
Peterborough City Council,Education,HTS & CSC Transport,Contract Hire and Operating Leases,01/06/2018,8000117252,1443.94,Revenue,Goldstar Cabs Ltd,Hired Transport
Peterborough City Council,Education,HTS & CSC Transport,Contract Hire and Operating Leases,01/06/2018,8000117253,813.5,Revenue,Goldstar Cabs Ltd,Hired Transport
Peterborough City Council,Education,HTS & CSC Transport,Contract Hire and Operating Leases,01/06/2018,8000117254,1040,Revenue,Goldstar Cabs Ltd,Hired Transport
Peterborough City Council,Education,HTS & CSC Transport,Contract Hire and Operating Leases,01/06/2018,8000117255,1861.24,Revenue,Goldstar Cabs Ltd,Hired Transport
Peterborough City Council,Education,HTS & CSC Transport,Contract Hire and Operating Leases,01/06/2018,8000117256,1239.5,Revenue,Goldstar Cabs Ltd,Hired Transport
Peterborough City Council,Education,HTS & CSC Transport,Contract Hire and Operating Leases,01/06/2018,8000117257,865.5,Revenue,Goldstar Cabs Ltd,Hired Transport
Peterborough City Council,Education,HTS & CSC Transport,Contract Hire and Operating Leases,01/06/2018,8000117258,1070.63,Revenue,Goldstar Cabs Ltd,Hired Transport
Peterborough City Council,Adults,Independent Sector Placements,Services,01/06/2018,8000117582,15421.08,Revenue,Redacted Personal Data,Adult Social Care Direct Payment
Peterborough City Council,Children's & Safeguarding,Commissioning - CSC,Third Party Payments,01/06/2018,8000119106,531035.67,Revenue,IAS TACT,Third Party Payments - Contract
Peterborough City Council,Corporate,Corporate,Non Revenue,04/06/2018,30176514,1696,Capital,NPS Peterborough Ltd,Consultants Fees
Peterborough City Council,Communities,Cultural Services,Water Services,04/06/2018,30177495,4195.99,Revenue,Anglian Water Business National,Water
Peterborough City Council,Education,PFI,Water Services,04/06/2018,30177495,1604.46,Revenue,Anglian Water Business National,Water
Peterborough City Council,Education,PFI,Water Services,04/06/2018,30177495,1071.4,Revenue,Anglian Water Business National,Water
Peterborough City Council,Adults,Block Contracts,Third Party Payments,04/06/2018,30177953,6894.96,Revenue,Axiom Housing Association Ltd,Third Party Payments - Contract
Peterborough City Council,Adults,OP/PD/SI,"Tools, Equipment, Furniture & Materials",04/06/2018,30177969,1600.54,Revenue,NRS Healthcare,Occupational Therapy Equipment
Peterborough City Council,Adults,OP/PD/SI,"Tools, Equipment, Furniture & Materials",04/06/2018,30177973,93400.7,Revenue,NRS Healthcare,Occupational Therapy Equipment
Peterborough City Council,Children's & Safeguarding,Children's Social Care,Agency Staff,04/06/2018,30177987,1406,Revenue,NonStop Recruitment Ltd,External Temporary Staff
Peterborough City Council,Corporate,Corporate,Non Revenue,04/06/2018,30178001,196062.97,Capital,Coulson & Son Ltd,Building And Site Works
Peterborough City Council,Adults,Strategic Commissioning - Management,Agency Staff,04/06/2018,30178019,9100,Revenue,Badenoch & Clark Ltd,External Temporary Staff
Peterborough City Council,Legal Services,Legal Services,Services,04/06/2018,30178020,2819.1,Revenue,"Corbino, Mr David",Legal Costs
Peterborough City Council,Chief Executive,Chief Executive,Services,04/06/2018,30178067,7626.45,Revenue,The Copyright Licencing Agency Ltd,Licences
Peterborough City Council,Adults,Independent Sector Placements,Services,04/06/2018,30178195,984.32,Revenue,Oakhouse Homecare Cambs Ltd,Residential Care
Peterborough City Council,Adults,Independent Sector Placements,Services,04/06/2018,30178197,1140.08,Revenue,Oakhouse Homecare Cambs Ltd,Residential Care
Peterborough City Council,Adults,Independent Sector Placements,Services,04/06/2018,30178199,1205.68,Revenue,Oakhouse Homecare Cambs Ltd,Residential Care
Peterborough City Council,Westcombe Engineering,Westcombe Engineering,"Tools, Equipment, Furniture & Materials",04/06/2018,30178224,688.18,Revenue,M O 8 Specialities Ltd,Materials
Peterborough City Council,Adults,Independent Sector Placements,Services,04/06/2018,30178340,7509.6,Revenue,SOCIAL CARE SOLUTIONS LTD,Home Care
Peterborough City Council,Adults,Independent Sector Placements,Services,04/06/2018,30178345,7509.6,Revenue,SOCIAL CARE SOLUTIONS LTD,Home Care
Peterborough City Council,Adults,Independent Sector Placements,Services,04/06/2018,30178420,3600,Revenue,Alysia Caring Ltd T/a Cherry Blossom care Home,Residential Care
Peterborough City Council,Adults,Independent Sector Placements,Services,04/06/2018,30178421,857.04,Revenue,Alysia Caring Ltd T/a Cherry Blossom care Home,Residential Care
Peterborough City Council,Adults,Independent Sector Placements,Services,04/06/2018,30178425,2930.04,Revenue,Alysia Caring Ltd T/a Cherry Blossom care Home,Residential Care
Peterborough City Council,Adults,Independent Sector Placements,Services,04/06/2018,30178426,1847.6,Revenue,Alysia Caring Ltd T/a Cherry Blossom care Home,Residential Care
Peterborough City Council,Adults,Independent Sector Placements,Services,04/06/2018,30178433,2128,Revenue,Alysia Caring Ltd T/a Cherry Blossom care Home,Residential Care
Peterborough City Council,Adults,Independent Sector Placements,Services,04/06/2018,30178434,1010.44,Revenue,Alysia Caring Ltd T/a Cherry Blossom care Home,Residential Care
Peterborough City Council,Adults,Independent Sector Placements,Services,04/06/2018,30178435,779.39,Revenue,Alysia Caring Ltd T/a Cherry Blossom care Home,Residential Care
Peterborough City Council,Adults,Independent Sector Placements,Services,04/06/2018,30178436,2825.04,Revenue,Alysia Caring Ltd T/a Cherry Blossom care Home,Residential Care
Peterborough City Council,Adults,Independent Sector Placements,Services,04/06/2018,30178437,3472.88,Revenue,Alysia Caring Ltd T/a Cherry Blossom care Home,Residential Care
Peterborough City Council,Commissioning and Commercial Operations,Clare Lodge,Agency Staff,04/06/2018,30178440,992,Revenue,Wrixon Care Services,External Temporary Staff
Peterborough City Council,Commissioning and Commercial Operations,Clare Lodge,Agency Staff,04/06/2018,30178441,1088,Revenue,Wrixon Care Services,External Temporary Staff
Peterborough City Council,Adults,Independent Sector Placements,Services,04/06/2018,30178583,2737.04,Revenue,Alysia Caring Ltd T/a Cherry Blossom care Home,Residential Care
Peterborough City Council,Adults,Independent Sector Placements,Services,04/06/2018,30178584,1883.32,Revenue,Alysia Caring Ltd T/a Cherry Blossom care Home,Residential Care
Peterborough City Council,Adults,Independent Sector Placements,Services,04/06/2018,30178585,3100,Revenue,Alysia Caring Ltd T/a Cherry Blossom care Home,Residential Care
Peterborough City Council,Communities,Targeted Youth Service,Contract Hire and Operating Leases,04/06/2018,30178739,655,Revenue,Tourmaster Coaches (Crowland) Ltd,Hired Transport
Peterborough City Council,Peterborough Serco Strategic Partnership,PSSP Retained Services,Services,04/06/2018,30179042,2515.49,Revenue,Whistl UK Ltd,Postage
Peterborough City Council,ICT,ICT,Services,04/06/2018,30179667,10278.63,Revenue,Capita Business Services Ltd,Computer Software
Peterborough City Council,Commissioning and Commercial Operations,Clare Lodge,Agency Staff,04/06/2018,30179798,504,Revenue,Wrixon Care Services,External Temporary Staff
Peterborough City Council,Commissioning and Commercial Operations,Clare Lodge,Agency Staff,04/06/2018,30179799,2304,Revenue,Wrixon Care Services,External Temporary Staff
Peterborough City Council,Commissioning and Commercial Operations,Clare Lodge,Agency Staff,04/06/2018,30179806,2224,Revenue,Wrixon Care Services,External Temporary Staff
Peterborough City Council,Adults,Independent Sector Placements,Services,04/06/2018,30179900,7700.4,Revenue,SOCIAL CARE SOLUTIONS LTD,Home Care
Peterborough City Council,Adults,Independent Sector Placements,Services,04/06/2018,30179902,2472.64,Revenue,SOCIAL CARE SOLUTIONS LTD,Home Care
Peterborough City Council,"Cemeteries, Cremation & Registrars",Registration Service,Repair & Maintenance of Buildings,04/06/2018,30180152,2325,Revenue,The Lawns(Peterborough) Ltd,Service Charges - Premises
Peterborough City Council,Other - Exclude,Other,Services,04/06/2018,30180256,349110.88,Revenue,NHS England,Grant Payment
Peterborough City Council,Adults,Strategic Commissioning - Management,Agency Staff,04/06/2018,30180354,2362.88,Revenue,Reed Specialist Recruitment Limited,External Temporary Staff
Peterborough City Council,Adults,Independent Sector Placements,Services,04/06/2018,30180521,795.75,Revenue,COMFORCARE SENIOR SERVICES,Home Care
Peterborough City Council,Adults,Independent Sector Placements,Services,04/06/2018,30180522,1505.75,Revenue,COMFORCARE SENIOR SERVICES,Home Care
Peterborough City Council,Adults,Independent Sector Placements,Services,04/06/2018,30180523,1119.5,Revenue,COMFORCARE SENIOR SERVICES,Home Care
Peterborough City Council,ICT,ICT,Services,04/06/2018,30180628,8320,Revenue,Imperial Civil Enforcement Solutions,Computer Software
Peterborough City Council,Communities,Cohesion,Agency Staff,04/06/2018,30180633,1136.16,Revenue,Reed Specialist Recruitment Limited,External Temporary Staff
Peterborough City Council,Communities,Cohesion,Agency Staff,04/06/2018,30180641,1136.16,Revenue,Reed Specialist Recruitment Limited,External Temporary Staff
Peterborough City Council,Communities,Cohesion,Agency Staff,04/06/2018,30180644,946.8,Revenue,Reed Specialist Recruitment Limited,External Temporary Staff
Peterborough City Council,Communities,Cohesion,Agency Staff,04/06/2018,30180662,1136.16,Revenue,Reed Specialist Recruitment Limited,External Temporary Staff
Peterborough City Council,Peterborough Serco Strategic Partnership,Peterborough Serco Strategic Partnership,Services,04/06/2018,30180704,3778.63,Revenue,Capita Business Services Ltd,Computer Software
Peterborough City Council,Corporate,Corporate,Non Revenue,04/06/2018,30180709,1462.5,Capital,Barker Storey Matthews,Consultants Fees
Peterborough City Council,Legal Services,Legal Services,Agency Staff,04/06/2018,30180712,594.11,Revenue,Reed Specialist Recruitment Limited,External Temporary Staff
Peterborough City Council,Adults,Therapy/Reablement/Community Equipment,Agency Staff,04/06/2018,30180720,1392.9,Revenue,Swim Recruitment,External Temporary Staff
Peterborough City Council,Legal Services,Legal Services,Agency Staff,04/06/2018,30180721,844.8,Revenue,Reed Specialist Recruitment Limited,External Temporary Staff
Peterborough City Council,Legal Services,Legal Services,Agency Staff,04/06/2018,30180722,2025.38,Revenue,Reed Specialist Recruitment Limited,External Temporary Staff
Peterborough City Council,Legal Services,Legal Services,Agency Staff,04/06/2018,30180724,864.01,Revenue,Reed Specialist Recruitment Limited,External Temporary Staff
Peterborough City Council,Legal Services,Legal Services,Agency Staff,04/06/2018,30180725,1485.28,Revenue,Reed Specialist Recruitment Limited,External Temporary Staff
Peterborough City Council,Corporate,Corporate,Non Revenue,04/06/2018,30180731,2583.6,Capital,Reed Specialist Recruitment Limited,Consultants Fees
Peterborough City Council,Corporate,Corporate,Non Revenue,04/06/2018,30180732,619490.07,Balance Sheet,Teachers Pensions,Pensions
Peterborough City Council,Adults,Independent Sector Placements,Services,04/06/2018,8000116038,738.25,Revenue,COMFORCARE SENIOR SERVICES,Home Care
Peterborough City Council,Adults,Independent Sector Placements,Services,04/06/2018,8000116043,2904,Revenue,COMFORCARE SENIOR SERVICES,Home Care
Peterborough City Council,Adults,Independent Sector Placements,Services,04/06/2018,8000116045,627.5,Revenue,COMFORCARE SENIOR SERVICES,Home Care
Peterborough City Council,Adults,Independent Sector Placements,Services,04/06/2018,8000116046,782.25,Revenue,COMFORCARE SENIOR SERVICES,Home Care
Peterborough City Council,Adults,Independent Sector Placements,Services,04/06/2018,8000116047,744.5,Revenue,COMFORCARE SENIOR SERVICES,Home Care
Peterborough City Council,Adults,Independent Sector Placements,Services,04/06/2018,8000116048,932.25,Revenue,COMFORCARE SENIOR SERVICES,Home Care
Peterborough City Council,Adults,Independent Sector Placements,Services,04/06/2018,8000116052,742,Revenue,COMFORCARE SENIOR SERVICES,Home Care
Peterborough City Council,Adults,Independent Sector Placements,Services,04/06/2018,8000116053,1017,Revenue,COMFORCARE SENIOR SERVICES,Home Care
Peterborough City Council,Adults,Independent Sector Placements,Services,04/06/2018,8000116054,2260.5,Revenue,COMFORCARE SENIOR SERVICES,Home Care
Peterborough City Council,Adults,Independent Sector Placements,Services,04/06/2018,8000116055,1110,Revenue,COMFORCARE SENIOR SERVICES,Home Care
Peterborough City Council,Adults,Independent Sector Placements,Services,04/06/2018,8000116058,832.75,Revenue,COMFORCARE SENIOR SERVICES,Home Care
Peterborough City Council,Adults,Independent Sector Placements,Services,04/06/2018,8000116059,1061.25,Revenue,COMFORCARE SENIOR SERVICES,Home Care
Peterborough City Council,Adults,Independent Sector Placements,Services,04/06/2018,8000116060,2212.5,Revenue,COMFORCARE SENIOR SERVICES,Home Care
Peterborough City Council,Adults,Independent Sector Placements,Services,04/06/2018,8000116061,1688.75,Revenue,COMFORCARE SENIOR SERVICES,Home Care
Peterborough City Council,Adults,Independent Sector Placements,Services,04/06/2018,8000116063,578.25,Revenue,COMFORCARE SENIOR SERVICES,Home Care
Peterborough City Council,Adults,Independent Sector Placements,Services,04/06/2018,8000116065,1333.5,Revenue,COMFORCARE SENIOR SERVICES,Home Care
Peterborough City Council,Adults,Independent Sector Placements,Services,04/06/2018,8000116068,1480.75,Revenue,COMFORCARE SENIOR SERVICES,Home Care
Peterborough City Council,Adults,Independent Sector Placements,Services,04/06/2018,8000116071,735,Revenue,COMFORCARE SENIOR SERVICES,Home Care
Peterborough City Council,Adults,Independent Sector Placements,Services,04/06/2018,8000116072,837.75,Revenue,COMFORCARE SENIOR SERVICES,Home Care
Peterborough City Council,Adults,Independent Sector Placements,Services,04/06/2018,8000116073,617.5,Revenue,COMFORCARE SENIOR SERVICES,Home Care
Peterborough City Council,Adults,Independent Sector Placements,Services,04/06/2018,8000116074,798,Revenue,COMFORCARE SENIOR SERVICES,Home Care
Peterborough City Council,Adults,Independent Sector Placements,Services,04/06/2018,8000116075,1856.25,Revenue,COMFORCARE SENIOR SERVICES,Home Care
Peterborough City Council,Adults,Independent Sector Placements,Services,04/06/2018,8000116079,838.75,Revenue,COMFORCARE SENIOR SERVICES,Home Care
Peterborough City Council,Adults,Independent Sector Placements,Services,04/06/2018,8000116080,1737,Revenue,COMFORCARE SENIOR SERVICES,Home Care
Peterborough City Council,Adults,Independent Sector Placements,Services,04/06/2018,8000116081,523.75,Revenue,COMFORCARE SENIOR SERVICES,Home Care
Peterborough City Council,Adults,Independent Sector Placements,Services,04/06/2018,8000116082,840,Revenue,COMFORCARE SENIOR SERVICES,Home Care
Peterborough City Council,Adults,Independent Sector Placements,Services,04/06/2018,8000116083,1861.25,Revenue,COMFORCARE SENIOR SERVICES,Home Care
Peterborough City Council,Adults,Independent Sector Placements,Services,04/06/2018,8000116085,1053.25,Revenue,COMFORCARE SENIOR SERVICES,Home Care
Peterborough City Council,Adults,Independent Sector Placements,Services,04/06/2018,8000116086,616,Revenue,COMFORCARE SENIOR SERVICES,Home Care
Peterborough City Council,Adults,Independent Sector Placements,Services,04/06/2018,8000116087,2336.75,Revenue,COMFORCARE SENIOR SERVICES,Home Care
Peterborough City Council,Adults,Independent Sector Placements,Services,04/06/2018,8000117416,1313,Revenue,COMFORCARE SENIOR SERVICES,Home Care
Peterborough City Council,Children's & Safeguarding,Commissioning - CSC,Services,04/06/2018,8000117433,673.84,Revenue,Redacted Personal Data,Financial Assistance
Peterborough City Council,Children's & Safeguarding,Commissioning - CSC,Services,04/06/2018,8000117433,766.34,Revenue,Redacted Personal Data,Financial Assistance
Peterborough City Council,Children's & Safeguarding,Commissioning - CSC,Services,04/06/2018,8000117433,576.38,Revenue,Redacted Personal Data,Financial Assistance
Peterborough City Council,Children's & Safeguarding,Commissioning - CSC,Services,04/06/2018,8000117433,866.92,Revenue,Redacted Personal Data,Financial Assistance
Peterborough City Council,Children's & Safeguarding,Commissioning - CSC,Services,04/06/2018,8000117433,2022.82,Revenue,Redacted Personal Data,Financial Assistance
Peterborough City Council,Children's & Safeguarding,Commissioning - CSC,Services,04/06/2018,8000117433,627.18,Revenue,Redacted Personal Data,Financial Assistance
Peterborough City Council,Children's & Safeguarding,Commissioning - CSC,Services,04/06/2018,8000117433,748.76,Revenue,Redacted Personal Data,Financial Assistance
Peterborough City Council,Children's & Safeguarding,Commissioning - CSC,Services,04/06/2018,8000117433,748.76,Revenue,Redacted Personal Data,Financial Assistance
Peterborough City Council,Children's & Safeguarding,Commissioning - CSC,Services,04/06/2018,8000117433,1260,Revenue,Redacted Personal Data,Financial Assistance
Peterborough City Council,Children's & Safeguarding,Children's Social Care,Rents,06/06/2018,30173702,3025.97,Revenue,Stor-A-File Ltd,Rent
Peterborough City Council,Commissioning and Commercial Operations,Commissioning,Services,06/06/2018,30176540,929.44,Revenue,CAPITA Translation and Interpreting,Interpretation Expenses
Peterborough City Council,Commissioning and Commercial Operations,Commissioning,Services,06/06/2018,30176568,553,Revenue,CAPITA Translation and Interpreting,Interpretation Expenses
Peterborough City Council,Commissioning and Commercial Operations,Commissioning,Services,06/06/2018,30176635,558.8,Revenue,CAPITA Translation and Interpreting,Interpretation Expenses
Peterborough City Council,Commissioning and Commercial Operations,Commissioning,Services,06/06/2018,30176638,501.93,Revenue,CAPITA Translation and Interpreting,Interpretation Expenses
Peterborough City Council,Commissioning and Commercial Operations,Commissioning,Services,06/06/2018,30176640,3150.18,Revenue,CAPITA Translation and Interpreting,Interpretation Expenses
Peterborough City Council,Children's & Safeguarding,Children's Social Care,Services,06/06/2018,30177595,1248,Revenue,The ADCS Ltd,Conferences
Peterborough City Council,"Cemeteries, Cremation & Registrars",Bereavement Service,Energy Costs,06/06/2018,30177627,2433.25,Revenue,Corona Energy Retail 4 Limited,Gas
Peterborough City Council,Communities,Cultural Services,Energy Costs,06/06/2018,30177627,2777.7,Revenue,Corona Energy Retail 4 Limited,Gas
Peterborough City Council,Education,Pupil Referral Unit,Energy Costs,06/06/2018,30177627,519.73,Revenue,Corona Energy Retail 4 Limited,Gas
Peterborough City Council,Communities,Cultural Services,Energy Costs,06/06/2018,30177627,1549.27,Revenue,Corona Energy Retail 4 Limited,Gas
Peterborough City Council,Communities,Cultural Services,Energy Costs,06/06/2018,30177667,5367.22,Revenue,Corona Energy Retail 4 Limited,Gas
Peterborough City Council,Public Health,PH Commissioning,Third Party Payments,06/06/2018,30177908,2832.99,Revenue,Solutions 4 Health Ltd,Third Party Payments - Contract
Peterborough City Council,Commissioning and Commercial Operations,Commissioning Team,Services,06/06/2018,30177960,3095.92,Revenue,NPS Peterborough Ltd,Consultants Fees
Peterborough City Council,Corporate,Corporate,Non Revenue,06/06/2018,30177983,2915,Capital,NPS Peterborough Ltd,Consultants Fees
Peterborough City Council,Adults,Therapy/Reablement/Community Equipment,Agency Staff,06/06/2018,30177993,4766.34,Revenue,Swim Recruitment,External Temporary Staff
Peterborough City Council,Development and Construction,Planning Compliance,Agency Staff,06/06/2018,30178066,2029.5,Revenue,Park Avenue Recruitment Limited,External Temporary Staff
Peterborough City Council,Communities,Cultural Services,Services,06/06/2018,30178068,1890,Revenue,Term Times,Advertising
Peterborough City Council,Children's & Safeguarding,External Education Placements,Services,06/06/2018,30178097,1678,Revenue,The Holbeach William Stukeley Primary School,Out Of Area Education Costs
Peterborough City Council,Children's & Safeguarding,External Education Placements,Services,06/06/2018,30178099,2670,Revenue,Affinity Multi Academy Trust,Education Expenses
Peterborough City Council,Peterborough Highway Services,Highway & Drainage Control,Agency Staff,06/06/2018,30178213,1465.2,Revenue,Matchtech,External Temporary Staff
Peterborough City Council,Children's & Safeguarding,External Education Placements,Services,06/06/2018,30178214,4845.34,Revenue,Copthill School Ltd,Out Of Area Education Costs
Peterborough City Council,Legal Services,Legal Services,Agency Staff,06/06/2018,30178237,579.48,Revenue,Venn Group Ltd,External Temporary Staff
Peterborough City Council,Legal Services,Legal Services,Agency Staff,06/06/2018,30178239,740.86,Revenue,Venn Group Ltd,External Temporary Staff
Peterborough City Council,Legal Services,Legal Services,Agency Staff,06/06/2018,30178240,858.09,Revenue,Venn Group Ltd,External Temporary Staff
Peterborough City Council,Legal Services,Legal Services,Agency Staff,06/06/2018,30178241,1725,Revenue,Venn Group Ltd,External Temporary Staff
Peterborough City Council,Legal Services,Legal Services,Agency Staff,06/06/2018,30178243,783.06,Revenue,Venn Group Ltd,External Temporary Staff
Peterborough City Council,Adults,Independent Sector Placements,Services,06/06/2018,30178268,1107.6,Revenue,Mencap,Home Care
Peterborough City Council,HR,HR WFD & Training,Services,06/06/2018,30178277,10000,Revenue,Learning Pool Limited,Training
Peterborough City Council,HR,HR WFD & Training,Services,06/06/2018,30178287,3375,Revenue,Anglia Ruskin University,Training
Peterborough City Council,Adults,Independent Sector Placements,Services,06/06/2018,30178339,6591,Revenue,SOCIAL CARE SOLUTIONS LTD,Home Care
Peterborough City Council,Adults,Home Services Delivery Model,Services,06/06/2018,30178350,918,Revenue,Handyman Steve,Contractors
Peterborough City Council,Education,Special Educational Needs / Inclusion,Catering,06/06/2018,30178353,836,Revenue,Italian Community Association,Hospitality
Peterborough City Council,Corporate,Corporate,Non Revenue,06/06/2018,30178366,6000,Capital,KB55 Ltd,Building And Site Works
Peterborough City Council,Adults,Independent Sector Placements,Services,06/06/2018,30178422,883.96,Revenue,Pilgrim Havens,Residential Care
Peterborough City Council,Adults,Independent Sector Placements,Services,06/06/2018,30178427,1325.48,Revenue,Pilgrim Havens,Residential Care
Peterborough City Council,Adults,Independent Sector Placements,Services,06/06/2018,30178428,1567.48,Revenue,Pilgrim Havens,Residential Care
Peterborough City Council,Adults,Independent Sector Placements,Services,06/06/2018,30178429,1617.16,Revenue,Pilgrim Havens,Residential Care
Peterborough City Council,Adults,Independent Sector Placements,Services,06/06/2018,30178467,1235.19,Revenue,Athena (Ashlynn Grange),Residential Care
Peterborough City Council,Education,Special Educational Needs / Inclusion,Services,06/06/2018,30178479,4000,Revenue,1st Planner Ltd,Hired Services
Peterborough City Council,HR,HR,Services,06/06/2018,30178482,658.5,Revenue,AXA PPP Healthcare OHS Ltd,Consultants Fees
Peterborough City Council,City Centre Management,"Markets, Tourism & Events","Tools, Equipment, Furniture & Materials",06/06/2018,30178515,598.08,Revenue,Elgate Products Limited,Items For Resale
Peterborough City Council,Adults,Independent Sector Placements,Services,06/06/2018,30178586,1023.84,Revenue,Pilgrim Havens,Residential Care
Peterborough City Council,Adults,Independent Sector Placements,Services,06/06/2018,30178587,1269.48,Revenue,Pilgrim Havens,Residential Care
Peterborough City Council,Adults,Independent Sector Placements,Services,06/06/2018,30178588,562.9,Revenue,Pilgrim Havens,Residential Care
Peterborough City Council,Westcombe Engineering,Westcombe Engineering,"Tools, Equipment, Furniture & Materials",06/06/2018,30178593,1031,Revenue,AALCO,Items For Resale
Peterborough City Council,Adults,Finance,Services,06/06/2018,30178594,3000,Revenue,Solutions 4 Health Ltd,Counselling
Peterborough City Council,City Centre Management,"Markets, Tourism & Events","Tools, Equipment, Furniture & Materials",06/06/2018,30178603,16890,Revenue,Scimitar Sports,Clothing
Peterborough City Council,Children's & Safeguarding,Early Help ASC/CSC,Services,06/06/2018,30178604,30000,Revenue,YMCA Cambridge & Peterborough Ltd,Hired Services
Peterborough City Council,Adults,Finance,Services,06/06/2018,30178615,3000,Revenue,Solutions 4 Health Ltd,Counselling
Peterborough City Council,Public Health,PH Commissioning,Third Party Payments,06/06/2018,30178616,-69949,Revenue,Solutions 4 Health Ltd,Third Party Payments - Contract
Peterborough City Council,Education,Special Educational Needs / Inclusion,Services,06/06/2018,30178786,3839.44,Revenue,Tripod Learning Ltd,Education Expenses
Peterborough City Council,Education,Special Educational Needs / Inclusion,Services,06/06/2018,30178791,3839.44,Revenue,Tripod Learning Ltd,Education Expenses
Peterborough City Council,Public Health,PH Commissioning,Third Party Payments,06/06/2018,30178849,68697.41,Revenue,Solutions 4 Health Ltd,Third Party Payments - Contract
Peterborough City Council,Public Health,PH Commissioning,Third Party Payments,06/06/2018,30178850,68697.41,Revenue,Solutions 4 Health Ltd,Third Party Payments - Contract
Peterborough City Council,"Waste, Cleansing and Open Spaces",Waste Management,Services,06/06/2018,30178872,21495.15,Revenue,AmeyCespa (East) Ltd,Recycling
Peterborough City Council,Coroners Service,Coroners Service,Third Party Payments,06/06/2018,30178873,229895,Revenue,Cambridgeshire County Council,Third Party Payments - Contract
Peterborough City Council,Children's & Safeguarding,External Education Placements,Services,06/06/2018,30179087,2800,Revenue,The Peterborough School Limited,Out Of Area Education Costs
Peterborough City Council,Education,Special Educational Needs / Inclusion,Agency Staff,06/06/2018,30179164,5500,Revenue,Permanent Futures Ltd,External Temporary Staff
Peterborough City Council,Adults,Home Services Delivery Model,Services,06/06/2018,30179178,1538.5,Revenue,Fletton Electrics Ltd,Contractors
Peterborough City Council,Westcombe Engineering,Westcombe Engineering,"Tools, Equipment, Furniture & Materials",06/06/2018,30179379,722.4,Revenue,Barron Clark Castings Ltd,Items For Resale
Peterborough City Council,Westcombe Engineering,Westcombe Engineering,"Tools, Equipment, Furniture & Materials",06/06/2018,30179380,846.19,Revenue,Barron Clark Castings Ltd,Items For Resale
Peterborough City Council,Adults,Independent Sector Placements,Services,06/06/2018,30179484,1980,Revenue,Athena (Ashlynn Grange),Residential Care
Peterborough City Council,Adults,Independent Sector Placements,Services,06/06/2018,30179485,1569.36,Revenue,Athena (Ashlynn Grange),Residential Care
Peterborough City Council,Adults,Independent Sector Placements,Services,06/06/2018,30179486,1768.56,Revenue,Athena (Ashlynn Grange),Residential Care
Peterborough City Council,Adults,Independent Sector Placements,Services,06/06/2018,30179487,1685.72,Revenue,Athena (Ashlynn Grange),Residential Care
Peterborough City Council,Adults,Independent Sector Placements,Services,06/06/2018,30179488,1644.72,Revenue,Athena (Ashlynn Grange),Residential Care
Peterborough City Council,Adults,Independent Sector Placements,Services,06/06/2018,30179489,1115.2,Revenue,Athena (Ashlynn Grange),Residential Care
Peterborough City Council,Adults,Independent Sector Placements,Services,06/06/2018,30179490,1146.32,Revenue,Athena (Ashlynn Grange),Residential Care
Peterborough City Council,ICT,ICT,Agency Staff,06/06/2018,30179556,2500,Revenue,Cranford Solutions Ltd,External Temporary Staff
Peterborough City Council,Adults,Independent Sector Placements,Services,06/06/2018,30179578,1244.68,Revenue,Athena (Ashlynn Grange),Residential Care
Peterborough City Council,Adults,Independent Sector Placements,Services,06/06/2018,30179579,1606.56,Revenue,Athena (Ashlynn Grange),Residential Care
Peterborough City Council,Adults,Independent Sector Placements,Services,06/06/2018,30179584,1816.56,Revenue,Athena (Ashlynn Grange),Residential Care
Peterborough City Council,Adults,Independent Sector Placements,Services,06/06/2018,30179586,2318.36,Revenue,Athena (Ashlynn Grange),Residential Care
Peterborough City Council,Adults,Independent Sector Placements,Services,06/06/2018,30179588,1703.36,Revenue,Athena (Ashlynn Grange),Residential Care
Peterborough City Council,Adults,Independent Sector Placements,Services,06/06/2018,30179589,1821.88,Revenue,Athena (Ashlynn Grange),Residential Care
Peterborough City Council,Adults,Independent Sector Placements,Services,06/06/2018,30179590,920.92,Revenue,Athena (Ashlynn Grange),Residential Care
Peterborough City Council,Adults,Independent Sector Placements,Services,06/06/2018,30179591,904.8,Revenue,Athena (Ashlynn Grange),Residential Care
Peterborough City Council,Adults,Independent Sector Placements,Services,06/06/2018,30179595,1315.16,Revenue,Athena (Ashlynn Grange),Residential Care
Peterborough City Council,Adults,Independent Sector Placements,Services,06/06/2018,30179596,1757.48,Revenue,Athena (Ashlynn Grange),Residential Care
Peterborough City Council,Adults,Independent Sector Placements,Services,06/06/2018,30179597,810.92,Revenue,Athena (Ashlynn Grange),Residential Care
Peterborough City Council,Adults,Independent Sector Placements,Services,06/06/2018,30179598,1821.88,Revenue,Athena (Ashlynn Grange),Residential Care
Peterborough City Council,Adults,Independent Sector Placements,Services,06/06/2018,30179599,1685.4,Revenue,Athena (Ashlynn Grange),Residential Care
Peterborough City Council,Adults,Independent Sector Placements,Services,06/06/2018,30179600,1731.44,Revenue,Athena (Ashlynn Grange),Residential Care
Peterborough City Council,Adults,Independent Sector Placements,Services,06/06/2018,30179602,1014.96,Revenue,Athena (Ashlynn Grange),Residential Care
Peterborough City Council,Adults,Independent Sector Placements,Services,06/06/2018,30179604,1821.88,Revenue,Athena (Ashlynn Grange),Residential Care
Peterborough City Council,Adults,Independent Sector Placements,Services,06/06/2018,30179606,2318.36,Revenue,Athena (Ashlynn Grange),Residential Care
Peterborough City Council,Adults,Independent Sector Placements,Services,06/06/2018,30179607,812.83,Revenue,Athena (Ashlynn Grange),Residential Care
Peterborough City Council,Adults,Independent Sector Placements,Services,06/06/2018,30179642,770.38,Revenue,Pilgrim Havens,Residential Care
Peterborough City Council,Children's & Safeguarding,External Education Placements,Services,06/06/2018,30179780,9842.11,Revenue,Knossington Grange School Ltd,Education Expenses
Peterborough City Council,Commissioning and Commercial Operations,Clare Lodge,Agency Staff,06/06/2018,30179791,1472,Revenue,Wrixon Care Services,External Temporary Staff
Peterborough City Council,Commissioning and Commercial Operations,Clare Lodge,Agency Staff,06/06/2018,30179801,944,Revenue,Wrixon Care Services,External Temporary Staff
Peterborough City Council,Commissioning and Commercial Operations,Clare Lodge,Agency Staff,06/06/2018,30179808,544,Revenue,Wrixon Care Services,External Temporary Staff
Peterborough City Council,Commissioning and Commercial Operations,Clare Lodge,Agency Staff,06/06/2018,30179809,944,Revenue,Wrixon Care Services,External Temporary Staff
Peterborough City Council,Commissioning and Commercial Operations,Clare Lodge,Agency Staff,06/06/2018,30180217,634.03,Revenue,Reed Specialist Recruitment Limited,External Temporary Staff
Peterborough City Council,Corporate Property,Office Accomodation,Agency Staff,06/06/2018,30180224,4730.04,Revenue,Reed Specialist Recruitment Limited,External Temporary Staff
Peterborough City Council,Children's & Safeguarding,Early Help ASC/CSC,Agency Staff,06/06/2018,30180226,528.9,Revenue,Reed Specialist Recruitment Limited,External Temporary Staff
Peterborough City Council,Legal Services,Legal Services,Agency Staff,06/06/2018,30180228,1654.1,Revenue,Reed Specialist Recruitment Limited,External Temporary Staff
Peterborough City Council,Development and Construction,Development Management,Agency Staff,06/06/2018,30180239,1000.21,Revenue,Reed Specialist Recruitment Limited,External Temporary Staff
Peterborough City Council,Communities,Targeted Youth Service,Employee Expenses,06/06/2018,30180323,12137.14,Revenue,Teachers Pensions,Pensions
Peterborough City Council,Development and Construction,Development Management,Agency Staff,06/06/2018,30180336,1161.88,Revenue,Reed Specialist Recruitment Limited,External Temporary Staff
Peterborough City Council,Adults,Strategic Commissioning - Management,Agency Staff,06/06/2018,30180338,639.48,Revenue,Reed Specialist Recruitment Limited,External Temporary Staff
Peterborough City Council,Adults,Strategic Commissioning - Management,Agency Staff,06/06/2018,30180340,673.68,Revenue,Reed Specialist Recruitment Limited,External Temporary Staff
Peterborough City Council,Adults,Strategic Commissioning - Management,Agency Staff,06/06/2018,30180346,871.66,Revenue,Reed Specialist Recruitment Limited,External Temporary Staff
Peterborough City Council,Corporate,Corporate,Non Revenue,06/06/2018,30180411,2268.6,Capital,Reed Specialist Recruitment Limited,Consultants Fees
Peterborough City Council,Commissioning and Commercial Operations,Commissioning Team,Agency Staff,06/06/2018,30180542,561.43,Revenue,Reed Specialist Recruitment Limited,External Temporary Staff
Peterborough City Council,Adults,Block Contracts,Third Party Payments,06/06/2018,30180575,4836.07,Revenue,ABOUT ME CARE AND SUPPORT LTD,Third Party Payments - Contract
Peterborough City Council,Corporate,Corporate,Non Revenue,06/06/2018,30180583,566,Capital,Enterprise Managed Services Limited,Building And Site Works
Peterborough City Council,Corporate,Corporate,Non Revenue,06/06/2018,30180584,877,Capital,Enterprise Managed Services Limited,Consultants Fees
Peterborough City Council,Constitutional Services,Elections,Services,06/06/2018,30180601,6801.24,Revenue,Royal Mail,Postage
Peterborough City Council,Peterborough Highway Services,Transport & Infrastructure Commissioning,Energy Costs,06/06/2018,30180652,517.26,Revenue,British Gas Business,Electricity
Peterborough City Council,Corporate Property,Office Accomodation,Agency Staff,06/06/2018,30180685,4730.04,Revenue,Reed Specialist Recruitment Limited,External Temporary Staff
Peterborough City Council,Public Health,PH Commissioning,Services,06/06/2018,30180686,244688.83,Revenue,Cambs & P'boro NHS Foundation Trust,Hired Services
Peterborough City Council,Communities,Performance & Information,Agency Staff,06/06/2018,30180688,985.88,Revenue,Reed Specialist Recruitment Limited,External Temporary Staff
Peterborough City Council,ICT,ICT,Agency Staff,06/06/2018,30180689,678.8,Revenue,Reed Specialist Recruitment Limited,External Temporary Staff
Peterborough City Council,Commissioning and Commercial Operations,Commissioning Team,Agency Staff,06/06/2018,30180692,1794.88,Revenue,Reed Specialist Recruitment Limited,External Temporary Staff
Peterborough City Council,Financial Services,Finance,Agency Staff,06/06/2018,30180694,726.91,Revenue,Reed Specialist Recruitment Limited,External Temporary Staff
Peterborough City Council,Legal Services,Legal Services,Agency Staff,06/06/2018,30180695,1508.15,Revenue,Reed Specialist Recruitment Limited,External Temporary Staff
Peterborough City Council,Peterborough Highway Services,Highway & Drainage Control,Agency Staff,06/06/2018,30180696,1436.2,Revenue,Reed Specialist Recruitment Limited,External Temporary Staff
Peterborough City Council,Adults,Strategic Commissioning - Management,Agency Staff,06/06/2018,30180697,593.38,Revenue,Reed Specialist Recruitment Limited,External Temporary Staff
Peterborough City Council,Corporate,Corporate,Non Revenue,06/06/2018,30180703,1346.16,Capital,Reed Specialist Recruitment Limited,Consultants Fees
Peterborough City Council,Financial Services,Finance,Agency Staff,06/06/2018,30180705,1324.44,Revenue,Reed Specialist Recruitment Limited,External Temporary Staff
Peterborough City Council,Legal Services,Legal Services,Agency Staff,06/06/2018,30180710,2062.5,Revenue,Venn Group Ltd,External Temporary Staff
Peterborough City Council,Communities,Other Enforcement,Services,06/06/2018,30180715,2892.93,Revenue,Quadrant Security Group Ltd,Cctv
Peterborough City Council,Education,Financing - Resources,Services,06/06/2018,30180718,3124.68,Revenue,Cambian Autism Services Ltd,Education Expenses
Peterborough City Council,Corporate,Corporate,Non Revenue,06/06/2018,30180730,2583.6,Capital,Reed Specialist Recruitment Limited,Consultants Fees
Peterborough City Council,Commissioning and Commercial Operations,Early Years & Quality Improvement,Services,06/06/2018,30180741,818.06,Revenue,Redacted Personal Data,Grant Payment
Peterborough City Council,Children's & Safeguarding,Children's Social Care,Services,06/06/2018,30180743,734.5,Revenue,Redacted Personal Data,Financial Assistance
Peterborough City Council,Legal Services,Legal Services,Agency Staff,06/06/2018,30180764,1566.29,Revenue,Reed Specialist Recruitment Limited,External Temporary Staff
Peterborough City Council,Adults,Independent Sector Placements,Services,06/06/2018,30180785,617.4,Revenue,Axiom Housing Association Ltd,Home Care
Peterborough City Council,Children's & Safeguarding,Child Health,Services,06/06/2018,30180808,3514,Revenue,Ofsted,Subscriptions
Peterborough City Council,Legal Services,Legal Services,Services,06/06/2018,30180820,7523.54,Revenue,Thomson Reuters UK Limited,Subscriptions
Peterborough City Council,Legal Services,Legal Services,Services,06/06/2018,30180821,17069.04,Revenue,Thomson Reuters UK Limited,Subscriptions
Peterborough City Council,Corporate,Corporate,Non Revenue,06/06/2018,30180832,500,Capital,Weightmans LLP,Professional/Legal Fees
Peterborough City Council,Legal Services,Legal Services,Agency Staff,06/06/2018,30180838,536.37,Revenue,Venn Group Ltd,External Temporary Staff
Peterborough City Council,Peterborough Highway Services,Highway & Drainage Control,Services,06/06/2018,30180839,720.25,Revenue,AECOM I & E Ltd,Consultants Fees 
Peterborough City Council,Children's & Safeguarding,Access to Resources & Specialist Commissioning,Services,06/06/2018,30180840,18074.19,Revenue,Exeter Royal Academy for Deaf Education,Boarding Out Allowances
Peterborough City Council,Communities,Housing,Services,06/06/2018,30180848,560,Revenue,Singh and Sons Property Management Ltd,Temporary Accommodation Costs
Peterborough City Council,Adults,Strategic Commissioning - Management,Agency Staff,06/06/2018,30180863,3415.1,Revenue,Sanctuary Personnel Ltd,External Temporary Staff
Peterborough City Council,Communities,Housing,Services,06/06/2018,30180866,532,Revenue,Eastfield Guesthouse,Temporary Accommodation Costs
Peterborough City Council,Communities,Housing,Services,06/06/2018,30180867,553,Revenue,Eastfield Guesthouse,Temporary Accommodation Costs
Peterborough City Council,Communities,Housing,Services,06/06/2018,30180872,532,Revenue,Eastfield Guesthouse,Temporary Accommodation Costs
Peterborough City Council,Communities,Housing,Services,06/06/2018,30180877,532,Revenue,Eastfield Guesthouse,Temporary Accommodation Costs
Peterborough City Council,Communities,Housing,Services,06/06/2018,30180880,553,Revenue,Eastfield Guesthouse,Temporary Accommodation Costs
Peterborough City Council,Communities,Housing,Services,06/06/2018,30180887,553,Revenue,Eastfield Guesthouse,Temporary Accommodation Costs
Peterborough City Council,Communities,Housing,Services,06/06/2018,30180888,553,Revenue,Eastfield Guesthouse,Temporary Accommodation Costs
Peterborough City Council,Corporate,Corporate,Non Revenue,06/06/2018,30180891,2026.21,Balance Sheet,The Prudential Assurance Company Ltd,Pensions
Peterborough City Council,Education,Service Director Education,Employee Expenses,06/06/2018,30180892,26641.68,Revenue,Teachers Pensions,Pensions
Peterborough City Council,Corporate,Corporate,Non Revenue,06/06/2018,30180893,2850.45,Balance Sheet,The Prudential Assurance Company Ltd,Pensions
Peterborough City Council,Education,School Standards & Effectiveness,Services,06/06/2018,30180902,1023,Revenue,Caythorpe Primary School,Grant Payment
Peterborough City Council,Communities,Housing,Services,06/06/2018,30180903,688,Revenue,The Guinness Partnership,Financial Assistance
Peterborough City Council,Communities,Housing,Services,06/06/2018,30180904,5783.64,Revenue,The Guinness Partnership,Financial Assistance
Peterborough City Council,Westcombe Engineering,Westcombe Engineering,"Tools, Equipment, Furniture & Materials",06/06/2018,30180908,750,Revenue,Rowes Precision Products Ltd,Items For Resale
Peterborough City Council,Communities,Housing,Services,06/06/2018,30180914,553,Revenue,Eastfield Guesthouse,Temporary Accommodation Costs
Peterborough City Council,Children's & Safeguarding,Children's Social Care,Public Transport,06/06/2018,30180915,8269.2,Revenue,R S P LTD,Public Transport
Peterborough City Council,Communities,Housing,Services,06/06/2018,30180920,553,Revenue,Eastfield Guesthouse,Temporary Accommodation Costs
Peterborough City Council,Communities,Housing,Services,06/06/2018,30180921,553,Revenue,Eastfield Guesthouse,Temporary Accommodation Costs
Peterborough City Council,Communities,Housing,Services,06/06/2018,30180922,553,Revenue,Eastfield Guesthouse,Temporary Accommodation Costs
Peterborough City Council,Communities,Housing,Services,06/06/2018,30180925,553,Revenue,Eastfield Guesthouse,Temporary Accommodation Costs
Peterborough City Council,Communities,Housing,Services,06/06/2018,30180927,553,Revenue,Eastfield Guesthouse,Temporary Accommodation Costs
Peterborough City Council,Communities,Housing,Services,06/06/2018,30180928,553,Revenue,Eastfield Guesthouse,Temporary Accommodation Costs
Peterborough City Council,Communities,Housing,Services,06/06/2018,30180930,553,Revenue,Eastfield Guesthouse,Temporary Accommodation Costs
Peterborough City Council,Communities,Housing,Services,06/06/2018,30180931,553,Revenue,Eastfield Guesthouse,Temporary Accommodation Costs
Peterborough City Council,Communities,Housing,Services,06/06/2018,30180932,553,Revenue,Eastfield Guesthouse,Temporary Accommodation Costs
Peterborough City Council,Communities,Housing,Services,06/06/2018,30180935,553,Revenue,Eastfield Guesthouse,Temporary Accommodation Costs
Peterborough City Council,Communities,Housing,Services,06/06/2018,30180936,553,Revenue,Eastfield Guesthouse,Temporary Accommodation Costs
Peterborough City Council,Communities,Housing,Services,06/06/2018,30180938,553,Revenue,Eastfield Guesthouse,Temporary Accommodation Costs
Peterborough City Council,Adults,Block Contracts,Third Party Payments,06/06/2018,30180951,17500,Revenue,Enabling Independence Service,Third Party Payments - Contract
Peterborough City Council,Adults,Independent Sector Placements,Services,06/06/2018,30180958,11021,Revenue,PHILIA LODGE REST HOME,Residential Care
Peterborough City Council,Adults,Independent Sector Placements,Services,06/06/2018,30180959,-2268.96,Revenue,STAR RESIDENTIAL HOME LTD,Residential Care
Peterborough City Council,Adults,Independent Sector Placements,Services,06/06/2018,30180960,2685.04,Revenue,STAR RESIDENTIAL HOME LTD,Residential Care
Peterborough City Council,Adults,Independent Sector Placements,Services,06/06/2018,30180961,2354.56,Revenue,STAR RESIDENTIAL HOME LTD,Residential Care
Peterborough City Council,Adults,Independent Sector Placements,Services,06/06/2018,30180962,3232.64,Revenue,STAR RESIDENTIAL HOME LTD,Residential Care
Peterborough City Council,Adults,Independent Sector Placements,Services,06/06/2018,30180963,2867.96,Revenue,STAR RESIDENTIAL HOME LTD,Residential Care
Peterborough City Council,Adults,Independent Sector Placements,Services,06/06/2018,30180964,1627.13,Revenue,PHILIA LODGE REST HOME,Residential Care
Peterborough City Council,Adults,Independent Sector Placements,Services,06/06/2018,30180965,1236.72,Revenue,PHILIA LODGE REST HOME,Residential Care
Peterborough City Council,Adults,Independent Sector Placements,Services,06/06/2018,30180966,2021.88,Revenue,PHILIA LODGE REST HOME,Residential Care
Peterborough City Council,Adults,Independent Sector Placements,Services,06/06/2018,30180967,1236.72,Revenue,PHILIA LODGE REST HOME,Residential Care
Peterborough City Council,Adults,Independent Sector Placements,Services,06/06/2018,30180968,848.32,Revenue,PHILIA LODGE REST HOME,Residential Care
Peterborough City Council,Corporate Items,Corporate Services,Services,06/06/2018,30180969,12747.3,Revenue,Pinsent Masons,Legal Costs
Peterborough City Council,Adults,Independent Sector Placements,Services,06/06/2018,30180974,1891.43,Revenue,PHILIA LODGE REST HOME,Residential Care
Peterborough City Council,Children's & Safeguarding,Access to Resources & Specialist Commissioning,Services,06/06/2018,30180982,19500,Revenue,Hillcrest Children Serv(2)Ltd t/a Options BESD (1) Ltd,Boarding Out Allowances
Peterborough City Council,Adults,Home Services Delivery Model,Third Party Payments,06/06/2018,30180984,20838.29,Revenue,YMCA Cambridge & Peterborough Ltd,Grant-Third Party
Peterborough City Council,Adults,Independent Sector Placements,Services,06/06/2018,30180992,1247.04,Revenue,PHILIA LODGE REST HOME,Residential Care
Peterborough City Council,Adults,Independent Sector Placements,Services,06/06/2018,30180993,1236.72,Revenue,PHILIA LODGE REST HOME,Residential Care
Peterborough City Council,Adults,Independent Sector Placements,Services,06/06/2018,30180995,2648,Revenue,PHILIA LODGE REST HOME,Residential Care
Peterborough City Council,Adults,Independent Sector Placements,Services,06/06/2018,30180996,2648,Revenue,PHILIA LODGE REST HOME,Residential Care
Peterborough City Council,Legal Services,Legal Services,Agency Staff,06/06/2018,30180999,2025.38,Revenue,Reed Specialist Recruitment Limited,External Temporary Staff
Peterborough City Council,Adults,Independent Sector Placements,Services,06/06/2018,30181008,3224,Revenue,STAR RESIDENTIAL HOME LTD,Residential Care
Peterborough City Council,Adults,Independent Sector Placements,Cleaning & Domestic Supplies,06/06/2018,30181011,800,Revenue,EllyKay Cleaning Services,Cleaning Services
Peterborough City Council,Adults,Independent Sector Placements,Services,06/06/2018,30181013,3233.44,Revenue,STAR RESIDENTIAL HOME LTD,Residential Care
Peterborough City Council,Corporate Property,Commercial Propety,Services,06/06/2018,30181014,500,Revenue,Richardson Chartered Surveyors,Valuations
Peterborough City Council,Adults,Independent Sector Placements,Services,06/06/2018,30181017,3236.44,Revenue,STAR RESIDENTIAL HOME LTD,Residential Care
Peterborough City Council,Regulatory Services,Regulatory Services,"Printing, Stationery & General Office Expenses",06/06/2018,30181019,1633,Revenue,Northgate Public Services (UK) Ltd,Stationery
Peterborough City Council,ICT,ICT,Services,06/06/2018,30181026,2007.48,Revenue,Axiell Ltd,Computer Software
Peterborough City Council,Education,School Standards & Effectiveness,Services,06/06/2018,30181032,1260,Revenue,Neale Wade Academy,Grant Payment
Peterborough City Council,Education,School Standards & Effectiveness,Services,06/06/2018,30181033,1470,Revenue,Ling Moor Primary Academy,Grant Payment
Peterborough City Council,Education,School Standards & Effectiveness,Services,06/06/2018,30181034,3290,Revenue,Weston Hills Primary School,Grant Payment
Peterborough City Council,Education,School Standards & Effectiveness,Services,06/06/2018,30181035,1250,Revenue,Linchfield Community Primary School,Grant Payment
Peterborough City Council,Education,School Standards & Effectiveness,Services,06/06/2018,30181036,676,Revenue,Sir Harry Smith Community College,Grant Payment
Peterborough City Council,Commissioning and Commercial Operations,Early Years & Quality Improvement,Services,06/06/2018,30181037,633.75,Revenue,St Johns C of E Pre-School,Grant Payment
Peterborough City Council,Commissioning and Commercial Operations,Early Years & Quality Improvement,Services,06/06/2018,30181038,1430,Revenue,Little Stars Day Nursery,Grant Payment
Peterborough City Council,Commissioning and Commercial Operations,Early Years & Quality Improvement,Services,06/06/2018,30181039,1647.75,Revenue,Bretton Community Pre-School,Grant Payment
Peterborough City Council,Commissioning and Commercial Operations,Clare Lodge,Services,06/06/2018,30181065,750,Revenue,M Caton Associates Ltd,Purchased Social Care Services
Peterborough City Council,Commissioning and Commercial Operations,Clare Lodge,Agency Staff,06/06/2018,30181079,553.77,Revenue,Reed Specialist Recruitment Limited,External Temporary Staff
Peterborough City Council,Commissioning and Commercial Operations,Clare Lodge,Agency Staff,06/06/2018,30181081,757.22,Revenue,Reed Specialist Recruitment Limited,External Temporary Staff
Peterborough City Council,Commissioning and Commercial Operations,Clare Lodge,Agency Staff,06/06/2018,30181084,559.63,Revenue,Reed Specialist Recruitment Limited,External Temporary Staff
Peterborough City Council,Commissioning and Commercial Operations,Clare Lodge,Agency Staff,06/06/2018,30181133,551.85,Revenue,Reed Specialist Recruitment Limited,External Temporary Staff
Peterborough City Council,Education,HTS & CSC Transport,Contract Hire and Operating Leases,06/06/2018,8000117460,520.8,Revenue,Redacted Personal Data,Hired Transport
Peterborough City Council,Adults,Independent Sector Placements,Services,06/06/2018,8000117471,1547.56,Revenue,Redacted Personal Data,Adult Social Care Direct Payment
Peterborough City Council,Adults,Independent Sector Placements,Services,06/06/2018,8000117472,7512.6,Revenue,Redacted Personal Data,Adult Social Care Direct Payment
Peterborough City Council,Adults,Independent Sector Placements,Services,06/06/2018,8000117473,969.76,Revenue,Redacted Personal Data,Adult Social Care Direct Payment
Peterborough City Council,Adults,Independent Sector Placements,Services,06/06/2018,8000117474,1426.52,Revenue,Redacted Personal Data,Adult Social Care Direct Payment
Peterborough City Council,Adults,Independent Sector Placements,Services,06/06/2018,8000117476,1107.6,Revenue,Redacted Personal Data,Adult Social Care Direct Payment
Peterborough City Council,Adults,Independent Sector Placements,Services,06/06/2018,8000117477,795.56,Revenue,Redacted Personal Data,Adult Social Care Direct Payment
Peterborough City Council,Adults,Independent Sector Placements,Services,06/06/2018,8000117478,978.4,Revenue,Redacted Personal Data,Adult Social Care Direct Payment
Peterborough City Council,Adults,Independent Sector Placements,Services,06/06/2018,8000117482,2573.28,Revenue,Redacted Personal Data,Adult Social Care Direct Payment
Peterborough City Council,Adults,Independent Sector Placements,Services,06/06/2018,8000117483,879.24,Revenue,Redacted Personal Data,Adult Social Care Direct Payment
Peterborough City Council,Adults,Independent Sector Placements,Services,06/06/2018,8000117485,2673.2,Revenue,Redacted Personal Data,Adult Social Care Direct Payment
Peterborough City Council,Adults,Independent Sector Placements,Services,06/06/2018,8000117486,1440.8,Revenue,Redacted Personal Data,Adult Social Care Direct Payment
Peterborough City Council,Adults,Independent Sector Placements,Services,06/06/2018,8000117487,7151,Revenue,Redacted Personal Data,Adult Social Care Direct Payment
Peterborough City Council,Adults,Independent Sector Placements,Services,06/06/2018,8000117488,5692.44,Revenue,Redacted Personal Data,Adult Social Care Direct Payment
Peterborough City Council,Adults,Independent Sector Placements,Services,06/06/2018,8000117489,862.4,Revenue,Redacted Personal Data,Adult Social Care Direct Payment
Peterborough City Council,Adults,Independent Sector Placements,Services,06/06/2018,8000117490,5237.4,Revenue,Redacted Personal Data,Adult Social Care Direct Payment
Peterborough City Council,Adults,Independent Sector Placements,Services,06/06/2018,8000117492,585.4,Revenue,Redacted Personal Data,Adult Social Care Direct Payment
Peterborough City Council,Adults,Independent Sector Placements,Services,06/06/2018,8000117493,658.56,Revenue,Redacted Personal Data,Adult Social Care Direct Payment
Peterborough City Council,Adults,Independent Sector Placements,Services,06/06/2018,8000117494,2120.36,Revenue,Redacted Personal Data,Adult Social Care Direct Payment
Peterborough City Council,Adults,Independent Sector Placements,Services,06/06/2018,8000117495,7057.56,Revenue,Redacted Personal Data,Adult Social Care Direct Payment
Peterborough City Council,Adults,Independent Sector Placements,Services,06/06/2018,8000117496,2513.8,Revenue,Redacted Personal Data,Adult Social Care Direct Payment
Peterborough City Council,Adults,Independent Sector Placements,Services,06/06/2018,8000117497,1397.52,Revenue,Redacted Personal Data,Adult Social Care Direct Payment
Peterborough City Council,Adults,Independent Sector Placements,Services,06/06/2018,8000117499,2339.56,Revenue,Redacted Personal Data,Adult Social Care Direct Payment
Peterborough City Council,Adults,Independent Sector Placements,Services,06/06/2018,8000117500,1780.4,Revenue,Redacted Personal Data,Adult Social Care Direct Payment
Peterborough City Council,Adults,Independent Sector Placements,Services,06/06/2018,8000117501,1421.6,Revenue,Redacted Personal Data,Adult Social Care Direct Payment
Peterborough City Council,Adults,Independent Sector Placements,Services,06/06/2018,8000117502,1025.32,Revenue,Redacted Personal Data,Adult Social Care Direct Payment
Peterborough City Council,Adults,Independent Sector Placements,Services,06/06/2018,8000117503,1739.4,Revenue,Redacted Personal Data,Adult Social Care Direct Payment
Peterborough City Council,Adults,Independent Sector Placements,Services,06/06/2018,8000117504,1596.48,Revenue,Redacted Personal Data,Adult Social Care Direct Payment
Peterborough City Council,Adults,Independent Sector Placements,Services,06/06/2018,8000117505,5783.16,Revenue,Redacted Personal Data,Adult Social Care Direct Payment
Peterborough City Council,Adults,Independent Sector Placements,Services,06/06/2018,8000117506,2623.4,Revenue,Redacted Personal Data,Adult Social Care Direct Payment
Peterborough City Council,Adults,Independent Sector Placements,Services,06/06/2018,8000117507,1290.08,Revenue,Redacted Personal Data,Adult Social Care Direct Payment
Peterborough City Council,Adults,Independent Sector Placements,Services,06/06/2018,8000117508,2576.24,Revenue,Redacted Personal Data,Adult Social Care Direct Payment
Peterborough City Council,Adults,Independent Sector Placements,Services,06/06/2018,8000117510,1629.24,Revenue,Redacted Personal Data,Adult Social Care Direct Payment
Peterborough City Council,Adults,Independent Sector Placements,Services,06/06/2018,8000117511,978.08,Revenue,Redacted Personal Data,Adult Social Care Direct Payment
Peterborough City Council,Adults,Independent Sector Placements,Services,06/06/2018,8000117513,3045.6,Revenue,Redacted Personal Data,Adult Social Care Direct Payment
Peterborough City Council,Adults,Independent Sector Placements,Services,06/06/2018,8000117514,1355.56,Revenue,Redacted Personal Data,Adult Social Care Direct Payment
Peterborough City Council,Adults,Independent Sector Placements,Services,06/06/2018,8000117515,652.56,Revenue,Redacted Personal Data,Adult Social Care Direct Payment
Peterborough City Council,Adults,Independent Sector Placements,Services,06/06/2018,8000117516,1340.4,Revenue,Redacted Personal Data,Adult Social Care Direct Payment
Peterborough City Council,Adults,Independent Sector Placements,Services,06/06/2018,8000117517,1436,Revenue,Redacted Personal Data,Adult Social Care Direct Payment
Peterborough City Council,Adults,Independent Sector Placements,Services,06/06/2018,8000117518,1982.44,Revenue,Redacted Personal Data,Adult Social Care Direct Payment
Peterborough City Council,Adults,Independent Sector Placements,Services,06/06/2018,8000117519,2654.32,Revenue,Redacted Personal Data,Adult Social Care Direct Payment
Peterborough City Council,Adults,Independent Sector Placements,Services,06/06/2018,8000117520,3984.99,Revenue,Redacted Personal Data,Adult Social Care Direct Payment
Peterborough City Council,Adults,Independent Sector Placements,Services,06/06/2018,8000117521,1625,Revenue,Redacted Personal Data,Adult Social Care Direct Payment
Peterborough City Council,Adults,Independent Sector Placements,Services,06/06/2018,8000117522,2585.52,Revenue,Redacted Personal Data,Adult Social Care Direct Payment
Peterborough City Council,Adults,Independent Sector Placements,Services,06/06/2018,8000117523,2451.24,Revenue,Redacted Personal Data,Adult Social Care Direct Payment
Peterborough City Council,Adults,Independent Sector Placements,Services,06/06/2018,8000117526,503.36,Revenue,Redacted Personal Data,Adult Social Care Direct Payment
Peterborough City Council,Adults,Independent Sector Placements,Services,06/06/2018,8000117527,705.36,Revenue,Redacted Personal Data,Adult Social Care Direct Payment
Peterborough City Council,Adults,Independent Sector Placements,Services,06/06/2018,8000117528,648.08,Revenue,Redacted Personal Data,Adult Social Care Direct Payment
Peterborough City Council,Adults,Independent Sector Placements,Services,06/06/2018,8000117529,1533,Revenue,Redacted Personal Data,Adult Social Care Direct Payment
Peterborough City Council,Adults,Independent Sector Placements,Services,06/06/2018,8000117530,883.36,Revenue,Redacted Personal Data,Adult Social Care Direct Payment
Peterborough City Council,Adults,Independent Sector Placements,Services,06/06/2018,8000117532,1090.8,Revenue,Redacted Personal Data,Adult Social Care Direct Payment
Peterborough City Council,Adults,Independent Sector Placements,Services,06/06/2018,8000117533,2176,Revenue,Redacted Personal Data,Adult Social Care Direct Payment
Peterborough City Council,Adults,Independent Sector Placements,Services,06/06/2018,8000117534,1394.48,Revenue,Redacted Personal Data,Adult Social Care Direct Payment
Peterborough City Council,Adults,Independent Sector Placements,Services,06/06/2018,8000117536,1716.32,Revenue,Redacted Personal Data,Adult Social Care Direct Payment
Peterborough City Council,Adults,Independent Sector Placements,Services,06/06/2018,8000117537,537.44,Revenue,Redacted Personal Data,Adult Social Care Direct Payment
Peterborough City Council,Adults,Independent Sector Placements,Services,06/06/2018,8000117538,541.4,Revenue,Redacted Personal Data,Adult Social Care Direct Payment
Peterborough City Council,Adults,Independent Sector Placements,Services,06/06/2018,8000117540,1735.4,Revenue,Redacted Personal Data,Adult Social Care Direct Payment
Peterborough City Council,Adults,Independent Sector Placements,Services,06/06/2018,8000117543,530.84,Revenue,Redacted Personal Data,Adult Social Care Direct Payment
Peterborough City Council,Adults,Independent Sector Placements,Services,06/06/2018,8000117544,709.8,Revenue,Redacted Personal Data,Adult Social Care Direct Payment
Peterborough City Council,Adults,Independent Sector Placements,Services,06/06/2018,8000117545,1341.44,Revenue,Redacted Personal Data,Adult Social Care Direct Payment
Peterborough City Council,Adults,Independent Sector Placements,Services,06/06/2018,8000117548,1562,Revenue,Redacted Personal Data,Adult Social Care Direct Payment
Peterborough City Council,Adults,Independent Sector Placements,Services,06/06/2018,8000117549,775.88,Revenue,Redacted Personal Data,Adult Social Care Direct Payment
Peterborough City Council,Adults,Independent Sector Placements,Services,06/06/2018,8000117550,897.6,Revenue,Redacted Personal Data,Adult Social Care Direct Payment
Peterborough City Council,Adults,Independent Sector Placements,Services,06/06/2018,8000117552,2310,Revenue,Redacted Personal Data,Adult Social Care Direct Payment
Peterborough City Council,Adults,Independent Sector Placements,Services,06/06/2018,8000117553,760.88,Revenue,Redacted Personal Data,Adult Social Care Direct Payment
Peterborough City Council,Adults,Independent Sector Placements,Services,06/06/2018,8000117554,725.08,Revenue,Redacted Personal Data,Adult Social Care Direct Payment
Peterborough City Council,Adults,Independent Sector Placements,Services,06/06/2018,8000117555,890.48,Revenue,Redacted Personal Data,Adult Social Care Direct Payment
Peterborough City Council,Adults,Independent Sector Placements,Services,06/06/2018,8000117556,3222.56,Revenue,Redacted Personal Data,Adult Social Care Direct Payment
Peterborough City Council,Adults,Independent Sector Placements,Services,06/06/2018,8000117557,1904,Revenue,Redacted Personal Data,Adult Social Care Direct Payment
Peterborough City Council,Adults,Independent Sector Placements,Services,06/06/2018,8000117559,811.24,Revenue,Redacted Personal Data,Adult Social Care Direct Payment
Peterborough City Council,Adults,Independent Sector Placements,Services,06/06/2018,8000117562,2430.48,Revenue,Redacted Personal Data,Adult Social Care Direct Payment
Peterborough City Council,Adults,Independent Sector Placements,Services,06/06/2018,8000117563,1678.12,Revenue,Redacted Personal Data,Adult Social Care Direct Payment
Peterborough City Council,Adults,Independent Sector Placements,Services,06/06/2018,8000117564,3528.84,Revenue,Redacted Personal Data,Adult Social Care Direct Payment
Peterborough City Council,Adults,Independent Sector Placements,Services,06/06/2018,8000117565,1038.48,Revenue,Redacted Personal Data,Adult Social Care Direct Payment
Peterborough City Council,Adults,Independent Sector Placements,Services,06/06/2018,8000117566,1553.44,Revenue,Redacted Personal Data,Adult Social Care Direct Payment
Peterborough City Council,Adults,Independent Sector Placements,Services,06/06/2018,8000117567,780.72,Revenue,Redacted Personal Data,Adult Social Care Direct Payment
Peterborough City Council,Adults,Independent Sector Placements,Services,06/06/2018,8000117568,1979.16,Revenue,Redacted Personal Data,Adult Social Care Direct Payment
Peterborough City Council,Adults,Independent Sector Placements,Services,06/06/2018,8000117569,5668.24,Revenue,Redacted Personal Data,Adult Social Care Direct Payment
Peterborough City Council,Adults,Independent Sector Placements,Services,06/06/2018,8000117570,1612.08,Revenue,Redacted Personal Data,Adult Social Care Direct Payment
Peterborough City Council,Adults,Independent Sector Placements,Services,06/06/2018,8000117571,4944.48,Revenue,Redacted Personal Data,Adult Social Care Direct Payment
Peterborough City Council,Adults,Independent Sector Placements,Services,06/06/2018,8000117572,5231.44,Revenue,Redacted Personal Data,Adult Social Care Direct Payment
Peterborough City Council,Adults,Independent Sector Placements,Services,06/06/2018,8000117573,6292.08,Revenue,Redacted Personal Data,Adult Social Care Direct Payment
Peterborough City Council,Adults,Independent Sector Placements,Services,06/06/2018,8000117574,1604.6,Revenue,Redacted Personal Data,Adult Social Care Direct Payment
Peterborough City Council,Adults,Independent Sector Placements,Services,06/06/2018,8000117577,7350.08,Revenue,Redacted Personal Data,Adult Social Care Direct Payment
Peterborough City Council,Adults,Independent Sector Placements,Services,06/06/2018,8000117579,3293.68,Revenue,Redacted Personal Data,Adult Social Care Direct Payment
Peterborough City Council,Adults,Independent Sector Placements,Services,06/06/2018,8000117580,952,Revenue,Redacted Personal Data,Adult Social Care Direct Payment
Peterborough City Council,Adults,Independent Sector Placements,Services,06/06/2018,8000117584,2608.68,Revenue,Redacted Personal Data,Adult Social Care Direct Payment
Peterborough City Council,Adults,Independent Sector Placements,Services,06/06/2018,8000117585,1748,Revenue,Redacted Personal Data,Adult Social Care Direct Payment
Peterborough City Council,Adults,Independent Sector Placements,Services,06/06/2018,8000117586,1416.64,Revenue,Redacted Personal Data,Adult Social Care Direct Payment
Peterborough City Council,Adults,Independent Sector Placements,Services,06/06/2018,8000117587,1088,Revenue,Redacted Personal Data,Adult Social Care Direct Payment
Peterborough City Council,Adults,Independent Sector Placements,Services,06/06/2018,8000117588,1167.62,Revenue,Redacted Personal Data,Adult Social Care Direct Payment
Peterborough City Council,Adults,Independent Sector Placements,Services,06/06/2018,8000117589,2278.96,Revenue,Redacted Personal Data,Adult Social Care Direct Payment
Peterborough City Council,Adults,Independent Sector Placements,Services,06/06/2018,8000117590,2184.2,Revenue,Redacted Personal Data,Adult Social Care Direct Payment
Peterborough City Council,Adults,Independent Sector Placements,Services,06/06/2018,8000117591,2381.88,Revenue,Redacted Personal Data,Adult Social Care Direct Payment
Peterborough City Council,Adults,Independent Sector Placements,Services,06/06/2018,8000117593,1250.84,Revenue,Redacted Personal Data,Adult Social Care Direct Payment
Peterborough City Council,Adults,Independent Sector Placements,Services,06/06/2018,8000117595,777.2,Revenue,Redacted Personal Data,Adult Social Care Direct Payment
Peterborough City Council,Adults,Independent Sector Placements,Services,06/06/2018,8000117596,773.28,Revenue,Redacted Personal Data,Adult Social Care Direct Payment
Peterborough City Council,Adults,Independent Sector Placements,Services,06/06/2018,8000117597,1259.82,Revenue,Redacted Personal Data,Adult Social Care Direct Payment
Peterborough City Council,Adults,Independent Sector Placements,Services,06/06/2018,8000117598,576,Revenue,Redacted Personal Data,Adult Social Care Direct Payment
Peterborough City Council,Adults,Independent Sector Placements,Services,06/06/2018,8000117599,8586.48,Revenue,Redacted Personal Data,Adult Social Care Direct Payment
Peterborough City Council,Adults,Independent Sector Placements,Services,06/06/2018,8000117600,914.84,Revenue,Redacted Personal Data,Adult Social Care Direct Payment
Peterborough City Council,Adults,Independent Sector Placements,Services,06/06/2018,8000117601,6439.28,Revenue,Redacted Personal Data,Adult Social Care Direct Payment
Peterborough City Council,Adults,Independent Sector Placements,Services,06/06/2018,8000117602,2400.88,Revenue,Redacted Personal Data,Adult Social Care Direct Payment
Peterborough City Council,Adults,Independent Sector Placements,Services,06/06/2018,8000117603,1141.92,Revenue,Redacted Personal Data,Adult Social Care Direct Payment
Peterborough City Council,Adults,Independent Sector Placements,Services,06/06/2018,8000117605,1497,Revenue,Redacted Personal Data,Adult Social Care Direct Payment
Peterborough City Council,Adults,Independent Sector Placements,Services,06/06/2018,8000117606,9329.88,Revenue,Redacted Personal Data,Adult Social Care Direct Payment
Peterborough City Council,Adults,Independent Sector Placements,Services,06/06/2018,8000117607,3618.48,Revenue,Redacted Personal Data,Adult Social Care Direct Payment
Peterborough City Council,Adults,Independent Sector Placements,Services,06/06/2018,8000117609,1367.28,Revenue,Redacted Personal Data,Adult Social Care Direct Payment
Peterborough City Council,Adults,Independent Sector Placements,Services,06/06/2018,8000117610,3131.2,Revenue,Redacted Personal Data,Adult Social Care Direct Payment
Peterborough City Council,Adults,Independent Sector Placements,Services,06/06/2018,8000117611,1266.48,Revenue,Redacted Personal Data,Adult Social Care Direct Payment
Peterborough City Council,Adults,Independent Sector Placements,Services,06/06/2018,8000117612,6338,Revenue,Redacted Personal Data,Adult Social Care Direct Payment
Peterborough City Council,Adults,Independent Sector Placements,Services,06/06/2018,8000117613,716.8,Revenue,Redacted Personal Data,Adult Social Care Direct Payment
Peterborough City Council,Adults,Independent Sector Placements,Services,06/06/2018,8000117614,10074.4,Revenue,Redacted Personal Data,Adult Social Care Direct Payment
Peterborough City Council,Adults,Independent Sector Placements,Services,06/06/2018,8000117616,1366.96,Revenue,Redacted Personal Data,Adult Social Care Direct Payment
Peterborough City Council,Adults,Independent Sector Placements,Services,06/06/2018,8000117617,2342.76,Revenue,Redacted Personal Data,Adult Social Care Direct Payment
Peterborough City Council,Adults,Independent Sector Placements,Services,06/06/2018,8000117618,942.08,Revenue,Redacted Personal Data,Adult Social Care Direct Payment
Peterborough City Council,Adults,Independent Sector Placements,Services,06/06/2018,8000117619,3908.6,Revenue,Redacted Personal Data,Adult Social Care Direct Payment
Peterborough City Council,Adults,Independent Sector Placements,Services,06/06/2018,8000117620,6801.88,Revenue,Redacted Personal Data,Adult Social Care Direct Payment
Peterborough City Council,Adults,Independent Sector Placements,Services,06/06/2018,8000117621,4758.48,Revenue,Redacted Personal Data,Adult Social Care Direct Payment
Peterborough City Council,Adults,Independent Sector Placements,Services,06/06/2018,8000117622,1303.32,Revenue,Redacted Personal Data,Adult Social Care Direct Payment
Peterborough City Council,Adults,Independent Sector Placements,Services,06/06/2018,8000117623,867.43,Revenue,Redacted Personal Data,Adult Social Care Direct Payment
Peterborough City Council,Adults,Independent Sector Placements,Services,06/06/2018,8000117624,689.68,Revenue,Redacted Personal Data,Adult Social Care Direct Payment
Peterborough City Council,Adults,Independent Sector Placements,Services,06/06/2018,8000117625,7046.48,Revenue,Redacted Personal Data,Adult Social Care Direct Payment
Peterborough City Council,Adults,Independent Sector Placements,Services,06/06/2018,8000117626,2086.2,Revenue,Redacted Personal Data,Adult Social Care Direct Payment
Peterborough City Council,Adults,Independent Sector Placements,Services,06/06/2018,8000117628,4724.56,Revenue,Redacted Personal Data,Adult Social Care Direct Payment
Peterborough City Council,Adults,Independent Sector Placements,Services,06/06/2018,8000117629,4851.36,Revenue,Redacted Personal Data,Adult Social Care Direct Payment
Peterborough City Council,Adults,Independent Sector Placements,Services,06/06/2018,8000117630,1025.08,Revenue,Redacted Personal Data,Adult Social Care Direct Payment
Peterborough City Council,Adults,Independent Sector Placements,Services,06/06/2018,8000117632,3022.36,Revenue,Redacted Personal Data,Adult Social Care Direct Payment
Peterborough City Council,Adults,Independent Sector Placements,Services,06/06/2018,8000117633,12746.84,Revenue,Redacted Personal Data,Adult Social Care Direct Payment
Peterborough City Council,Adults,Independent Sector Placements,Services,06/06/2018,8000117634,6855.28,Revenue,Redacted Personal Data,Adult Social Care Direct Payment
Peterborough City Council,Adults,Independent Sector Placements,Services,06/06/2018,8000117636,4176.4,Revenue,Redacted Personal Data,Adult Social Care Direct Payment
Peterborough City Council,Adults,Independent Sector Placements,Services,06/06/2018,8000117637,652.08,Revenue,Redacted Personal Data,Adult Social Care Direct Payment
Peterborough City Council,Adults,Independent Sector Placements,Services,06/06/2018,8000117639,738.44,Revenue,Redacted Personal Data,Adult Social Care Direct Payment
Peterborough City Council,Adults,Independent Sector Placements,Services,06/06/2018,8000117640,566.08,Revenue,Redacted Personal Data,Adult Social Care Direct Payment
Peterborough City Council,Adults,Independent Sector Placements,Services,06/06/2018,8000117641,907.36,Revenue,Redacted Personal Data,Adult Social Care Direct Payment
Peterborough City Council,Adults,Independent Sector Placements,Services,06/06/2018,8000117642,2288.52,Revenue,Redacted Personal Data,Adult Social Care Direct Payment
Peterborough City Council,Adults,Independent Sector Placements,Services,06/06/2018,8000117643,648,Revenue,Redacted Personal Data,Adult Social Care Direct Payment
Peterborough City Council,Adults,Independent Sector Placements,Services,06/06/2018,8000117644,2370.48,Revenue,Redacted Personal Data,Adult Social Care Direct Payment
Peterborough City Council,Adults,Independent Sector Placements,Services,06/06/2018,8000117645,800,Revenue,Redacted Personal Data,Adult Social Care Direct Payment
Peterborough City Council,Adults,Independent Sector Placements,Services,06/06/2018,8000117647,634.88,Revenue,Redacted Personal Data,Adult Social Care Direct Payment
Peterborough City Council,Adults,Independent Sector Placements,Services,06/06/2018,8000117648,3024.48,Revenue,Redacted Personal Data,Adult Social Care Direct Payment
Peterborough City Council,Adults,Independent Sector Placements,Services,06/06/2018,8000117649,1170.48,Revenue,Redacted Personal Data,Adult Social Care Direct Payment
Peterborough City Council,Adults,Independent Sector Placements,Services,06/06/2018,8000117650,4208.48,Revenue,Redacted Personal Data,Adult Social Care Direct Payment
Peterborough City Council,Adults,Independent Sector Placements,Services,06/06/2018,8000117651,1724.6,Revenue,Redacted Personal Data,Adult Social Care Direct Payment
Peterborough City Council,Adults,Independent Sector Placements,Services,06/06/2018,8000117652,574.4,Revenue,Redacted Personal Data,Adult Social Care Direct Payment
Peterborough City Council,Adults,Independent Sector Placements,Services,06/06/2018,8000117653,5569.12,Revenue,Redacted Personal Data,Adult Social Care Direct Payment
Peterborough City Council,Adults,Independent Sector Placements,Services,06/06/2018,8000117654,874.16,Revenue,Redacted Personal Data,Adult Social Care Direct Payment
Peterborough City Council,Adults,Independent Sector Placements,Services,06/06/2018,8000117655,1818.4,Revenue,Redacted Personal Data,Adult Social Care Direct Payment
Peterborough City Council,Adults,Independent Sector Placements,Services,06/06/2018,8000117658,1002.48,Revenue,Redacted Personal Data,Adult Social Care Direct Payment
Peterborough City Council,Adults,Independent Sector Placements,Services,06/06/2018,8000117659,669.12,Revenue,Redacted Personal Data,Adult Social Care Direct Payment
Peterborough City Council,Adults,Independent Sector Placements,Services,06/06/2018,8000117660,6075.64,Revenue,Redacted Personal Data,Adult Social Care Direct Payment
Peterborough City Council,Adults,Independent Sector Placements,Services,06/06/2018,8000117661,606.48,Revenue,Redacted Personal Data,Adult Social Care Direct Payment
Peterborough City Council,Adults,Independent Sector Placements,Services,06/06/2018,8000117662,5731.64,Revenue,Redacted Personal Data,Adult Social Care Direct Payment
Peterborough City Council,Adults,Independent Sector Placements,Services,06/06/2018,8000117663,1903.48,Revenue,Redacted Personal Data,Adult Social Care Direct Payment
Peterborough City Council,Adults,Independent Sector Placements,Services,06/06/2018,8000117664,8634,Revenue,Redacted Personal Data,Adult Social Care Direct Payment
Peterborough City Council,Adults,Independent Sector Placements,Services,06/06/2018,8000117665,5619.16,Revenue,Redacted Personal Data,Adult Social Care Direct Payment
Peterborough City Council,Adults,Independent Sector Placements,Services,06/06/2018,8000117666,627.48,Revenue,Redacted Personal Data,Adult Social Care Direct Payment
Peterborough City Council,Adults,Independent Sector Placements,Services,06/06/2018,8000117667,692.12,Revenue,Redacted Personal Data,Adult Social Care Direct Payment
Peterborough City Council,Adults,Independent Sector Placements,Services,06/06/2018,8000117668,1348.84,Revenue,Redacted Personal Data,Adult Social Care Direct Payment
Peterborough City Council,Adults,Independent Sector Placements,Services,06/06/2018,8000117670,1326.48,Revenue,Redacted Personal Data,Adult Social Care Direct Payment
Peterborough City Council,Adults,Independent Sector Placements,Services,06/06/2018,8000117671,2275.64,Revenue,Redacted Personal Data,Adult Social Care Direct Payment
Peterborough City Council,Adults,Independent Sector Placements,Services,06/06/2018,8000117674,1960,Revenue,Redacted Personal Data,Adult Social Care Direct Payment
Peterborough City Council,Adults,Independent Sector Placements,Services,06/06/2018,8000117676,1392.16,Revenue,Redacted Personal Data,Adult Social Care Direct Payment
Peterborough City Council,Adults,Independent Sector Placements,Services,06/06/2018,8000117677,1634.76,Revenue,Redacted Personal Data,Adult Social Care Direct Payment
Peterborough City Council,Adults,Independent Sector Placements,Services,06/06/2018,8000117678,1165.44,Revenue,Redacted Personal Data,Adult Social Care Direct Payment
Peterborough City Council,Adults,Independent Sector Placements,Services,06/06/2018,8000117679,3307.84,Revenue,Redacted Personal Data,Adult Social Care Direct Payment
Peterborough City Council,Adults,Independent Sector Placements,Services,06/06/2018,8000117680,2380,Revenue,Redacted Personal Data,Adult Social Care Direct Payment
Peterborough City Council,Adults,Independent Sector Placements,Services,06/06/2018,8000117681,2838.48,Revenue,Redacted Personal Data,Adult Social Care Direct Payment
Peterborough City Council,Adults,Independent Sector Placements,Services,06/06/2018,8000117682,807.88,Revenue,Redacted Personal Data,Adult Social Care Direct Payment
Peterborough City Council,Adults,Independent Sector Placements,Services,06/06/2018,8000117684,540,Revenue,Redacted Personal Data,Adult Social Care Direct Payment
Peterborough City Council,Adults,Independent Sector Placements,Services,06/06/2018,8000117685,1517.68,Revenue,Redacted Personal Data,Adult Social Care Direct Payment
Peterborough City Council,Adults,Independent Sector Placements,Services,06/06/2018,8000117687,822.72,Revenue,Redacted Personal Data,Adult Social Care Direct Payment
Peterborough City Council,Adults,Independent Sector Placements,Services,06/06/2018,8000117688,2847.36,Revenue,Redacted Personal Data,Adult Social Care Direct Payment
Peterborough City Council,Adults,Independent Sector Placements,Services,06/06/2018,8000117689,582.24,Revenue,Redacted Personal Data,Adult Social Care Direct Payment
Peterborough City Council,Adults,Independent Sector Placements,Services,06/06/2018,8000117690,798.48,Revenue,Redacted Personal Data,Adult Social Care Direct Payment
Peterborough City Council,Adults,Independent Sector Placements,Services,06/06/2018,8000117694,1078.92,Revenue,Redacted Personal Data,Adult Social Care Direct Payment
Peterborough City Council,Adults,Independent Sector Placements,Services,06/06/2018,8000117695,805.48,Revenue,Redacted Personal Data,Adult Social Care Direct Payment
Peterborough City Council,Adults,Independent Sector Placements,Services,06/06/2018,8000117696,570.48,Revenue,Redacted Personal Data,Adult Social Care Direct Payment
Peterborough City Council,Adults,Independent Sector Placements,Services,06/06/2018,8000117697,10066.88,Revenue,Redacted Personal Data,Adult Social Care Direct Payment
Peterborough City Council,Adults,Independent Sector Placements,Services,06/06/2018,8000117698,1244.4,Revenue,Redacted Personal Data,Adult Social Care Direct Payment
Peterborough City Council,Adults,Independent Sector Placements,Services,06/06/2018,8000117699,1565.68,Revenue,Redacted Personal Data,Adult Social Care Direct Payment
Peterborough City Council,Adults,Independent Sector Placements,Services,06/06/2018,8000117700,864.28,Revenue,Redacted Personal Data,Adult Social Care Direct Payment
Peterborough City Council,Adults,Independent Sector Placements,Services,06/06/2018,8000117702,1094.88,Revenue,Redacted Personal Data,Adult Social Care Direct Payment
Peterborough City Council,Adults,Independent Sector Placements,Services,06/06/2018,8000117703,1295.16,Revenue,Redacted Personal Data,Adult Social Care Direct Payment
Peterborough City Council,Adults,Independent Sector Placements,Services,06/06/2018,8000117706,2235.6,Revenue,Redacted Personal Data,Adult Social Care Direct Payment
Peterborough City Council,Adults,Independent Sector Placements,Services,06/06/2018,8000117708,2481.56,Revenue,Redacted Personal Data,Adult Social Care Direct Payment
Peterborough City Council,Adults,Independent Sector Placements,Services,06/06/2018,8000117709,888.4,Revenue,Redacted Personal Data,Adult Social Care Direct Payment
Peterborough City Council,Adults,Independent Sector Placements,Services,06/06/2018,8000117710,2270.88,Revenue,Redacted Personal Data,Adult Social Care Direct Payment
Peterborough City Council,Adults,Independent Sector Placements,Services,06/06/2018,8000117711,2644.72,Revenue,Redacted Personal Data,Adult Social Care Direct Payment
Peterborough City Council,Adults,Independent Sector Placements,Services,06/06/2018,8000117712,921.4,Revenue,Redacted Personal Data,Adult Social Care Direct Payment
Peterborough City Council,Adults,Independent Sector Placements,Services,06/06/2018,8000117713,1394.2,Revenue,Redacted Personal Data,Adult Social Care Direct Payment
Peterborough City Council,Adults,Independent Sector Placements,Services,06/06/2018,8000117715,2475.8,Revenue,Redacted Personal Data,Adult Social Care Direct Payment
Peterborough City Council,Adults,Independent Sector Placements,Services,06/06/2018,8000117718,1352.96,Revenue,Redacted Personal Data,Adult Social Care Direct Payment
Peterborough City Council,Adults,Independent Sector Placements,Services,06/06/2018,8000117719,1208.64,Revenue,Redacted Personal Data,Adult Social Care Direct Payment
Peterborough City Council,Adults,Independent Sector Placements,Services,06/06/2018,8000117721,1435.56,Revenue,Redacted Personal Data,Adult Social Care Direct Payment
Peterborough City Council,Adults,Independent Sector Placements,Services,06/06/2018,8000117722,1208.64,Revenue,Redacted Personal Data,Adult Social Care Direct Payment
Peterborough City Council,Adults,Independent Sector Placements,Services,06/06/2018,8000117723,606.48,Revenue,Redacted Personal Data,Adult Social Care Direct Payment
Peterborough City Council,Adults,Independent Sector Placements,Services,06/06/2018,8000117725,3834.48,Revenue,Redacted Personal Data,Adult Social Care Direct Payment
Peterborough City Council,Adults,Independent Sector Placements,Services,06/06/2018,8000117726,1208.64,Revenue,Redacted Personal Data,Adult Social Care Direct Payment
Peterborough City Council,Adults,Independent Sector Placements,Services,06/06/2018,8000117727,744,Revenue,Redacted Personal Data,Adult Social Care Direct Payment
Peterborough City Council,Adults,Independent Sector Placements,Services,06/06/2018,8000117728,1053.48,Revenue,Redacted Personal Data,Adult Social Care Direct Payment
Peterborough City Council,Adults,Independent Sector Placements,Services,06/06/2018,8000117729,1826.88,Revenue,Redacted Personal Data,Adult Social Care Direct Payment
Peterborough City Council,Adults,Independent Sector Placements,Services,06/06/2018,8000117731,522.48,Revenue,Redacted Personal Data,Adult Social Care Direct Payment
Peterborough City Council,Adults,Independent Sector Placements,Services,06/06/2018,8000117732,985.68,Revenue,Redacted Personal Data,Adult Social Care Direct Payment
Peterborough City Council,Adults,Independent Sector Placements,Services,06/06/2018,8000117733,1448.92,Revenue,Redacted Personal Data,Adult Social Care Direct Payment
Peterborough City Council,Adults,Independent Sector Placements,Services,06/06/2018,8000117734,3384.24,Revenue,Redacted Personal Data,Adult Social Care Direct Payment
Peterborough City Council,Adults,Independent Sector Placements,Services,06/06/2018,8000117735,3384.24,Revenue,Redacted Personal Data,Adult Social Care Direct Payment
Peterborough City Council,Adults,Independent Sector Placements,Services,06/06/2018,8000117736,4525.4,Revenue,Redacted Personal Data,Adult Social Care Direct Payment
Peterborough City Council,Adults,Independent Sector Placements,Services,06/06/2018,8000117737,610.48,Revenue,Redacted Personal Data,Adult Social Care Direct Payment
Peterborough City Council,Adults,Independent Sector Placements,Services,06/06/2018,8000117738,1733.77,Revenue,Redacted Personal Data,Adult Social Care Direct Payment
Peterborough City Council,Adults,Independent Sector Placements,Services,06/06/2018,8000117740,873.52,Revenue,Redacted Personal Data,Adult Social Care Direct Payment
Peterborough City Council,Adults,Independent Sector Placements,Services,06/06/2018,8000117741,689.62,Revenue,Redacted Personal Data,Adult Social Care Direct Payment
Peterborough City Council,Adults,Independent Sector Placements,Services,06/06/2018,8000117742,1135,Revenue,Redacted Personal Data,Adult Social Care Direct Payment
Peterborough City Council,Adults,Independent Sector Placements,Services,06/06/2018,8000117743,1216.96,Revenue,Redacted Personal Data,Adult Social Care Direct Payment
Peterborough City Council,Adults,Independent Sector Placements,Services,06/06/2018,8000117750,3864.56,Revenue,Redacted Personal Data,Adult Social Care Direct Payment
Peterborough City Council,Adults,Independent Sector Placements,Services,06/06/2018,8000117752,895.12,Revenue,Redacted Personal Data,Adult Social Care Direct Payment
Peterborough City Council,Adults,Independent Sector Placements,Services,06/06/2018,8000117754,1152,Revenue,Redacted Personal Data,Adult Social Care Direct Payment
Peterborough City Council,Adults,Independent Sector Placements,Services,06/06/2018,8000117755,3743.08,Revenue,Redacted Personal Data,Adult Social Care Direct Payment
Peterborough City Council,Adults,Independent Sector Placements,Services,06/06/2018,8000117757,5460.88,Revenue,Redacted Personal Data,Adult Social Care Direct Payment
Peterborough City Council,Adults,Independent Sector Placements,Services,06/06/2018,8000117758,2076.99,Revenue,Redacted Personal Data,Adult Social Care Direct Payment
Peterborough City Council,Adults,Independent Sector Placements,Services,06/06/2018,8000117760,720.8,Revenue,Redacted Personal Data,Adult Social Care Direct Payment
Peterborough City Council,Adults,Independent Sector Placements,Services,06/06/2018,8000117761,930.48,Revenue,Redacted Personal Data,Adult Social Care Direct Payment
Peterborough City Council,Adults,Independent Sector Placements,Services,06/06/2018,8000117763,1537.2,Revenue,Redacted Personal Data,Adult Social Care Direct Payment
Peterborough City Council,Adults,Independent Sector Placements,Services,06/06/2018,8000117764,1187.96,Revenue,Redacted Personal Data,Adult Social Care Direct Payment
Peterborough City Council,Adults,Independent Sector Placements,Services,06/06/2018,8000117765,1390.12,Revenue,Redacted Personal Data,Adult Social Care Direct Payment
Peterborough City Council,Adults,Independent Sector Placements,Services,06/06/2018,8000117768,2950.84,Revenue,Redacted Personal Data,Adult Social Care Direct Payment
Peterborough City Council,Adults,Independent Sector Placements,Services,06/06/2018,8000117769,2829,Revenue,Redacted Personal Data,Adult Social Care Direct Payment
Peterborough City Council,Adults,Independent Sector Placements,Services,06/06/2018,8000117771,1037.84,Revenue,Redacted Personal Data,Adult Social Care Direct Payment
Peterborough City Council,Adults,Independent Sector Placements,Services,06/06/2018,8000117772,820.4,Revenue,Redacted Personal Data,Adult Social Care Direct Payment
Peterborough City Council,Adults,Independent Sector Placements,Services,06/06/2018,8000117773,1608.36,Revenue,Redacted Personal Data,Adult Social Care Direct Payment
Peterborough City Council,Adults,Independent Sector Placements,Services,06/06/2018,8000117775,1179.56,Revenue,Redacted Personal Data,Adult Social Care Direct Payment
Peterborough City Council,Adults,Independent Sector Placements,Services,06/06/2018,8000117776,2249,Revenue,Redacted Personal Data,Adult Social Care Direct Payment
Peterborough City Council,Adults,Independent Sector Placements,Services,06/06/2018,8000117777,1090.92,Revenue,Redacted Personal Data,Adult Social Care Direct Payment
Peterborough City Council,Adults,Independent Sector Placements,Services,06/06/2018,8000117778,620.64,Revenue,Redacted Personal Data,Adult Social Care Direct Payment
Peterborough City Council,Adults,Independent Sector Placements,Services,06/06/2018,8000117780,1336.92,Revenue,Redacted Personal Data,Adult Social Care Direct Payment
Peterborough City Council,Adults,Independent Sector Placements,Services,06/06/2018,8000117781,544.8,Revenue,Redacted Personal Data,Adult Social Care Direct Payment
Peterborough City Council,Adults,Independent Sector Placements,Services,06/06/2018,8000117782,534.48,Revenue,Redacted Personal Data,Adult Social Care Direct Payment
Peterborough City Council,Adults,Independent Sector Placements,Services,06/06/2018,8000117783,1293.6,Revenue,Redacted Personal Data,Adult Social Care Direct Payment
Peterborough City Council,Adults,Independent Sector Placements,Services,06/06/2018,8000117786,6124.16,Revenue,Redacted Personal Data,Adult Social Care Direct Payment
Peterborough City Council,Adults,Independent Sector Placements,Services,06/06/2018,8000117787,550.72,Revenue,Redacted Personal Data,Adult Social Care Direct Payment
Peterborough City Council,Adults,Independent Sector Placements,Services,06/06/2018,8000117788,2391.04,Revenue,Redacted Personal Data,Adult Social Care Direct Payment
Peterborough City Council,Adults,Independent Sector Placements,Services,06/06/2018,8000117789,820.36,Revenue,Redacted Personal Data,Adult Social Care Direct Payment
Peterborough City Council,Adults,Independent Sector Placements,Services,06/06/2018,8000117790,700.04,Revenue,Redacted Personal Data,Adult Social Care Direct Payment
Peterborough City Council,Adults,Independent Sector Placements,Services,06/06/2018,8000117791,1664.4,Revenue,Redacted Personal Data,Adult Social Care Direct Payment
Peterborough City Council,Adults,Independent Sector Placements,Services,06/06/2018,8000117792,552.48,Revenue,Redacted Personal Data,Adult Social Care Direct Payment
Peterborough City Council,Adults,Independent Sector Placements,Services,06/06/2018,8000117794,1666.36,Revenue,Redacted Personal Data,Adult Social Care Direct Payment
Peterborough City Council,Adults,Independent Sector Placements,Services,06/06/2018,8000117795,1251.04,Revenue,Redacted Personal Data,Adult Social Care Direct Payment
Peterborough City Council,Adults,Independent Sector Placements,Services,06/06/2018,8000117796,1050.48,Revenue,Redacted Personal Data,Adult Social Care Direct Payment
Peterborough City Council,Adults,Independent Sector Placements,Services,06/06/2018,8000117797,648.72,Revenue,Redacted Personal Data,Adult Social Care Direct Payment
Peterborough City Council,Adults,Independent Sector Placements,Services,06/06/2018,8000117798,4364.36,Revenue,Redacted Personal Data,Adult Social Care Direct Payment
Peterborough City Council,Adults,Independent Sector Placements,Services,06/06/2018,8000117799,1010.64,Revenue,Redacted Personal Data,Adult Social Care Direct Payment
Peterborough City Council,Adults,Independent Sector Placements,Services,06/06/2018,8000117800,7956.76,Revenue,Redacted Personal Data,Adult Social Care Direct Payment
Peterborough City Council,Adults,Independent Sector Placements,Services,06/06/2018,8000117802,1329.44,Revenue,Redacted Personal Data,Adult Social Care Direct Payment
Peterborough City Council,Adults,Independent Sector Placements,Services,06/06/2018,8000117803,2118.6,Revenue,Redacted Personal Data,Adult Social Care Direct Payment
Peterborough City Council,Adults,Independent Sector Placements,Services,06/06/2018,8000117804,557.2,Revenue,Redacted Personal Data,Adult Social Care Direct Payment
Peterborough City Council,Adults,Independent Sector Placements,Services,06/06/2018,8000117805,758.08,Revenue,Redacted Personal Data,Adult Social Care Direct Payment
Peterborough City Council,Adults,Independent Sector Placements,Services,06/06/2018,8000117810,980.88,Revenue,Redacted Personal Data,Adult Social Care Direct Payment
Peterborough City Council,Adults,Independent Sector Placements,Services,06/06/2018,8000117813,1085.36,Revenue,Redacted Personal Data,Adult Social Care Direct Payment
Peterborough City Council,Adults,Independent Sector Placements,Services,06/06/2018,8000117816,590.08,Revenue,Redacted Personal Data,Adult Social Care Direct Payment
Peterborough City Council,Adults,Independent Sector Placements,Services,06/06/2018,8000117818,897.92,Revenue,Redacted Personal Data,Adult Social Care Direct Payment
Peterborough City Council,Adults,Independent Sector Placements,Services,06/06/2018,8000117819,5684,Revenue,Redacted Personal Data,Adult Social Care Direct Payment
Peterborough City Council,Adults,Independent Sector Placements,Services,06/06/2018,8000117820,6740.4,Revenue,Redacted Personal Data,Adult Social Care Direct Payment
Peterborough City Council,Adults,Independent Sector Placements,Services,06/06/2018,8000117821,666.08,Revenue,Redacted Personal Data,Adult Social Care Direct Payment
Peterborough City Council,Adults,Independent Sector Placements,Services,06/06/2018,8000117822,8333,Revenue,Redacted Personal Data,Adult Social Care Direct Payment
Peterborough City Council,Adults,Independent Sector Placements,Services,06/06/2018,8000117823,1113.28,Revenue,Redacted Personal Data,Adult Social Care Direct Payment
Peterborough City Council,Adults,Independent Sector Placements,Services,06/06/2018,8000117825,818.88,Revenue,Redacted Personal Data,Adult Social Care Direct Payment
Peterborough City Council,Adults,Independent Sector Placements,Services,06/06/2018,8000117826,3753.12,Revenue,Redacted Personal Data,Adult Social Care Direct Payment
Peterborough City Council,Adults,Independent Sector Placements,Services,06/06/2018,8000117827,681.08,Revenue,Redacted Personal Data,Adult Social Care Direct Payment
Peterborough City Council,Adults,Independent Sector Placements,Services,06/06/2018,8000117828,1279.96,Revenue,Redacted Personal Data,Adult Social Care Direct Payment
Peterborough City Council,Adults,Independent Sector Placements,Services,06/06/2018,8000117829,612.8,Revenue,Redacted Personal Data,Adult Social Care Direct Payment
Peterborough City Council,Adults,Independent Sector Placements,Services,06/06/2018,8000117830,2529.24,Revenue,Redacted Personal Data,Adult Social Care Direct Payment
Peterborough City Council,Adults,Independent Sector Placements,Services,06/06/2018,8000117831,2168.08,Revenue,Redacted Personal Data,Adult Social Care Direct Payment
Peterborough City Council,Adults,Independent Sector Placements,Services,06/06/2018,8000117832,569.68,Revenue,Redacted Personal Data,Adult Social Care Direct Payment
Peterborough City Council,Adults,Independent Sector Placements,Services,06/06/2018,8000117833,988.68,Revenue,Redacted Personal Data,Adult Social Care Direct Payment
Peterborough City Council,Adults,Independent Sector Placements,Services,06/06/2018,8000117834,705.36,Revenue,Redacted Personal Data,Adult Social Care Direct Payment
Peterborough City Council,Adults,Independent Sector Placements,Services,06/06/2018,8000117836,672.16,Revenue,Redacted Personal Data,Adult Social Care Direct Payment
Peterborough City Council,Adults,Independent Sector Placements,Services,06/06/2018,8000117837,1140.48,Revenue,Redacted Personal Data,Adult Social Care Direct Payment
Peterborough City Council,Adults,Independent Sector Placements,Services,06/06/2018,8000117839,623.04,Revenue,Redacted Personal Data,Adult Social Care Direct Payment
Peterborough City Council,Adults,Independent Sector Placements,Services,06/06/2018,8000117840,3990.48,Revenue,Redacted Personal Data,Adult Social Care Direct Payment
Peterborough City Council,Adults,Independent Sector Placements,Services,06/06/2018,8000117841,1316.44,Revenue,Redacted Personal Data,Adult Social Care Direct Payment
Peterborough City Council,Adults,Independent Sector Placements,Services,06/06/2018,8000117844,779.56,Revenue,Redacted Personal Data,Adult Social Care Direct Payment
Peterborough City Council,Adults,Independent Sector Placements,Services,06/06/2018,8000117845,959.6,Revenue,Redacted Personal Data,Adult Social Care Direct Payment
Peterborough City Council,Adults,Independent Sector Placements,Services,06/06/2018,8000117846,1167.48,Revenue,Redacted Personal Data,Adult Social Care Direct Payment
Peterborough City Council,Adults,Independent Sector Placements,Services,06/06/2018,8000117847,1156.6,Revenue,Redacted Personal Data,Adult Social Care Direct Payment
Peterborough City Council,Adults,Independent Sector Placements,Services,06/06/2018,8000117848,500,Revenue,Redacted Personal Data,Adult Social Care Direct Payment
Peterborough City Council,Adults,Independent Sector Placements,Services,06/06/2018,8000117849,2978.52,Revenue,Redacted Personal Data,Adult Social Care Direct Payment
Peterborough City Council,Adults,Independent Sector Placements,Services,06/06/2018,8000117850,1180.28,Revenue,Redacted Personal Data,Adult Social Care Direct Payment
Peterborough City Council,Adults,Independent Sector Placements,Services,06/06/2018,8000117852,3488,Revenue,Redacted Personal Data,Adult Social Care Direct Payment
Peterborough City Council,Adults,Independent Sector Placements,Services,06/06/2018,8000117853,898.96,Revenue,Redacted Personal Data,Adult Social Care Direct Payment
Peterborough City Council,Adults,Independent Sector Placements,Services,06/06/2018,8000117854,988.96,Revenue,Redacted Personal Data,Adult Social Care Direct Payment
Peterborough City Council,Adults,Independent Sector Placements,Services,06/06/2018,8000117855,3349.28,Revenue,Redacted Personal Data,Adult Social Care Direct Payment
Peterborough City Council,Adults,Independent Sector Placements,Services,06/06/2018,8000117856,579.68,Revenue,Redacted Personal Data,Adult Social Care Direct Payment
Peterborough City Council,Adults,Independent Sector Placements,Services,06/06/2018,8000117857,759.56,Revenue,Redacted Personal Data,Adult Social Care Direct Payment
Peterborough City Council,Adults,Independent Sector Placements,Services,06/06/2018,8000117858,1120,Revenue,Redacted Personal Data,Adult Social Care Direct Payment
Peterborough City Council,Adults,Independent Sector Placements,Services,06/06/2018,8000117859,587.2,Revenue,Redacted Personal Data,Adult Social Care Direct Payment
Peterborough City Council,Adults,Independent Sector Placements,Services,06/06/2018,8000117861,1041.76,Revenue,Redacted Personal Data,Adult Social Care Direct Payment
Peterborough City Council,Adults,Independent Sector Placements,Services,06/06/2018,8000117862,9339,Revenue,Redacted Personal Data,Adult Social Care Direct Payment
Peterborough City Council,Adults,Independent Sector Placements,Services,06/06/2018,8000117865,956.76,Revenue,Redacted Personal Data,Adult Social Care Direct Payment
Peterborough City Council,Adults,Independent Sector Placements,Services,06/06/2018,8000117866,1709.56,Revenue,Redacted Personal Data,Adult Social Care Direct Payment
Peterborough City Council,Adults,Independent Sector Placements,Services,06/06/2018,8000117867,858.48,Revenue,Redacted Personal Data,Adult Social Care Direct Payment
Peterborough City Council,Adults,Independent Sector Placements,Services,06/06/2018,8000117868,701.64,Revenue,Redacted Personal Data,Adult Social Care Direct Payment
Peterborough City Council,Adults,Independent Sector Placements,Services,06/06/2018,8000117869,547.32,Revenue,Redacted Personal Data,Adult Social Care Direct Payment
Peterborough City Council,Adults,Independent Sector Placements,Services,06/06/2018,8000117871,792.48,Revenue,Redacted Personal Data,Adult Social Care Direct Payment
Peterborough City Council,Adults,Independent Sector Placements,Services,06/06/2018,8000117872,601.48,Revenue,Redacted Personal Data,Adult Social Care Direct Payment
Peterborough City Council,Adults,Independent Sector Placements,Services,06/06/2018,8000117873,1576.24,Revenue,Redacted Personal Data,Adult Social Care Direct Payment
Peterborough City Council,Adults,Independent Sector Placements,Services,06/06/2018,8000117876,1694.4,Revenue,Redacted Personal Data,Adult Social Care Direct Payment
Peterborough City Council,Adults,Independent Sector Placements,Services,06/06/2018,8000117877,750,Revenue,Redacted Personal Data,Adult Social Care Direct Payment
Peterborough City Council,Adults,Independent Sector Placements,Services,06/06/2018,8000117878,3206.64,Revenue,Redacted Personal Data,Adult Social Care Direct Payment
Peterborough City Council,Adults,Independent Sector Placements,Services,06/06/2018,8000117881,659.08,Revenue,Redacted Personal Data,Adult Social Care Direct Payment
Peterborough City Council,Adults,Independent Sector Placements,Services,06/06/2018,8000117883,1998.52,Revenue,Redacted Personal Data,Adult Social Care Direct Payment
Peterborough City Council,Adults,Independent Sector Placements,Services,06/06/2018,8000117885,978.48,Revenue,Redacted Personal Data,Adult Social Care Direct Payment
Peterborough City Council,Adults,Independent Sector Placements,Services,06/06/2018,8000117886,705.6,Revenue,Redacted Personal Data,Adult Social Care Direct Payment
Peterborough City Council,Adults,Independent Sector Placements,Services,06/06/2018,8000117887,554.64,Revenue,Redacted Personal Data,Adult Social Care Direct Payment
Peterborough City Council,Adults,Independent Sector Placements,Services,06/06/2018,8000117890,1984.44,Revenue,Redacted Personal Data,Adult Social Care Direct Payment
Peterborough City Council,Adults,Independent Sector Placements,Services,06/06/2018,8000117894,733.36,Revenue,Redacted Personal Data,Adult Social Care Direct Payment
Peterborough City Council,Adults,Independent Sector Placements,Services,06/06/2018,8000117896,616.36,Revenue,Redacted Personal Data,Adult Social Care Direct Payment
Peterborough City Council,Adults,Independent Sector Placements,Services,06/06/2018,8000117897,891.04,Revenue,Redacted Personal Data,Adult Social Care Direct Payment
Peterborough City Council,Adults,Independent Sector Placements,Services,06/06/2018,8000117899,895.32,Revenue,Redacted Personal Data,Adult Social Care Direct Payment
Peterborough City Council,Adults,Independent Sector Placements,Services,06/06/2018,8000117900,3411.04,Revenue,Redacted Personal Data,Adult Social Care Direct Payment
Peterborough City Council,Adults,Independent Sector Placements,Services,06/06/2018,8000117903,504,Revenue,Redacted Personal Data,Adult Social Care Direct Payment
Peterborough City Council,Adults,Independent Sector Placements,Services,06/06/2018,8000117904,2034.48,Revenue,Redacted Personal Data,Adult Social Care Direct Payment
Peterborough City Council,Adults,Independent Sector Placements,Services,06/06/2018,8000117905,864.2,Revenue,Redacted Personal Data,Adult Social Care Direct Payment
Peterborough City Council,Adults,Independent Sector Placements,Services,06/06/2018,8000117910,1073,Revenue,Redacted Personal Data,Adult Social Care Direct Payment
Peterborough City Council,Adults,Independent Sector Placements,Services,06/06/2018,8000117912,673.12,Revenue,Redacted Personal Data,Adult Social Care Direct Payment
Peterborough City Council,Adults,Independent Sector Placements,Services,06/06/2018,8000117913,894.68,Revenue,Redacted Personal Data,Adult Social Care Direct Payment
Peterborough City Council,Adults,Independent Sector Placements,Services,06/06/2018,8000117915,2033.44,Revenue,Redacted Personal Data,Adult Social Care Direct Payment
Peterborough City Council,Adults,Independent Sector Placements,Services,06/06/2018,8000117917,637.84,Revenue,Redacted Personal Data,Adult Social Care Direct Payment
Peterborough City Council,Adults,Independent Sector Placements,Services,06/06/2018,8000117923,844.48,Revenue,Redacted Personal Data,Adult Social Care Direct Payment
Peterborough City Council,Adults,Independent Sector Placements,Services,06/06/2018,8000117924,706.48,Revenue,Redacted Personal Data,Adult Social Care Direct Payment
Peterborough City Council,Adults,Independent Sector Placements,Services,06/06/2018,8000117925,802.68,Revenue,Redacted Personal Data,Adult Social Care Direct Payment
Peterborough City Council,Adults,Independent Sector Placements,Services,06/06/2018,8000117926,907.8,Revenue,Redacted Personal Data,Adult Social Care Direct Payment
Peterborough City Council,Adults,Independent Sector Placements,Services,06/06/2018,8000117928,602.48,Revenue,Redacted Personal Data,Adult Social Care Direct Payment
Peterborough City Council,Adults,Independent Sector Placements,Services,06/06/2018,8000117929,4621.12,Revenue,Redacted Personal Data,Adult Social Care Direct Payment
Peterborough City Council,Adults,Independent Sector Placements,Services,06/06/2018,8000117932,714.4,Revenue,Redacted Personal Data,Adult Social Care Direct Payment
Peterborough City Council,Adults,Independent Sector Placements,Services,06/06/2018,8000117933,1444.08,Revenue,Redacted Personal Data,Adult Social Care Direct Payment
Peterborough City Council,Adults,Independent Sector Placements,Services,06/06/2018,8000117934,786.48,Revenue,Redacted Personal Data,Adult Social Care Direct Payment
Peterborough City Council,Adults,Independent Sector Placements,Services,06/06/2018,8000117935,900.48,Revenue,Redacted Personal Data,Adult Social Care Direct Payment
Peterborough City Council,Adults,Independent Sector Placements,Services,06/06/2018,8000117936,1585.04,Revenue,Redacted Personal Data,Adult Social Care Direct Payment
Peterborough City Council,Adults,Independent Sector Placements,Services,06/06/2018,8000117937,618.48,Revenue,Redacted Personal Data,Adult Social Care Direct Payment
Peterborough City Council,Adults,Independent Sector Placements,Services,06/06/2018,8000117938,2106.16,Revenue,Redacted Personal Data,Adult Social Care Direct Payment
Peterborough City Council,Adults,Independent Sector Placements,Services,06/06/2018,8000117939,5029.34,Revenue,Redacted Personal Data,Adult Social Care Direct Payment
Peterborough City Council,Adults,Independent Sector Placements,Services,06/06/2018,8000117940,606.48,Revenue,Redacted Personal Data,Adult Social Care Direct Payment
Peterborough City Council,Adults,Independent Sector Placements,Services,06/06/2018,8000117943,925.04,Revenue,Redacted Personal Data,Adult Social Care Direct Payment
Peterborough City Council,Adults,Independent Sector Placements,Services,06/06/2018,8000117945,1046.08,Revenue,Redacted Personal Data,Adult Social Care Direct Payment
Peterborough City Council,Adults,Independent Sector Placements,Services,06/06/2018,8000117946,522.48,Revenue,Redacted Personal Data,Adult Social Care Direct Payment
Peterborough City Council,Adults,Independent Sector Placements,Services,06/06/2018,8000117948,541.24,Revenue,Redacted Personal Data,Adult Social Care Direct Payment
Peterborough City Council,Adults,Independent Sector Placements,Services,06/06/2018,8000117949,2376.72,Revenue,Redacted Personal Data,Adult Social Care Direct Payment
Peterborough City Council,Adults,Independent Sector Placements,Services,06/06/2018,8000117952,1173.12,Revenue,Redacted Personal Data,Adult Social Care Direct Payment
Peterborough City Council,Adults,Independent Sector Placements,Services,06/06/2018,8000117953,1574,Revenue,Redacted Personal Data,Adult Social Care Direct Payment
Peterborough City Council,Corporate,Corporate,Non Revenue,08/06/2018,30176550,1542.84,Capital,Elliott Group Limited,Building And Site Works
Peterborough City Council,Corporate,Corporate,Non Revenue,08/06/2018,30176551,1594.2,Capital,Elliott Group Limited,Building And Site Works
Peterborough City Council,Public Health,PH Commissioning,Third Party Payments,08/06/2018,30177909,69949,Revenue,Solutions 4 Health Ltd,Third Party Payments - Contract
Peterborough City Council,Adults,Independent Sector Placements,Services,08/06/2018,30178177,5634.36,Revenue,Craegmoor Priory Group,Residential Care
Peterborough City Council,Adults,Independent Sector Placements,Services,08/06/2018,30178178,4756,Revenue,Craegmoor Priory Group,Residential Care
Peterborough City Council,Adults,Independent Sector Placements,Services,08/06/2018,30178179,4531.4,Revenue,Craegmoor Priory Group,Residential Care
Peterborough City Council,Adults,Home Services Delivery Model,Third Party Payments,08/06/2018,30178535,1777.8,Revenue,Mind in Cambridgeshire,Grant-Third Party
Peterborough City Council,Commissioning and Commercial Operations,Commissioning,Services,08/06/2018,30178536,5458.5,Revenue,Mind in Cambridgeshire,Training
Peterborough City Council,Peterborough Highway Services,Network and Traffic Management,Services,08/06/2018,30178538,3981.03,Revenue,Dynniq UK Ltd,Contractors
Peterborough City Council,Peterborough Highway Services,Network and Traffic Management,Services,08/06/2018,30178539,3856.07,Revenue,Dynniq UK Ltd,Contractors
Peterborough City Council,Adults,Independent Sector Placements,Services,08/06/2018,30178646,3925.82,Revenue,Longueville Court (Barchester),Residential Care
Peterborough City Council,Adults,Independent Sector Placements,Services,08/06/2018,30178647,3787.24,Revenue,Longueville Court (Barchester),Residential Care
Peterborough City Council,Adults,Independent Sector Placements,Services,08/06/2018,30178648,4188.6,Revenue,Longueville Court (Barchester),Residential Care
Peterborough City Council,Adults,Mental Capacity Act & DoLs,Services,08/06/2018,30178717,929,Revenue,SS Psychiatric Services Ltd,Hired Services
Peterborough City Council,Adults,Independent Sector Placements,Services,08/06/2018,30178770,7830,Revenue,Sagecare,Home Care
Peterborough City Council,Corporate,Corporate,Non Revenue,08/06/2018,30178818,21129.82,Capital,British Telecom PLC,Building And Site Works
Peterborough City Council,Corporate,Corporate,Non Revenue,08/06/2018,30178819,12566.52,Capital,British Telecom PLC,Building And Site Works
Peterborough City Council,Financial Services,Finance,Agency Staff,08/06/2018,30178883,783.01,Revenue,Morgan Hunt UK Ltd,External Temporary Staff
Peterborough City Council,Communities,Housing,Services,08/06/2018,30179183,595.56,Revenue,DA Rosalia Hotel,Temporary Accommodation Costs
Peterborough City Council,Communities,Housing,Services,08/06/2018,30179184,816.62,Revenue,DA Rosalia Hotel,Temporary Accommodation Costs
Peterborough City Council,Communities,Housing,Services,08/06/2018,30179186,595.56,Revenue,DA Rosalia Hotel,Temporary Accommodation Costs
Peterborough City Council,Communities,Housing,Services,08/06/2018,30179187,595.56,Revenue,DA Rosalia Hotel,Temporary Accommodation Costs
Peterborough City Council,Communities,Housing,Services,08/06/2018,30179188,816.62,Revenue,DA Rosalia Hotel,Temporary Accommodation Costs
Peterborough City Council,Communities,Housing,Services,08/06/2018,30179192,595.56,Revenue,DA Rosalia Hotel,Temporary Accommodation Costs
Peterborough City Council,Communities,Housing,Services,08/06/2018,30179193,595.56,Revenue,DA Rosalia Hotel,Temporary Accommodation Costs
Peterborough City Council,Communities,Housing,Services,08/06/2018,30179196,816.62,Revenue,DA Rosalia Hotel,Temporary Accommodation Costs
Peterborough City Council,Communities,Housing,Services,08/06/2018,30179197,595.56,Revenue,DA Rosalia Hotel,Temporary Accommodation Costs
Peterborough City Council,Communities,Housing,Services,08/06/2018,30179198,595.56,Revenue,DA Rosalia Hotel,Temporary Accommodation Costs
Peterborough City Council,Communities,Housing,Services,08/06/2018,30179199,714.56,Revenue,DA Rosalia Hotel,Temporary Accommodation Costs
Peterborough City Council,Communities,Housing,Services,08/06/2018,30179200,595.56,Revenue,DA Rosalia Hotel,Temporary Accommodation Costs
Peterborough City Council,Communities,Housing,Services,08/06/2018,30179201,714.56,Revenue,DA Rosalia Hotel,Temporary Accommodation Costs
Peterborough City Council,Communities,Housing,Services,08/06/2018,30179202,595.56,Revenue,DA Rosalia Hotel,Temporary Accommodation Costs
Peterborough City Council,Communities,Housing,Services,08/06/2018,30179203,1310.12,Revenue,DA Rosalia Hotel,Temporary Accommodation Costs
Peterborough City Council,Communities,Housing,Services,08/06/2018,30179204,1180.62,Revenue,DA Rosalia Hotel,Temporary Accommodation Costs
Peterborough City Council,Communities,Housing,Services,08/06/2018,30179205,714.56,Revenue,DA Rosalia Hotel,Temporary Accommodation Costs
Peterborough City Council,Communities,Housing,Services,08/06/2018,30179206,699.96,Revenue,DA Rosalia Hotel,Temporary Accommodation Costs
Peterborough City Council,Communities,Housing,Services,08/06/2018,30179207,595.56,Revenue,DA Rosalia Hotel,Temporary Accommodation Costs
Peterborough City Council,Communities,Housing,Services,08/06/2018,30179208,595.56,Revenue,DA Rosalia Hotel,Temporary Accommodation Costs
Peterborough City Council,Communities,Housing,Services,08/06/2018,30179209,1061.62,Revenue,DA Rosalia Hotel,Temporary Accommodation Costs
Peterborough City Council,Communities,Housing,Services,08/06/2018,30179210,1120,Revenue,DA Rosalia Hotel,Temporary Accommodation Costs
Peterborough City Council,Communities,Housing,Services,08/06/2018,30179211,714.56,Revenue,DA Rosalia Hotel,Temporary Accommodation Costs
Peterborough City Council,Communities,Housing,Services,08/06/2018,30179212,553.02,Revenue,DA Rosalia Hotel,Temporary Accommodation Costs
Peterborough City Council,Communities,Housing,Services,08/06/2018,30179213,595.56,Revenue,DA Rosalia Hotel,Temporary Accommodation Costs
Peterborough City Council,Communities,Housing,Services,08/06/2018,30179214,1061.62,Revenue,DA Rosalia Hotel,Temporary Accommodation Costs
Peterborough City Council,Communities,Housing,Services,08/06/2018,30179215,714.56,Revenue,DA Rosalia Hotel,Temporary Accommodation Costs
Peterborough City Council,Communities,Housing,Services,08/06/2018,30179216,933.38,Revenue,DA Rosalia Hotel,Temporary Accommodation Costs
Peterborough City Council,Communities,Housing,Services,08/06/2018,30179217,595.56,Revenue,DA Rosalia Hotel,Temporary Accommodation Costs
Peterborough City Council,Communities,Housing,Services,08/06/2018,30179218,2359,Revenue,DA Rosalia Hotel,Temporary Accommodation Costs
Peterborough City Council,Communities,Housing,Services,08/06/2018,30179219,714.56,Revenue,DA Rosalia Hotel,Temporary Accommodation Costs
Peterborough City Council,Adults,Independent Sector Placements,Services,08/06/2018,30179492,926,Revenue,Swanton Community Support,Residential Care
Peterborough City Council,Communities,Housing,Services,08/06/2018,30179522,933.38,Revenue,DA Rosalia Hotel,Temporary Accommodation Costs
Peterborough City Council,Communities,Housing,Services,08/06/2018,30179524,595.56,Revenue,DA Rosalia Hotel,Temporary Accommodation Costs
Peterborough City Council,Peterborough Serco Strategic Partnership,PSSP Retained Services,Services,08/06/2018,30179741,611.48,Revenue,Whistl UK Ltd,Postage
Peterborough City Council,Peterborough Serco Strategic Partnership,PSSP Retained Services,Services,08/06/2018,30179745,1562.33,Revenue,Whistl UK Ltd,Postage
Peterborough City Council,Commissioning and Commercial Operations,Clare Lodge,Agency Staff,08/06/2018,30179792,1848,Revenue,Wrixon Care Services,External Temporary Staff
Peterborough City Council,Commissioning and Commercial Operations,Clare Lodge,Agency Staff,08/06/2018,30179793,880,Revenue,Wrixon Care Services,External Temporary Staff
Peterborough City Council,Commissioning and Commercial Operations,Clare Lodge,Agency Staff,08/06/2018,30179805,928,Revenue,Wrixon Care Services,External Temporary Staff
Peterborough City Council,Commissioning and Commercial Operations,Clare Lodge,Agency Staff,08/06/2018,30179810,1872,Revenue,Wrixon Care Services,External Temporary Staff
Peterborough City Council,Commissioning and Commercial Operations,Clare Lodge,Agency Staff,08/06/2018,30179811,512,Revenue,Wrixon Care Services,External Temporary Staff
Peterborough City Council,Commissioning and Commercial Operations,Clare Lodge,Agency Staff,08/06/2018,30179812,992,Revenue,Wrixon Care Services,External Temporary Staff
Peterborough City Council,Westcombe Engineering,Westcombe Engineering,"Tools, Equipment, Furniture & Materials",08/06/2018,30179965,595,Revenue,Barron Clark Castings Ltd,Items For Resale
Peterborough City Council,Westcombe Engineering,Westcombe Engineering,"Tools, Equipment, Furniture & Materials",08/06/2018,30179966,613,Revenue,Barron Clark Castings Ltd,Items For Resale
Peterborough City Council,Westcombe Engineering,Westcombe Engineering,"Tools, Equipment, Furniture & Materials",08/06/2018,30179970,516,Revenue,Barron Clark Castings Ltd,Items For Resale
Peterborough City Council,Westcombe Engineering,Westcombe Engineering,"Tools, Equipment, Furniture & Materials",08/06/2018,30179971,548.88,Revenue,Barron Clark Castings Ltd,Items For Resale
Peterborough City Council,Adults,Independent Sector Placements,Services,08/06/2018,30179980,-1311.11,Revenue,HEREWARD CARE SERVICES LIMITED,Residential Care
Peterborough City Council,Adults,Independent Sector Placements,Services,08/06/2018,30179981,-2794.04,Revenue,HEREWARD CARE SERVICES LIMITED,Residential Care
Peterborough City Council,Adults,Independent Sector Placements,Services,08/06/2018,30180096,1797.8,Revenue,THE LODGE TRUST,Residential Care
Peterborough City Council,"Waste, Cleansing and Open Spaces",Waste & Operational Svs Mgmt,Energy Costs,08/06/2018,30180193,978.81,Revenue,British Gas Business,Electricity
Peterborough City Council,Communities,Cultural Services,Energy Costs,08/06/2018,30180193,1278.29,Revenue,British Gas Business,Electricity
Peterborough City Council,City Centre Management,"Markets, Tourism & Events",Energy Costs,08/06/2018,30180196,760.17,Revenue,British Gas Business,Electricity
Peterborough City Council,Communities,Cultural Services,Energy Costs,08/06/2018,30180196,1770.52,Revenue,British Gas Business,Electricity
Peterborough City Council,Communities,Cultural Services,Energy Costs,08/06/2018,30180197,2193.34,Revenue,British Gas Business,Electricity
Peterborough City Council,Corporate Property,Office Accomodation,Energy Costs,08/06/2018,30180276,1482.35,Revenue,British Gas Business,Electricity
Peterborough City Council,"Waste, Cleansing and Open Spaces",Waste & Operational Svs Mgmt,Energy Costs,08/06/2018,30180291,718.6,Revenue,British Gas Business,Electricity
Peterborough City Council,Education,Pupil Referral Unit,Energy Costs,08/06/2018,30180291,720.48,Revenue,British Gas Business,Electricity
Peterborough City Council,Peterborough Highway Services,Highway Services - HoS,Agency Staff,08/06/2018,30180348,904.22,Revenue,Reed Specialist Recruitment Limited,External Temporary Staff
Peterborough City Council,Communities,Housing,Services,08/06/2018,30180407,1310.12,Revenue,DA Rosalia Hotel,Temporary Accommodation Costs
Peterborough City Council,Communities,Housing,Services,08/06/2018,30180409,816.62,Revenue,DA Rosalia Hotel,Temporary Accommodation Costs
Peterborough City Council,Communities,Housing,Services,08/06/2018,30180410,714.56,Revenue,DA Rosalia Hotel,Temporary Accommodation Costs
Peterborough City Council,Communities,Housing,Services,08/06/2018,30180412,816.62,Revenue,DA Rosalia Hotel,Temporary Accommodation Costs
Peterborough City Council,Communities,Housing,Services,08/06/2018,30180413,666.7,Revenue,DA Rosalia Hotel,Temporary Accommodation Costs
Peterborough City Council,Communities,Housing,Services,08/06/2018,30180414,595.56,Revenue,DA Rosalia Hotel,Temporary Accommodation Costs
Peterborough City Council,Communities,Housing,Services,08/06/2018,30180415,1310.12,Revenue,DA Rosalia Hotel,Temporary Accommodation Costs
Peterborough City Council,Adults,Independent Sector Placements,Services,08/06/2018,30180629,-1350,Revenue,Sagecare,Home Care
Peterborough City Council,Peterborough Highway Services,Highway Services - HoS,Agency Staff,08/06/2018,30180674,916.26,Revenue,Reed Specialist Recruitment Limited,External Temporary Staff
Peterborough City Council,Financial Services,Finance,Agency Staff,08/06/2018,30180677,657.86,Revenue,Reed Specialist Recruitment Limited,External Temporary Staff
Peterborough City Council,Public Health,PH Commissioning,Third Party Payments,08/06/2018,30180760,671,Revenue,Cambridgeshire Community Services,Third Party Payments - Contract
Peterborough City Council,Adults,Independent Sector Placements,Services,08/06/2018,30180787,506.25,Revenue,Cross Keys Homes,Home Care
Peterborough City Council,Corporate,Corporate,Non Revenue,08/06/2018,30180830,12615,Capital,Garfield Builders Ltd,Building And Site Works
Peterborough City Council,Legal Services,Legal Services,Agency Staff,08/06/2018,30180837,996,Revenue,Giant Professional Limited,External Temporary Staff
Peterborough City Council,Education,Pupil Referral Unit,Water Services,08/06/2018,30180934,872.19,Revenue,Anglian Water Business National,Water
Peterborough City Council,Communities,Cultural Services,Water Services,08/06/2018,30180934,4826.26,Revenue,Anglian Water Business National,Water
Peterborough City Council,Communities,Cultural Services,Water Services,08/06/2018,30180934,4336.37,Revenue,Anglian Water Business National,Water
Peterborough City Council,Commissioning and Commercial Operations,Clare Lodge,Services,08/06/2018,30180976,5620,Revenue,Ofsted,Subscriptions
Peterborough City Council,Development and Construction,Planning Compliance,Agency Staff,08/06/2018,30180985,1080.63,Revenue,Reed Specialist Recruitment Limited,External Temporary Staff
Peterborough City Council,HR,HR,Services,08/06/2018,30180991,12246.68,Revenue,Edenred,Childcare
Peterborough City Council,Adults,Independent Sector Placements,Services,08/06/2018,30181018,2684.04,Revenue,STAR RESIDENTIAL HOME LTD,Residential Care
Peterborough City Council,Adults,Independent Sector Placements,Services,08/06/2018,30181020,2580.04,Revenue,STAR RESIDENTIAL HOME LTD,Residential Care
Peterborough City Council,Education,Pupil Referral Unit,Energy Costs,08/06/2018,30181066,1468.26,Revenue,Southern Electric,Electricity
Peterborough City Council,Adults,Independent Sector Placements,Services,08/06/2018,30181147,2607,Revenue,HEREWARD CARE SERVICES LIMITED,Residential Care
Peterborough City Council,Adults,Independent Sector Placements,Services,08/06/2018,30181148,2677.32,Revenue,HEREWARD CARE SERVICES LIMITED,Residential Care
Peterborough City Council,Commissioning and Commercial Operations,Early Years & Quality Improvement,Services,08/06/2018,30181160,615,Revenue,Belsize Day Nursery,Grant Payment
Peterborough City Council,Adults,Independent Sector Placements,Services,08/06/2018,30181161,4497.76,Revenue,HEREWARD CARE SERVICES LIMITED,Residential Care
Peterborough City Council,Adults,Independent Sector Placements,Services,08/06/2018,30181164,1159.19,Revenue,Athena (Aria Court),Residential Care
Peterborough City Council,Adults,Other Services,Third Party Payments,08/06/2018,30181170,38373,Revenue,Healthwatch Cambridgeshire and Peterborough,Third Party Payments - Contract
Peterborough City Council,Adults,Independent Sector Placements,Services,08/06/2018,30181173,2671.84,Revenue,HEREWARD CARE SERVICES LIMITED,Residential Care
Peterborough City Council,Adults,Independent Sector Placements,Services,08/06/2018,30181174,3431.12,Revenue,HEREWARD CARE SERVICES LIMITED,Residential Care
Peterborough City Council,Adults,Independent Sector Placements,Services,08/06/2018,30181175,2167.6,Revenue,HEREWARD CARE SERVICES LIMITED,Residential Care
Peterborough City Council,Adults,Independent Sector Placements,Services,08/06/2018,30181176,3187.48,Revenue,HEREWARD CARE SERVICES LIMITED,Residential Care
Peterborough City Council,Adults,Independent Sector Placements,Services,08/06/2018,30181179,1490.24,Revenue,STAR RESIDENTIAL HOME LTD,Residential Care
Peterborough City Council,Adults,Independent Sector Placements,Services,08/06/2018,30181186,5919.2,Revenue,Maison Care Ltd,Residential Care
Peterborough City Council,Adults,Independent Sector Placements,Services,08/06/2018,30181189,4397,Revenue,OAKFIELD (EASTON MAUDIT) LTD,Residential Care
Peterborough City Council,Commissioning and Commercial Operations,Commissioning Team,Agency Staff,08/06/2018,30181213,10545,Revenue,Sanctuary Personnel Ltd,External Temporary Staff
Peterborough City Council,Corporate Property,Commercial Propety,Repair & Maintenance of Buildings,08/06/2018,30181250,1000,Revenue,Stanground Community Space CIC,Service Charges - Premises
Peterborough City Council,Adults,Independent Sector Placements,Services,08/06/2018,30181260,2421.88,Revenue,Avery House (Peterborough) t/a Brighterkind,Residential Care
Peterborough City Council,Adults,Independent Sector Placements,Services,08/06/2018,30181261,1154.2,Revenue,Athena (Aria Court),Residential Care
Peterborough City Council,Corporate,Corporate,Non Revenue,08/06/2018,30181276,9000,Balance Sheet,Redacted Personal Data,Deposits
Peterborough City Council,Corporate,Corporate,Non Revenue,08/06/2018,30181302,17789.36,Capital,Serco Ltd,Computer Software
Peterborough City Council,Adults,Strategic Commissioning - Management,Agency Staff,08/06/2018,30181306,3940.5,Revenue,Sanctuary Personnel Ltd,External Temporary Staff
Peterborough City Council,Communities,Housing,Services,08/06/2018,30181326,553,Revenue,Eastfield Guesthouse,Temporary Accommodation Costs
Peterborough City Council,Communities,Housing,Services,08/06/2018,30181327,553,Revenue,Eastfield Guesthouse,Temporary Accommodation Costs
Peterborough City Council,Communities,Housing,Services,08/06/2018,30181329,553,Revenue,Eastfield Guesthouse,Temporary Accommodation Costs
Peterborough City Council,Communities,Housing,Services,08/06/2018,30181330,553,Revenue,Eastfield Guesthouse,Temporary Accommodation Costs
Peterborough City Council,Communities,Housing,Services,08/06/2018,30181331,553,Revenue,Eastfield Guesthouse,Temporary Accommodation Costs
Peterborough City Council,Communities,Housing,Services,08/06/2018,30181332,553,Revenue,Eastfield Guesthouse,Temporary Accommodation Costs
Peterborough City Council,Communities,Housing,Services,08/06/2018,30181333,553,Revenue,Eastfield Guesthouse,Temporary Accommodation Costs
Peterborough City Council,Communities,Housing,Services,08/06/2018,30181335,553,Revenue,Eastfield Guesthouse,Temporary Accommodation Costs
Peterborough City Council,Communities,Housing,Services,08/06/2018,30181336,553,Revenue,Eastfield Guesthouse,Temporary Accommodation Costs
Peterborough City Council,Communities,Housing,Services,08/06/2018,30181337,553,Revenue,Eastfield Guesthouse,Temporary Accommodation Costs
Peterborough City Council,Communities,Housing,Services,08/06/2018,30181339,553,Revenue,Eastfield Guesthouse,Temporary Accommodation Costs
Peterborough City Council,Communities,Housing,Services,08/06/2018,30181340,553,Revenue,Eastfield Guesthouse,Temporary Accommodation Costs
Peterborough City Council,Communities,Housing,Services,08/06/2018,30181344,553,Revenue,Eastfield Guesthouse,Temporary Accommodation Costs
Peterborough City Council,Communities,Housing,Services,08/06/2018,30181349,553,Revenue,Eastfield Guesthouse,Temporary Accommodation Costs
Peterborough City Council,Communities,Housing,Services,08/06/2018,30181351,553,Revenue,Eastfield Guesthouse,Temporary Accommodation Costs
Peterborough City Council,Communities,Housing,Services,08/06/2018,30181354,553,Revenue,Eastfield Guesthouse,Temporary Accommodation Costs
Peterborough City Council,Communities,Housing,Services,08/06/2018,30181360,532,Revenue,Eastfield Guesthouse,Temporary Accommodation Costs
Peterborough City Council,Communities,Housing,Services,08/06/2018,30181368,532,Revenue,Eastfield Guesthouse,Temporary Accommodation Costs
Peterborough City Council,Communities,Housing,Services,08/06/2018,30181369,532,Revenue,Eastfield Guesthouse,Temporary Accommodation Costs
Peterborough City Council,Communities,Housing,Services,08/06/2018,30181372,553,Revenue,Eastfield Guesthouse,Temporary Accommodation Costs
Peterborough City Council,Children's & Safeguarding,External Education Placements,Services,08/06/2018,30181373,2590.27,Revenue,Farcet C.E. (C) Primary School,Out Of Area Education Costs
Peterborough City Council,Adults,Independent Sector Placements,Services,08/06/2018,30181384,1593,Revenue,THE HELPING HANDS GROUP,Day Care
Peterborough City Council,Adults,Independent Sector Placements,Services,08/06/2018,30181386,1260,Revenue,THE HELPING HANDS GROUP,Day Care
Peterborough City Council,Adults,Independent Sector Placements,Services,08/06/2018,30181387,2440,Revenue,THE HELPING HANDS GROUP,Day Care
Peterborough City Council,Adults,Independent Sector Placements,Services,08/06/2018,30181388,1952,Revenue,THE HELPING HANDS GROUP,Day Care
Peterborough City Council,Adults,Independent Sector Placements,Services,08/06/2018,30181389,1991.25,Revenue,THE HELPING HANDS GROUP,Day Care
Peterborough City Council,Adults,Independent Sector Placements,Services,08/06/2018,30181391,2440,Revenue,THE HELPING HANDS GROUP,Day Care
Peterborough City Council,Adults,Independent Sector Placements,Services,08/06/2018,30181393,1062,Revenue,THE HELPING HANDS GROUP,Day Care
Peterborough City Council,Adults,Independent Sector Placements,Services,08/06/2018,30181394,1389,Revenue,THE HELPING HANDS GROUP,Day Care
Peterborough City Council,Adults,Independent Sector Placements,Services,08/06/2018,30181395,976,Revenue,THE HELPING HANDS GROUP,Day Care
Peterborough City Council,Adults,Independent Sector Placements,Services,08/06/2018,30181398,3837.5,Revenue,THE HELPING HANDS GROUP,Day Care
Peterborough City Council,Adults,Independent Sector Placements,Services,08/06/2018,30181399,2655,Revenue,THE HELPING HANDS GROUP,Day Care
Peterborough City Council,Adults,Independent Sector Placements,Services,08/06/2018,30181402,756,Revenue,THE HELPING HANDS GROUP,Day Care
Peterborough City Council,Adults,Independent Sector Placements,Services,08/06/2018,30181403,1260,Revenue,THE HELPING HANDS GROUP,Day Care
Peterborough City Council,Adults,Independent Sector Placements,Services,08/06/2018,30181404,2440,Revenue,THE HELPING HANDS GROUP,Day Care
Peterborough City Council,Adults,Independent Sector Placements,Services,08/06/2018,30181405,999.75,Revenue,THE HELPING HANDS GROUP,Day Care
Peterborough City Council,Adults,Independent Sector Placements,Services,08/06/2018,30181407,1008,Revenue,THE HELPING HANDS GROUP,Day Care
Peterborough City Council,Adults,Independent Sector Placements,Services,08/06/2018,30181409,1260,Revenue,THE HELPING HANDS GROUP,Day Care
Peterborough City Council,Adults,Independent Sector Placements,Services,08/06/2018,30181410,1260,Revenue,THE HELPING HANDS GROUP,Day Care
Peterborough City Council,Adults,Independent Sector Placements,Services,08/06/2018,30181411,1331.96,Revenue,LAVENDER HOUSE RESIDENTIAL HOME,Residential Care
Peterborough City Council,Adults,Independent Sector Placements,Services,08/06/2018,30181412,819.85,Revenue,LAVENDER HOUSE RESIDENTIAL HOME,Residential Care
Peterborough City Council,Development and Construction,Development Management,Agency Staff,08/06/2018,30181422,1000.21,Revenue,Reed Specialist Recruitment Limited,External Temporary Staff
Peterborough City Council,Adults,Independent Sector Placements,Services,08/06/2018,30181449,1285.71,Revenue,LAVENDER HOUSE RESIDENTIAL HOME,Residential Care
Peterborough City Council,Adults,Independent Sector Placements,Services,08/06/2018,30181480,3600,Revenue,FIELD HOUSE (EYE) LTD,Residential Care
Peterborough City Council,Adults,Independent Sector Placements,Services,08/06/2018,30181481,1200,Revenue,FIELD HOUSE (EYE) LTD,Residential Care
Peterborough City Council,Adults,Independent Sector Placements,Services,08/06/2018,30181482,1822.2,Revenue,PHILIA LODGE REST HOME,Residential Care
Peterborough City Council,Adults,Independent Sector Placements,Services,08/06/2018,30181486,2793.84,Revenue,Country Court Care Homes Ltd (St Johns),Residential Care
Peterborough City Council,Westcombe Engineering,Westcombe Engineering,"Tools, Equipment, Furniture & Materials",08/06/2018,30181494,-1403.42,Revenue,Barron Clark Castings Ltd,Items For Resale
Peterborough City Council,Communities,Cultural Services,Services,08/06/2018,30181505,2875,Revenue,Peterborough Sings,Hired Services
Peterborough City Council,Adults,Independent Sector Placements,Services,08/06/2018,30181521,1597.09,Revenue,FIELD HOUSE (EYE) LTD,Residential Care
Peterborough City Council,Commissioning and Commercial Operations,Clare Lodge,Services,08/06/2018,30181563,1008.15,Revenue,Apogee Corporation,Photocopier
Peterborough City Council,Adults,Independent Sector Placements,Services,08/06/2018,30181577,2681.04,Revenue,STAR RESIDENTIAL HOME LTD,Residential Care
Peterborough City Council,Adults,Independent Sector Placements,Services,08/06/2018,30181578,2651.8,Revenue,STAR RESIDENTIAL HOME LTD,Residential Care
Peterborough City Council,Adults,Independent Sector Placements,Services,08/06/2018,30181579,2681.04,Revenue,STAR RESIDENTIAL HOME LTD,Residential Care
Peterborough City Council,Adults,Independent Sector Placements,Contract Hire and Operating Leases,08/06/2018,30181580,1200,Revenue,King Carz Ltd,Hired Transport
Peterborough City Council,Adults,Independent Sector Placements,Services,08/06/2018,8000116171,662.63,Revenue,Merit Homecare Ltd,Home Care
Peterborough City Council,Adults,Independent Sector Placements,Services,08/06/2018,8000116177,524.4,Revenue,Merit Homecare Ltd,Home Care
Peterborough City Council,Adults,Independent Sector Placements,Services,08/06/2018,8000116178,924.6,Revenue,Merit Homecare Ltd,Home Care
Peterborough City Council,Adults,Independent Sector Placements,Services,08/06/2018,8000116180,979.8,Revenue,Merit Homecare Ltd,Home Care
Peterborough City Council,Adults,Independent Sector Placements,Services,08/06/2018,8000116184,558.9,Revenue,Merit Homecare Ltd,Home Care
Peterborough City Council,Adults,Independent Sector Placements,Services,08/06/2018,8000116187,1738.8,Revenue,Merit Homecare Ltd,Home Care
Peterborough City Council,Adults,Independent Sector Placements,Services,08/06/2018,8000116188,690,Revenue,Merit Homecare Ltd,Home Care
Peterborough City Council,Adults,Independent Sector Placements,Services,08/06/2018,8000116192,507.15,Revenue,Merit Homecare Ltd,Home Care
Peterborough City Council,Adults,Independent Sector Placements,Services,08/06/2018,8000116193,576.15,Revenue,Merit Homecare Ltd,Home Care
Peterborough City Council,Adults,Independent Sector Placements,Services,08/06/2018,8000116195,1352.4,Revenue,Merit Homecare Ltd,Home Care
Peterborough City Council,Adults,Independent Sector Placements,Services,08/06/2018,8000116203,1545.6,Revenue,Merit Homecare Ltd,Home Care
Peterborough City Council,Adults,Independent Sector Placements,Services,08/06/2018,8000116204,552,Revenue,Merit Homecare Ltd,Home Care
Peterborough City Council,Adults,Independent Sector Placements,Services,08/06/2018,8000116211,966,Revenue,Merit Homecare Ltd,Home Care
Peterborough City Council,Adults,Independent Sector Placements,Services,08/06/2018,8000116212,800.4,Revenue,Merit Homecare Ltd,Home Care
Peterborough City Council,Adults,Independent Sector Placements,Services,08/06/2018,8000116213,786.6,Revenue,Merit Homecare Ltd,Home Care
Peterborough City Council,Adults,Independent Sector Placements,Services,08/06/2018,8000116219,631.35,Revenue,Merit Homecare Ltd,Home Care
Peterborough City Council,Adults,Independent Sector Placements,Services,08/06/2018,8000116223,772.8,Revenue,Merit Homecare Ltd,Home Care
Peterborough City Council,Adults,Independent Sector Placements,Services,08/06/2018,8000116227,979.8,Revenue,Merit Homecare Ltd,Home Care
Peterborough City Council,Adults,Independent Sector Placements,Services,08/06/2018,8000116229,714.15,Revenue,Merit Homecare Ltd,Home Care
Peterborough City Council,Adults,Independent Sector Placements,Services,08/06/2018,8000116230,1738.8,Revenue,Merit Homecare Ltd,Home Care
Peterborough City Council,Adults,Independent Sector Placements,Services,08/06/2018,8000116231,1545.6,Revenue,Merit Homecare Ltd,Home Care
Peterborough City Council,Adults,Independent Sector Placements,Services,08/06/2018,8000116232,966,Revenue,Merit Homecare Ltd,Home Care
Peterborough City Council,Adults,Independent Sector Placements,Services,08/06/2018,8000116233,1738.8,Revenue,Merit Homecare Ltd,Home Care
Peterborough City Council,Adults,Independent Sector Placements,Services,08/06/2018,8000116235,552,Revenue,Merit Homecare Ltd,Home Care
Peterborough City Council,Adults,Independent Sector Placements,Services,08/06/2018,8000116236,924.6,Revenue,Merit Homecare Ltd,Home Care
Peterborough City Council,Adults,Independent Sector Placements,Services,08/06/2018,8000116240,579.6,Revenue,Merit Homecare Ltd,Home Care
Peterborough City Council,Adults,Independent Sector Placements,Services,08/06/2018,8000116241,524.4,Revenue,Merit Homecare Ltd,Home Care
Peterborough City Council,Adults,Independent Sector Placements,Services,08/06/2018,8000116243,903.9,Revenue,Merit Homecare Ltd,Home Care
Peterborough City Council,Adults,Independent Sector Placements,Services,08/06/2018,8000116245,658.95,Revenue,Merit Homecare Ltd,Home Care
Peterborough City Council,Adults,Independent Sector Placements,Services,08/06/2018,8000116247,538.2,Revenue,Merit Homecare Ltd,Home Care
Peterborough City Council,Adults,Independent Sector Placements,Services,08/06/2018,8000116732,14541.16,Revenue,Atlas Care Services Ltd,Home Care
Peterborough City Council,Adults,Independent Sector Placements,Services,08/06/2018,8000116734,793.78,Revenue,Atlas Care Services Ltd,Home Care
Peterborough City Council,Adults,Independent Sector Placements,Services,08/06/2018,8000116738,1524.37,Revenue,Atlas Care Services Ltd,Home Care
Peterborough City Council,Adults,Independent Sector Placements,Services,08/06/2018,8000116739,2328.09,Revenue,Atlas Care Services Ltd,Home Care
Peterborough City Council,Adults,Independent Sector Placements,Services,08/06/2018,8000116745,1716.07,Revenue,Atlas Care Services Ltd,Home Care
Peterborough City Council,Adults,Independent Sector Placements,Services,08/06/2018,8000116746,852,Revenue,Atlas Care Services Ltd,Home Care
Peterborough City Council,Adults,Independent Sector Placements,Services,08/06/2018,8000116748,886.08,Revenue,Atlas Care Services Ltd,Home Care
Peterborough City Council,Adults,Independent Sector Placements,Services,08/06/2018,8000116749,665.98,Revenue,Atlas Care Services Ltd,Home Care
Peterborough City Council,Adults,Independent Sector Placements,Services,08/06/2018,8000116751,2683.8,Revenue,Atlas Care Services Ltd,Home Care
Peterborough City Council,Adults,Independent Sector Placements,Services,08/06/2018,8000116754,2014.27,Revenue,Atlas Care Services Ltd,Home Care
Peterborough City Council,Adults,Independent Sector Placements,Services,08/06/2018,8000116756,745.5,Revenue,Atlas Care Services Ltd,Home Care
Peterborough City Council,Adults,Independent Sector Placements,Services,08/06/2018,8000116758,1965.99,Revenue,Atlas Care Services Ltd,Home Care
Peterborough City Council,Adults,Independent Sector Placements,Services,08/06/2018,8000116761,1374.56,Revenue,Atlas Care Services Ltd,Home Care
Peterborough City Council,Adults,Independent Sector Placements,Services,08/06/2018,8000116764,1025.95,Revenue,Atlas Care Services Ltd,Home Care
Peterborough City Council,Adults,Independent Sector Placements,Services,08/06/2018,8000116765,793.07,Revenue,Atlas Care Services Ltd,Home Care
Peterborough City Council,Adults,Independent Sector Placements,Services,08/06/2018,8000116766,1271.61,Revenue,Atlas Care Services Ltd,Home Care
Peterborough City Council,Adults,Independent Sector Placements,Services,08/06/2018,8000116767,1573.36,Revenue,Atlas Care Services Ltd,Home Care
Peterborough City Council,Adults,Independent Sector Placements,Services,08/06/2018,8000116769,991.87,Revenue,Atlas Care Services Ltd,Home Care
Peterborough City Council,Adults,Independent Sector Placements,Services,08/06/2018,8000116776,1650.75,Revenue,Atlas Care Services Ltd,Home Care
Peterborough City Council,Adults,Independent Sector Placements,Services,08/06/2018,8000116777,944.3,Revenue,Atlas Care Services Ltd,Home Care
Peterborough City Council,Adults,Independent Sector Placements,Services,08/06/2018,8000116940,589.3,Revenue,Atlas Care Services Ltd,Home Care
Peterborough City Council,Adults,Independent Sector Placements,Services,08/06/2018,8000116941,1576.2,Revenue,Atlas Care Services Ltd,Home Care
Peterborough City Council,Adults,Independent Sector Placements,Services,08/06/2018,8000116946,1031.63,Revenue,Atlas Care Services Ltd,Home Care
Peterborough City Council,Adults,Independent Sector Placements,Services,08/06/2018,8000116948,789.52,Revenue,Atlas Care Services Ltd,Home Care
Peterborough City Council,Adults,Independent Sector Placements,Services,08/06/2018,8000116949,634.03,Revenue,Atlas Care Services Ltd,Home Care
Peterborough City Council,Adults,Independent Sector Placements,Services,08/06/2018,8000116950,1964.57,Revenue,Atlas Care Services Ltd,Home Care
Peterborough City Council,Adults,Independent Sector Placements,Services,08/06/2018,8000116951,521.14,Revenue,Atlas Care Services Ltd,Home Care
Peterborough City Council,Adults,Independent Sector Placements,Services,08/06/2018,8000116952,573.68,Revenue,Atlas Care Services Ltd,Home Care
Peterborough City Council,Adults,Independent Sector Placements,Services,08/06/2018,8000116953,580.07,Revenue,Atlas Care Services Ltd,Home Care
Peterborough City Council,Adults,Independent Sector Placements,Services,08/06/2018,8000116955,755.44,Revenue,Atlas Care Services Ltd,Home Care
Peterborough City Council,Adults,Independent Sector Placements,Services,08/06/2018,8000116963,1055.06,Revenue,Atlas Care Services Ltd,Home Care
Peterborough City Council,Adults,Independent Sector Placements,Services,08/06/2018,8000116965,1096.95,Revenue,Atlas Care Services Ltd,Home Care
Peterborough City Council,Adults,Independent Sector Placements,Services,08/06/2018,8000117070,1963.01,Revenue,Allied Healthcare (UK) Ltd,Home Care
Peterborough City Council,Adults,Independent Sector Placements,Services,08/06/2018,8000117073,712.08,Revenue,Allied Healthcare (UK) Ltd,Home Care
Peterborough City Council,Adults,Independent Sector Placements,Services,08/06/2018,8000117076,1632.82,Revenue,Allied Healthcare (UK) Ltd,Home Care
Peterborough City Council,Adults,Independent Sector Placements,Services,08/06/2018,8000117086,597.31,Revenue,Allied Healthcare (UK) Ltd,Home Care
Peterborough City Council,Adults,Independent Sector Placements,Services,08/06/2018,8000117087,567.22,Revenue,Allied Healthcare (UK) Ltd,Home Care
Peterborough City Council,Adults,Independent Sector Placements,Services,08/06/2018,8000117089,533.95,Revenue,Allied Healthcare (UK) Ltd,Home Care
Peterborough City Council,Adults,Independent Sector Placements,Services,08/06/2018,8000117090,515.23,Revenue,Allied Healthcare (UK) Ltd,Home Care
Peterborough City Council,Adults,Independent Sector Placements,Services,08/06/2018,8000117093,2701.73,Revenue,Allied Healthcare (UK) Ltd,Home Care
Peterborough City Council,Adults,Independent Sector Placements,Services,08/06/2018,8000117127,834.4,Revenue,Hales Group Ltd,Home Care
Peterborough City Council,Adults,Independent Sector Placements,Services,08/06/2018,8000117128,532.95,Revenue,Hales Group Ltd,Home Care
Peterborough City Council,Adults,Independent Sector Placements,Services,08/06/2018,8000117134,1773.75,Revenue,Hales Group Ltd,Home Care
Peterborough City Council,Adults,Independent Sector Placements,Services,08/06/2018,8000117137,798.9,Revenue,Hales Group Ltd,Home Care
Peterborough City Council,Adults,Independent Sector Placements,Services,08/06/2018,8000117138,559.05,Revenue,Hales Group Ltd,Home Care
Peterborough City Council,Adults,Independent Sector Placements,Services,08/06/2018,8000117141,790.2,Revenue,Hales Group Ltd,Home Care
Peterborough City Council,Adults,Independent Sector Placements,Services,08/06/2018,8000117143,2404.65,Revenue,Hales Group Ltd,Home Care
Peterborough City Council,Adults,Independent Sector Placements,Services,08/06/2018,8000117145,2130.15,Revenue,Hales Group Ltd,Home Care
Peterborough City Council,Adults,Independent Sector Placements,Services,08/06/2018,8000117146,541.35,Revenue,Hales Group Ltd,Home Care
Peterborough City Council,Adults,Independent Sector Placements,Services,08/06/2018,8000117147,1736.1,Revenue,Hales Group Ltd,Home Care
Peterborough City Council,Adults,Independent Sector Placements,Services,08/06/2018,8000117148,728.1,Revenue,Hales Group Ltd,Home Care
Peterborough City Council,Adults,Independent Sector Placements,Services,08/06/2018,8000117149,925.95,Revenue,Hales Group Ltd,Home Care
Peterborough City Council,Adults,Independent Sector Placements,Services,08/06/2018,8000117157,1116.75,Revenue,Hales Group Ltd,Home Care
Peterborough City Council,Adults,Independent Sector Placements,Services,08/06/2018,8000117158,734.4,Revenue,Hales Group Ltd,Home Care
Peterborough City Council,Adults,Independent Sector Placements,Services,08/06/2018,8000117159,745.05,Revenue,Hales Group Ltd,Home Care
Peterborough City Council,Adults,Independent Sector Placements,Services,08/06/2018,8000117161,520.5,Revenue,Hales Group Ltd,Home Care
Peterborough City Council,Adults,Independent Sector Placements,Services,08/06/2018,8000117162,617.55,Revenue,Hales Group Ltd,Home Care
Peterborough City Council,Adults,Independent Sector Placements,Services,08/06/2018,8000117163,660.75,Revenue,Hales Group Ltd,Home Care
Peterborough City Council,Adults,Independent Sector Placements,Services,08/06/2018,8000117165,1107.45,Revenue,Hales Group Ltd,Home Care
Peterborough City Council,Adults,Independent Sector Placements,Services,08/06/2018,8000117166,816.75,Revenue,Hales Group Ltd,Home Care
Peterborough City Council,Adults,Independent Sector Placements,Services,08/06/2018,8000117168,996.15,Revenue,Hales Group Ltd,Home Care
Peterborough City Council,Adults,Independent Sector Placements,Services,08/06/2018,8000117169,873.15,Revenue,Hales Group Ltd,Home Care
Peterborough City Council,Adults,Independent Sector Placements,Services,08/06/2018,8000117170,954,Revenue,Hales Group Ltd,Home Care
Peterborough City Council,Adults,Independent Sector Placements,Services,08/06/2018,8000117172,1512.9,Revenue,Hales Group Ltd,Home Care
Peterborough City Council,Adults,Independent Sector Placements,Services,08/06/2018,8000117173,937.5,Revenue,Hales Group Ltd,Home Care
Peterborough City Council,Adults,Independent Sector Placements,Services,08/06/2018,8000117175,1085.7,Revenue,Hales Group Ltd,Home Care
Peterborough City Council,Adults,Independent Sector Placements,Services,08/06/2018,8000117176,528.3,Revenue,Hales Group Ltd,Home Care
Peterborough City Council,Adults,Independent Sector Placements,Services,08/06/2018,8000117177,835.5,Revenue,Hales Group Ltd,Home Care
Peterborough City Council,Adults,Independent Sector Placements,Services,08/06/2018,8000117285,517.5,Revenue,Cross Keys Homes,Home Care
Peterborough City Council,Adults,Independent Sector Placements,Services,08/06/2018,8000117286,817.5,Revenue,Cross Keys Homes,Home Care
Peterborough City Council,Adults,Independent Sector Placements,Services,08/06/2018,8000117288,570,Revenue,Cross Keys Homes,Home Care
Peterborough City Council,Adults,Independent Sector Placements,Services,08/06/2018,8000117289,1901.5,Revenue,Cross Keys Homes,Home Care
Peterborough City Council,Adults,Independent Sector Placements,Services,08/06/2018,8000117290,555,Revenue,Cross Keys Homes,Home Care
Peterborough City Council,Adults,Independent Sector Placements,Services,08/06/2018,8000117291,2730,Revenue,Cross Keys Homes,Home Care
Peterborough City Council,Adults,Independent Sector Placements,Services,08/06/2018,8000117292,900,Revenue,Cross Keys Homes,Home Care
Peterborough City Council,Adults,Independent Sector Placements,Services,08/06/2018,8000117293,540,Revenue,Cross Keys Homes,Home Care
Peterborough City Council,Adults,Independent Sector Placements,Services,08/06/2018,8000117296,922.5,Revenue,Cross Keys Homes,Home Care
Peterborough City Council,Adults,Independent Sector Placements,Services,08/06/2018,8000117297,525,Revenue,Cross Keys Homes,Home Care
Peterborough City Council,Adults,Independent Sector Placements,Services,08/06/2018,8000117301,1027.5,Revenue,Cross Keys Homes,Home Care
Peterborough City Council,Adults,Independent Sector Placements,Services,08/06/2018,8000117302,630.69,Revenue,Cross Keys Homes,Home Care
Peterborough City Council,Adults,Independent Sector Placements,Services,08/06/2018,8000117305,630,Revenue,Cross Keys Homes,Home Care
Peterborough City Council,Adults,Independent Sector Placements,Services,08/06/2018,8000117307,780,Revenue,Cross Keys Homes,Home Care
Peterborough City Council,Adults,Independent Sector Placements,Services,08/06/2018,8000117309,1012.5,Revenue,Cross Keys Homes,Home Care
Peterborough City Council,Adults,Independent Sector Placements,Services,08/06/2018,8000117311,840,Revenue,Cross Keys Homes,Home Care
Peterborough City Council,Adults,Independent Sector Placements,Services,08/06/2018,8000117315,915,Revenue,Cross Keys Homes,Home Care
Peterborough City Council,Adults,Independent Sector Placements,Services,08/06/2018,8000117412,1838.9,Revenue,Atlas Care Services Ltd,Home Care
Peterborough City Council,Adults,Independent Sector Placements,Services,08/06/2018,8000117417,1646.35,Revenue,Allied Healthcare (UK) Ltd,Home Care
Peterborough City Council,Adults,Independent Sector Placements,Services,08/06/2018,8000117418,607.39,Revenue,Allied Healthcare (UK) Ltd,Home Care
Peterborough City Council,Adults,Independent Sector Placements,Services,08/06/2018,8000117421,628.75,Revenue,Cross Keys Homes,Home Care
Peterborough City Council,Adults,Independent Sector Placements,Services,08/06/2018,8000117423,506.25,Revenue,Cross Keys Homes,Home Care
Peterborough City Council,Adults,Independent Sector Placements,Services,08/06/2018,8000118003,1292.58,Revenue,Redacted Personal Data,Adult Social Care Direct Payment
Peterborough City Council,Adults,Independent Sector Placements,Services,08/06/2018,8000118004,938.27,Revenue,Redacted Personal Data,Adult Social Care Direct Payment
Peterborough City Council,Adults,Independent Sector Placements,Services,08/06/2018,8000118007,3573.67,Revenue,Redacted Personal Data,Adult Social Care Direct Payment
Peterborough City Council,Education,HTS & CSC Transport,Contract Hire and Operating Leases,08/06/2018,8000118063,505,Revenue,Peterborough Cars,Hired Transport
Peterborough City Council,Education,HTS & CSC Transport,Contract Hire and Operating Leases,08/06/2018,8000118073,1683,Revenue,Redacted Personal Data,Hired Transport
Peterborough City Council,Education,HTS & CSC Transport,Contract Hire and Operating Leases,08/06/2018,8000118075,958.92,Revenue,Redacted Personal Data,Hired Transport
Peterborough City Council,Education,HTS & CSC Transport,Contract Hire and Operating Leases,08/06/2018,8000118116,1589.99,Revenue,Redacted Personal Data,Hired Transport
Peterborough City Council,Education,HTS & CSC Transport,Contract Hire and Operating Leases,08/06/2018,8000118117,1190.62,Revenue,Redacted Personal Data,Hired Transport
Peterborough City Council,Education,HTS & CSC Transport,Contract Hire and Operating Leases,08/06/2018,8000118118,856.5,Revenue,Redacted Personal Data,Hired Transport
Peterborough City Council,Education,HTS & CSC Transport,Contract Hire and Operating Leases,08/06/2018,8000118119,522,Revenue,Redacted Personal Data,Hired Transport
Peterborough City Council,Education,HTS & CSC Transport,Contract Hire and Operating Leases,08/06/2018,8000118121,674.25,Revenue,Redacted Personal Data,Hired Transport
Peterborough City Council,Education,HTS & CSC Transport,Contract Hire and Operating Leases,08/06/2018,8000118122,1433.25,Revenue,Redacted Personal Data,Hired Transport
Peterborough City Council,Adults,Independent Sector Placements,Services,08/06/2018,8000118157,981.15,Revenue,MEARS GROUP,Home Care
Peterborough City Council,Adults,Independent Sector Placements,Services,08/06/2018,8000118159,717.26,Revenue,Sagecare,Home Care
Peterborough City Council,Adults,Independent Sector Placements,Services,08/06/2018,8000118160,568.26,Revenue,Sagecare,Home Care
Peterborough City Council,Adults,Independent Sector Placements,Services,08/06/2018,8000118162,862.5,Revenue,Sagecare,Home Care
Peterborough City Council,Adults,Independent Sector Placements,Services,08/06/2018,8000118163,1522.29,Revenue,Sagecare,Home Care
Peterborough City Council,Adults,Independent Sector Placements,Services,08/06/2018,8000118264,832.5,Revenue,Cross Keys Homes,Home Care
Peterborough City Council,Adults,Independent Sector Placements,Services,08/06/2018,8000118266,869.4,Revenue,Merit Homecare Ltd,Home Care
Peterborough City Council,Public Health,PH Commissioning,Third Party Payments,11/06/2018,30175876,2109,Revenue,Cambridgeshire Community Services,Third Party Payments - Contract
Peterborough City Council,Adults,Block Contracts,Third Party Payments,11/06/2018,30178707,1999.2,Revenue,Axiom Housing Association Ltd,Third Party Payments - Contract
Peterborough City Council,Adults,Block Contracts,Third Party Payments,11/06/2018,30178710,5664.4,Revenue,Axiom Housing Association Ltd,Third Party Payments - Contract
Peterborough City Council,Adults,Block Contracts,Third Party Payments,11/06/2018,30178711,5664.4,Revenue,Axiom Housing Association Ltd,Third Party Payments - Contract
Peterborough City Council,Adults,Block Contracts,Third Party Payments,11/06/2018,30178712,1999.2,Revenue,Axiom Housing Association Ltd,Third Party Payments - Contract
Peterborough City Council,Adults,Block Contracts,Third Party Payments,11/06/2018,30178713,1999.2,Revenue,Axiom Housing Association Ltd,Third Party Payments - Contract
Peterborough City Council,Adults,Block Contracts,Third Party Payments,11/06/2018,30178714,5664.4,Revenue,Axiom Housing Association Ltd,Third Party Payments - Contract
Peterborough City Council,Communities,Cultural Services,Agency Staff,11/06/2018,30178746,9735,Revenue,Penna Plc,External Temporary Staff
Peterborough City Council,Legal Services,Legal Services,Services,11/06/2018,30179006,700,Revenue,Miss Meryl Hughes,Legal Costs
Peterborough City Council,Adults,Mental Capacity Act & DoLs,Services,11/06/2018,30179139,2829,Revenue,Dr Nauman Khalil Ltd,Hired Services
Peterborough City Council,Corporate,Corporate,Non Revenue,11/06/2018,30179559,1975,Capital,Dolphin Mobility East Midlands Ltd,Grant Payment
Peterborough City Council,Corporate,Corporate,Non Revenue,11/06/2018,30179561,1980,Capital,Dolphin Mobility East Midlands Ltd,Grant Payment
Peterborough City Council,Children's & Safeguarding,Children's Social Care,Agency Staff,11/06/2018,30179626,-1862.21,Revenue,Eden Brown Ltd,External Temporary Staff
Peterborough City Council,Adults,Independent Sector Placements,Services,11/06/2018,30179672,7966.75,Revenue,NEW BOUNDARIES COMMUNITY SERVICES LTD,Residential Care
Peterborough City Council,Commissioning and Commercial Operations,Clare Lodge,Agency Staff,11/06/2018,30179815,1904,Revenue,Wrixon Care Services,External Temporary Staff
Peterborough City Council,Corporate,Corporate,Non Revenue,11/06/2018,30179871,13257,Capital,Stannah Lift Services Ltd,Grant Payment
Peterborough City Council,Children's & Safeguarding,Children's Social Care,Services,11/06/2018,30180896,1115,Revenue,ZigZag Day Nursery Ltd,Childcare
Peterborough City Council,Corporate,Corporate,Non Revenue,11/06/2018,30180923,126309.76,Capital,Kier Construction Ltd,Building And Site Works
Peterborough City Council,HR,HR,Services,11/06/2018,30181001,1012,Revenue,Disclosure and Barring Service,Criminal Record Check
Peterborough City Council,Adults,Strategic Commissioning - Management,Agency Staff,11/06/2018,30181240,5698.83,Revenue,Eden Brown Ltd,External Temporary Staff
Peterborough City Council,Corporate,Corporate,Non Revenue,11/06/2018,30181310,428929.86,Capital,Kier Construction Ltd,Building And Site Works
Peterborough City Council,Corporate,Corporate,Non Revenue,11/06/2018,30181377,17354,Capital,M J Greaves,Grant Payment
Peterborough City Council,Corporate,Corporate,Non Revenue,11/06/2018,30181378,9000,Capital,M J Greaves,Grant Payment
Peterborough City Council,Corporate,Corporate,Non Revenue,11/06/2018,30181379,4215,Capital,A W Morley T/A Morley Building Services,Grant Payment
Peterborough City Council,Adults,Independent Sector Placements,Services,11/06/2018,30181461,-749.7,Revenue,Axiom Housing Association Ltd,Home Care
Peterborough City Council,Adults,Independent Sector Placements,Services,11/06/2018,30181587,7284.44,Revenue,Anchor Homes,Residential Care
Peterborough City Council,Westcombe Engineering,Westcombe Engineering,"Tools, Equipment, Furniture & Materials",11/06/2018,30181609,595,Revenue,Barron Clark Castings Ltd,Items For Resale
Peterborough City Council,Adults,Finance,Agency Staff,11/06/2018,30181612,2433.6,Revenue,Reed Specialist Recruitment Limited,External Temporary Staff
Peterborough City Council,Adults,Independent Sector Placements,Services,11/06/2018,30181652,678.3,Revenue,Axiom Housing Association Ltd,Home Care
Peterborough City Council,Adults,Independent Sector Placements,Services,11/06/2018,30181676,936.44,Revenue,Park Vista Care Home,Residential Care
Peterborough City Council,Adults,Independent Sector Placements,Services,11/06/2018,30181681,6477.48,Revenue,Manchester House (Dovehaven Care Homes),Residential Care
Peterborough City Council,Adults,Independent Sector Placements,Services,11/06/2018,30181682,1182.08,Revenue,Park Vista Care Home,Residential Care
Peterborough City Council,Adults,Independent Sector Placements,Services,11/06/2018,30181683,640.07,Revenue,Park Vista Care Home,Residential Care
Peterborough City Council,Corporate,Corporate,Non Revenue,11/06/2018,30181686,9665.09,Balance Sheet,NHS Pensions,Pensions
Peterborough City Council,Corporate,Corporate,Non Revenue,11/06/2018,30181689,1738.43,Balance Sheet,NHS Pensions,Pensions
Peterborough City Council,Corporate,Corporate,Non Revenue,11/06/2018,30181690,5266.67,Balance Sheet,NHS Pensions,Pensions
Peterborough City Council,Corporate,Corporate,Non Revenue,11/06/2018,30181691,1170.68,Balance Sheet,NHS Pensions,Pensions
Peterborough City Council,Corporate,Corporate,Non Revenue,11/06/2018,30181694,473908.58,Balance Sheet,LGSS Cambridgeshire Pension Fund,Pensions
Peterborough City Council,Corporate,Corporate,Non Revenue,11/06/2018,30181695,64655.5,Balance Sheet,LGSS Cambridgeshire Pension Fund,Pensions
Peterborough City Council,Corporate,Corporate,Non Revenue,11/06/2018,30181696,15684.88,Balance Sheet,LGSS Cambridgeshire Pension Fund,Pensions
Peterborough City Council,Corporate,Corporate,Non Revenue,11/06/2018,30181698,192079.81,Balance Sheet,LGSS Cambridgeshire Pension Fund,Pensions
Peterborough City Council,Children's & Safeguarding,External Education Placements,Services,11/06/2018,30181750,5591,Revenue,The Garth School,Education Expenses
Peterborough City Council,Children's & Safeguarding,External Education Placements,Services,11/06/2018,30181751,3900.83,Revenue,The Garth School,Education Expenses
Peterborough City Council,Communities,Housing,Services,11/06/2018,30181752,8463,Revenue,Tower Properties (Peterborough) Ltd,Temporary Accommodation Costs
Peterborough City Council,Adults,Independent Sector Placements,Services,11/06/2018,8000117110,1899,Revenue,Hales Group Ltd,Home Care
Peterborough City Council,Adults,Independent Sector Placements,Services,11/06/2018,8000117112,666.15,Revenue,Hales Group Ltd,Home Care
Peterborough City Council,Adults,Independent Sector Placements,Services,11/06/2018,8000117117,825,Revenue,Hales Group Ltd,Home Care
Peterborough City Council,Adults,Independent Sector Placements,Services,11/06/2018,8000117119,3372.75,Revenue,Hales Group Ltd,Home Care
Peterborough City Council,Adults,Independent Sector Placements,Services,11/06/2018,8000117120,523.2,Revenue,Hales Group Ltd,Home Care
Peterborough City Council,Adults,Independent Sector Placements,Services,11/06/2018,8000117125,1008.15,Revenue,Hales Group Ltd,Home Care
Peterborough City Council,Adults,Independent Sector Placements,Services,11/06/2018,8000117126,951.45,Revenue,Hales Group Ltd,Home Care
Peterborough City Council,Adults,Independent Sector Placements,Services,11/06/2018,8000117150,1038.15,Revenue,Hales Group Ltd,Home Care
Peterborough City Council,Adults,Independent Sector Placements,Services,11/06/2018,8000117153,867.9,Revenue,Hales Group Ltd,Home Care
Peterborough City Council,Adults,Independent Sector Placements,Services,11/06/2018,8000117178,4446.38,Revenue,Hales Group Ltd,Home Care
Peterborough City Council,Legal & Democratic,Democratic Services,Contract Hire and Operating Leases,11/06/2018,8000118584,534.32,Revenue,Lex Autolease Ltd,Leasing Charges
Peterborough City Council,Children's & Safeguarding,Commissioning - CSC,Third Party Payments,11/06/2018,8000119106,637536,Revenue,IAS TACT,Third Party Payments - Contract
Peterborough City Council,Peterborough Highway Services,Highway & Drainage Control,Agency Staff,13/06/2018,30178755,1425.6,Revenue,Matchtech,External Temporary Staff
Peterborough City Council,Other - Exclude,Other,Services,13/06/2018,30178892,415085,Revenue,Cambridgeshire Constabulary,Grant Payment
Peterborough City Council,Development and Construction,Planning Compliance,Agency Staff,13/06/2018,30179037,1564.5,Revenue,Park Avenue Recruitment Limited,External Temporary Staff
Peterborough City Council,Education,Special Educational Needs / Inclusion,Services,13/06/2018,30179061,4200,Revenue,RWB CONSULTANCY LIMITED,Consultants Fees
Peterborough City Council,Peterborough Highway Services,Network and Traffic Management,Services,13/06/2018,30179066,1796.25,Revenue,Johnston Press Midlands Division,Advertising
Peterborough City Council,Peterborough Highway Services,Network and Traffic Management,Services,13/06/2018,30179068,517.27,Revenue,Johnston Press Midlands Division,Advertising
Peterborough City Council,Children's & Safeguarding,Children's Social Care,Agency Staff,13/06/2018,30179177,1124.8,Revenue,NonStop Recruitment Ltd,External Temporary Staff
Peterborough City Council,Constitutional Services,Elections,Services,13/06/2018,30179181,5353.25,Revenue,Cambridgeshire Constabulary,Hired Services
Peterborough City Council,Adults,Home Services Delivery Model,Third Party Payments,13/06/2018,30179195,2933.36,Revenue,NACRO,Grant-Third Party
Peterborough City Council,Communities,Cultural Services,Repair & Maintenance of Buildings,13/06/2018,30179289,510,Revenue,Jones Lang LaSalle,Service Charges - Premises
Peterborough City Council,Adults,Mental Capacity Act & DoLs,Services,13/06/2018,30179395,1898,Revenue,Raj Medical Consultancy Limited,Hired Services
Peterborough City Council,Adults,Block Contracts,Third Party Payments,13/06/2018,30179397,2353.68,Revenue,Hales Group Ltd,Third Party Payments - Contract
Peterborough City Council,Commissioning and Commercial Operations,Commissioning,Services,13/06/2018,30179406,979.5,Revenue,Wrixon Care Services,Hired Services
Peterborough City Council,ICT,ICT,Services,13/06/2018,30179455,59090.46,Revenue,Serco Ltd,Computer Software
Peterborough City Council,ICT,ICT,Services,13/06/2018,30179456,661.43,Revenue,Serco Ltd,Computer Software
Peterborough City Council,ICT,ICT,Services,13/06/2018,30179457,5749.82,Revenue,Serco Ltd,Computer Software
Peterborough City Council,ICT,ICT,Services,13/06/2018,30179458,3903.67,Revenue,Serco Ltd,Computer Software
Peterborough City Council,ICT,ICT,Services,13/06/2018,30179459,8473.8,Revenue,Serco Ltd,Computer Software
Peterborough City Council,Marketing & Communications,Marketing & Communications,Services,13/06/2018,30179460,1322.86,Revenue,Serco Ltd,Computer Software
Peterborough City Council,ICT,ICT,Services,13/06/2018,30179461,630.45,Revenue,Serco Ltd,Computer Software
Peterborough City Council,Commissioning and Commercial Operations,Commissioning,Services,13/06/2018,30179517,1629.55,Revenue,BDP Social Care Ltd,Hired Services
Peterborough City Council,Adults,Independent Sector Placements,Services,13/06/2018,30179534,3784,Revenue,Community Care Solutions Ltd,Residential Care
Peterborough City Council,ICT,ICT,Agency Staff,13/06/2018,30179557,2500,Revenue,Cranford Solutions Ltd,External Temporary Staff
Peterborough City Council,Communities,Community Capacity,Services,13/06/2018,30179558,850,Revenue,PETERBOROUGH FOOTBALL & SPORTS DEVELOPMENT FOUNDATION,Grant Payment
Peterborough City Council,Legal Services,Legal Services,Agency Staff,13/06/2018,30179614,1380,Revenue,Venn Group Ltd,External Temporary Staff
Peterborough City Council,Legal Services,Legal Services,Agency Staff,13/06/2018,30179615,539,Revenue,Venn Group Ltd,External Temporary Staff
Peterborough City Council,Peterborough Highway Services,Transport & Infrastructure Commissioning,Services,13/06/2018,30179631,595,Revenue,UK Power Networks (operations) Ltd,Contractors
Peterborough City Council,Corporate,Corporate,Non Revenue,13/06/2018,30179650,150909,Capital,Capita Business Services Ltd,Computer Software
Peterborough City Council,Adults,Independent Sector Placements,Services,13/06/2018,30179673,1512.98,Revenue,Cambridgeshire County Council,Day Care
Peterborough City Council,Communities,Service Director - Adults & Communities,Third Party Payments,13/06/2018,30179736,1716,Revenue,Enterprise Managed Services Limited,Grant-Third Party
Peterborough City Council,Children's & Safeguarding,Adult & Children Safeguarding Board,Services,13/06/2018,30179740,2875,Revenue,RJW Associates Ltd,Consultants Fees
Peterborough City Council,Legal Services,Legal Services,Services,13/06/2018,30179781,700,Revenue,Miss Meryl Hughes,Legal Costs
Peterborough City Council,Adults,Therapy/Reablement/Community Equipment,"Tools, Equipment, Furniture & Materials",13/06/2018,30179789,800.66,Revenue,Action on Hearing Loss,Occupational Therapy Equipment
Peterborough City Council,Commissioning and Commercial Operations,Clare Lodge,Agency Staff,13/06/2018,30179795,1120,Revenue,Wrixon Care Services,External Temporary Staff
Peterborough City Council,Commissioning and Commercial Operations,Clare Lodge,Agency Staff,13/06/2018,30179807,1235.5,Revenue,Wrixon Care Services,External Temporary Staff
Peterborough City Council,Commissioning and Commercial Operations,Clare Lodge,Agency Staff,13/06/2018,30179813,520,Revenue,Wrixon Care Services,External Temporary Staff
Peterborough City Council,Commissioning and Commercial Operations,Clare Lodge,Agency Staff,13/06/2018,30179814,992,Revenue,Wrixon Care Services,External Temporary Staff
Peterborough City Council,Commissioning and Commercial Operations,Clare Lodge,Agency Staff,13/06/2018,30179816,512,Revenue,Wrixon Care Services,External Temporary Staff
Peterborough City Council,Adults,Independent Sector Placements,Services,13/06/2018,30179910,9024.86,Revenue,Community Care Solutions Ltd,Residential Care
Peterborough City Council,Education,Special Educational Needs / Inclusion,Agency Staff,13/06/2018,30179958,4240,Revenue,Permanent Futures Ltd,External Temporary Staff
Peterborough City Council,Children's & Safeguarding,Child Health,Cleaning & Domestic Supplies,13/06/2018,30179959,512.33,Revenue,Bright Hygiene Manage. (London) Ltd,Cleaning Services
Peterborough City Council,Adults,Independent Sector Placements,Services,13/06/2018,30179983,5149.76,Revenue,LEONARD CHESHIRE DISABILITY,Residential Care
Peterborough City Council,Adults,Independent Sector Placements,Services,13/06/2018,30179984,5686.8,Revenue,Lifeways Community Care,Residential Care
Peterborough City Council,Adults,Independent Sector Placements,Services,13/06/2018,30180113,601.05,Revenue,MEARS GROUP,Home Care
Peterborough City Council,Development and Construction,Development Management,Agency Staff,13/06/2018,30180241,1000.21,Revenue,Reed Specialist Recruitment Limited,External Temporary Staff
Peterborough City Council,Adults,Independent Sector Placements,Services,13/06/2018,30180391,1441.9,Revenue,Sagecare,Home Care
Peterborough City Council,Adults,Independent Sector Placements,Services,13/06/2018,30180392,738.05,Revenue,Sagecare,Home Care
Peterborough City Council,Adults,Independent Sector Placements,Services,13/06/2018,30180394,887.04,Revenue,Sagecare,Home Care
Peterborough City Council,Development and Construction,Development Management,Agency Staff,13/06/2018,30180672,1121.25,Revenue,Reed Specialist Recruitment Limited,External Temporary Staff
Peterborough City Council,Legal Services,Legal Services,Agency Staff,13/06/2018,30180737,1815,Revenue,Venn Group Ltd,External Temporary Staff
Peterborough City Council,Adults,Therapy/Reablement/Community Equipment,"Tools, Equipment, Furniture & Materials",13/06/2018,30180753,-787.92,Revenue,Action on Hearing Loss,Occupational Therapy Equipment
Peterborough City Council,Corporate Property,Commercial Propety,Rents,13/06/2018,30180842,32735.97,Revenue,DVS Management Ltd,Rent
Peterborough City Council,Communities,Housing,Services,13/06/2018,30180850,40744,Revenue,Stef & Philips Ltd,Temporary Accommodation Costs
Peterborough City Council,ICT,ICT,Services,13/06/2018,30180861,49868.15,Revenue,Amazon Web Services Inc.,Computer Software
Peterborough City Council,Corporate,Corporate,Non Revenue,13/06/2018,30181172,2268.6,Capital,Reed Specialist Recruitment Limited,Consultants Fees
Peterborough City Council,Legal Services,Legal Services,Services,13/06/2018,30181228,550,Revenue,"Elliott, Ms Margot",Legal Costs
Peterborough City Council,Adults,Independent Sector Placements,Agency Staff,13/06/2018,30181239,2135.6,Revenue,Eden Brown Ltd,External Temporary Staff
Peterborough City Council,Children's & Safeguarding,Children's Social Care,Agency Staff,13/06/2018,30181242,5114.39,Revenue,Eden Brown Ltd,External Temporary Staff
Peterborough City Council,Legal Services,Legal Services,Agency Staff,13/06/2018,30181243,809.25,Revenue,Giant Professional Limited,External Temporary Staff
Peterborough City Council,Children's & Safeguarding,Children's Social Care,Agency Staff,13/06/2018,30181245,2394.27,Revenue,Eden Brown Ltd,External Temporary Staff
Peterborough City Council,Adults,Strategic Commissioning - Management,Agency Staff,13/06/2018,30181298,5188.33,Revenue,Sanctuary Personnel Ltd,External Temporary Staff
Peterborough City Council,Education,Special Educational Needs / Inclusion,Agency Staff,13/06/2018,30181300,2244,Revenue,Sanctuary Personnel Ltd,External Temporary Staff
Peterborough City Council,Adults,Independent Sector Placements,Services,13/06/2018,30181416,783,Revenue,Prime Life Ltd (Phoenix Park),Residential Care
Peterborough City Council,Adults,Independent Sector Placements,Services,13/06/2018,30181418,4515.8,Revenue,Prime Life Ltd (Phoenix Park),Residential Care
Peterborough City Council,Adults,Independent Sector Placements,Services,13/06/2018,30181419,4515.8,Revenue,Prime Life Ltd (Phoenix Park),Residential Care
Peterborough City Council,Adults,Independent Sector Placements,Services,13/06/2018,30181420,-11921.14,Revenue,Prime Life Ltd (Phoenix Park),Residential Care
Peterborough City Council,Adults,Independent Sector Placements,Services,13/06/2018,30181447,2289.8,Revenue,Prime Life Ltd (Phoenix Park),Residential Care
Peterborough City Council,Adults,Independent Sector Placements,Services,13/06/2018,30181478,957,Revenue,Park Vista Care Home,Residential Care
Peterborough City Council,Adults,Independent Sector Placements,Services,13/06/2018,30181485,1457.14,Revenue,Park Vista Care Home,Residential Care
Peterborough City Council,Peterborough Highway Services,Transport & Infrastructure Commissioning,Energy Costs,13/06/2018,30181488,1749.2,Revenue,EDF Energy Networks Ltd,Electricity
Peterborough City Council,Peterborough Highway Services,Transport & Infrastructure Commissioning,Energy Costs,13/06/2018,30181489,61837.11,Revenue,EDF Energy Networks Ltd,Electricity
Peterborough City Council,Legal Services,Legal Services,Services,13/06/2018,30181499,733.26,Revenue,Opus 2 International Limited,Hired Services
Peterborough City Council,Commissioning and Commercial Operations,Clare Lodge,Agency Staff,13/06/2018,30181500,1560,Revenue,Wrixon Care Services,External Temporary Staff
Peterborough City Council,Westcombe Engineering,Westcombe Engineering,"Tools, Equipment, Furniture & Materials",13/06/2018,30181528,595,Revenue,Barron Clark Castings Ltd,Items For Resale
Peterborough City Council,Westcombe Engineering,Westcombe Engineering,"Tools, Equipment, Furniture & Materials",13/06/2018,30181533,516,Revenue,Barron Clark Castings Ltd,Items For Resale
Peterborough City Council,Adults,Independent Sector Placements,Services,13/06/2018,30181565,3259.57,Revenue,Prime Life Ltd (Phoenix Park),Residential Care
Peterborough City Council,Adults,Independent Sector Placements,Services,13/06/2018,30181566,2092.24,Revenue,Prime Life Ltd (Phoenix Park),Residential Care
Peterborough City Council,Adults,Independent Sector Placements,Services,13/06/2018,30181584,2092.24,Revenue,Prime Life Ltd (Phoenix Park),Residential Care
Peterborough City Council,Development and Construction,Development Management,Agency Staff,13/06/2018,30181613,1000.21,Revenue,Reed Specialist Recruitment Limited,External Temporary Staff
Peterborough City Council,Regulatory Services,Regulatory Services,Agency Staff,13/06/2018,30181614,1394.53,Revenue,Reed Specialist Recruitment Limited,External Temporary Staff
Peterborough City Council,Regulatory Services,Regulatory Services,Agency Staff,13/06/2018,30181615,1100.7,Revenue,Reed Specialist Recruitment Limited,External Temporary Staff
Peterborough City Council,Commissioning and Commercial Operations,Clare Lodge,Agency Staff,13/06/2018,30181655,625.1,Revenue,Reed Specialist Recruitment Limited,External Temporary Staff
Peterborough City Council,ICT,ICT,Agency Staff,13/06/2018,30181656,538.57,Revenue,Reed Specialist Recruitment Limited,External Temporary Staff
Peterborough City Council,Peterborough Highway Services,Transport & Infrastructure Commissioning,Services,13/06/2018,30181675,6437.96,Revenue,Stagecoach in Peterborough,Contractors
Peterborough City Council,Communities,Targeted Youth Service,Services,13/06/2018,30181702,4800,Revenue,Hilltop Outdoor Centre,Programmes
Peterborough City Council,Children's & Safeguarding,Children's Social Care,Services,13/06/2018,30181767,1306.18,Revenue,Redacted Personal Data,Financial Assistance
Peterborough City Council,Adults,Independent Sector Placements,Services,13/06/2018,30181773,1932,Revenue,SOCIAL CARE SOLUTIONS LTD,Home Care
Peterborough City Council,Adults,Independent Sector Placements,Services,13/06/2018,30181774,1932,Revenue,SOCIAL CARE SOLUTIONS LTD,Home Care
Peterborough City Council,Adults,Independent Sector Placements,Services,13/06/2018,30181775,1932,Revenue,SOCIAL CARE SOLUTIONS LTD,Home Care
Peterborough City Council,Adults,Independent Sector Placements,Services,13/06/2018,30181776,1932,Revenue,SOCIAL CARE SOLUTIONS LTD,Home Care
Peterborough City Council,Commissioning and Commercial Operations,Early Years & Quality Improvement,Services,13/06/2018,30181781,13155.47,Revenue,Stanground St Johns Pre-School,Grant Payment
Peterborough City Council,Commissioning and Commercial Operations,Early Years & Quality Improvement,Services,13/06/2018,30181782,42242.76,Revenue,St Josephs Day Nursery,Grant Payment
Peterborough City Council,Commissioning and Commercial Operations,Early Years & Quality Improvement,Services,13/06/2018,30181783,33010.68,Revenue,Stepping Stones Day Nursery,Grant Payment
Peterborough City Council,Commissioning and Commercial Operations,Early Years & Quality Improvement,Services,13/06/2018,30181784,7531.74,Revenue,Southfields Pre-School Playgroup,Grant Payment
Peterborough City Council,Commissioning and Commercial Operations,Early Years & Quality Improvement,Services,13/06/2018,30181785,15662.53,Revenue,Noah's Ark Pre-School,Grant Payment
Peterborough City Council,Commissioning and Commercial Operations,Early Years & Quality Improvement,Services,13/06/2018,30181786,30792.95,Revenue,Orton Longueville Playgroup,Grant Payment
Peterborough City Council,Commissioning and Commercial Operations,Early Years & Quality Improvement,Services,13/06/2018,30181787,10725.14,Revenue,Orton Wistow Under Fives,Grant Payment
Peterborough City Council,Commissioning and Commercial Operations,Early Years & Quality Improvement,Services,13/06/2018,30181788,13876.07,Revenue,Paston & Gunthorpe Pre-School,Grant Payment
Peterborough City Council,Children's & Safeguarding,External Education Placements,Services,13/06/2018,30181798,26350,Revenue,Hillcrest Children Serv(2)Ltd t/a Options BESD (1) Ltd,Boarding Out Allowances
Peterborough City Council,Adults,Strategic Commissioning - Management,Agency Staff,13/06/2018,30181799,4991.3,Revenue,Sanctuary Personnel Ltd,External Temporary Staff
Peterborough City Council,Adults,Independent Sector Placements,Services,13/06/2018,30181801,864.96,Revenue,Avery House (Peterborough) t/a Brighterkind,Residential Care
Peterborough City Council,Adults,Independent Sector Placements,Services,13/06/2018,30181802,2421.88,Revenue,Avery House (Peterborough) t/a Brighterkind,Residential Care
Peterborough City Council,Adults,Independent Sector Placements,Services,13/06/2018,30181803,690.2,Revenue,Axiom Housing Association Ltd,Home Care
Peterborough City Council,Adults,Independent Sector Placements,Services,13/06/2018,30181804,690.2,Revenue,Axiom Housing Association Ltd,Home Care
Peterborough City Council,Adults,Independent Sector Placements,Services,13/06/2018,30181805,2063.72,Revenue,Augusta Care Ltd,Home Care
Peterborough City Council,Adults,Independent Sector Placements,Services,13/06/2018,30181806,1326.66,Revenue,Augusta Care Ltd,Home Care
Peterborough City Council,Adults,Independent Sector Placements,Services,13/06/2018,30181807,2063.72,Revenue,Augusta Care Ltd,Home Care
Peterborough City Council,Adults,Independent Sector Placements,Services,13/06/2018,30181808,2063.72,Revenue,Augusta Care Ltd,Home Care
Peterborough City Council,Adults,Independent Sector Placements,Services,13/06/2018,30181811,-4931.71,Revenue,Prime Life Ltd (Phoenix Park),Residential Care
Peterborough City Council,Adults,Independent Sector Placements,Services,13/06/2018,30181815,8710.8,Revenue,Augusta Care Ltd,Home Care
Peterborough City Council,Commissioning and Commercial Operations,Early Years & Quality Improvement,Services,13/06/2018,30181838,6638.15,Revenue,The Village Playgroup,Grant Payment
Peterborough City Council,Commissioning and Commercial Operations,Early Years & Quality Improvement,Services,13/06/2018,30181839,56461,Revenue,The Day Nursery Peterborough Ltd,Grant Payment
Peterborough City Council,Commissioning and Commercial Operations,Early Years & Quality Improvement,Services,13/06/2018,30181840,25694.94,Revenue,West Town Pre-School,Grant Payment
Peterborough City Council,Commissioning and Commercial Operations,Early Years & Quality Improvement,Services,13/06/2018,30181842,12265.16,Revenue,Family Action,Grant Payment
Peterborough City Council,Commissioning and Commercial Operations,Early Years & Quality Improvement,Services,13/06/2018,30181843,8603.1,Revenue,Rainbow Pre-School,Grant Payment
Peterborough City Council,Commissioning and Commercial Operations,Early Years & Quality Improvement,Services,13/06/2018,30181844,17044.83,Revenue,Family Action,Grant Payment
Peterborough City Council,Commissioning and Commercial Operations,Early Years & Quality Improvement,Services,13/06/2018,30181845,7692.06,Revenue,Shiny Stars Pre-School,Grant Payment
Peterborough City Council,Commissioning and Commercial Operations,Early Years & Quality Improvement,Services,13/06/2018,30181846,10882.72,Revenue,Family Action,Grant Payment
Peterborough City Council,Commissioning and Commercial Operations,Early Years & Quality Improvement,Services,13/06/2018,30181847,6534.81,Revenue,Play House Pre-School & Out of School Club,Grant Payment
Peterborough City Council,Commissioning and Commercial Operations,Early Years & Quality Improvement,Services,13/06/2018,30181848,16712.93,Revenue,Little Poppets Day Nursery,Grant Payment
Peterborough City Council,Commissioning and Commercial Operations,Early Years & Quality Improvement,Services,13/06/2018,30181849,13438.14,Revenue,Little Bees Pre-School,Grant Payment
Peterborough City Council,Commissioning and Commercial Operations,Early Years & Quality Improvement,Services,13/06/2018,30181850,5854.44,Revenue,Little Angels,Grant Payment
